Workbook

Sheet AER Sheet Heading (hidden)
B1: =INDEX(dms_Worksheet_List,MATCH(dms_Model,dms_Model_List)) -> REGULATORY REPORTING STATEMENT
B2: =INDEX(dms_TradingNameFull_List,MATCH(dms_TradingName,dms_TradingName_List)) -> Murraylink Transmission Company Pty Ltd
B3: =dms_Header_Span -> 2018-19 to 2027-28
B4: XX
C11: EXPENDITURE
C12: =CONCATENATE("Forecast ($0's, real ",dms_DollarReal,")") -> Forecast ($0's, real June 2023)
C13: =dms_y1 -> 2018-19 | D13: =dms_y2 -> 2019-20 | E13: =dms_y3 -> 2020-21 | F13: =dms_y4 -> 2021-22 | G13: =dms_y5 -> 2022-23 | H13: =dms_y6 -> 2023-24 | I13: =dms_y7 -> 2024-25
C42: VOLUMES
C43: 0's
C44: =dms_y1 -> 2018-19 | D44: =dms_y2 -> 2019-20 | E44: =dms_y3 -> 2020-21 | F44: =dms_y4 -> 2021-22 | G44: =dms_y5 -> 2022-23 | H44: =dms_y6 -> 2023-24 | I44: =dms_y7 -> 2024-25

Sheet AER CF (hidden)
B1: AER CONDITIONAL FORMATTING
B3: CELLS FLAGED "Y" and greyed out will be greyed out in the worksheets.
B4: CONDITIONAL FORMATTING MAP
F5: =INDEX(dms_CF_3.6.1, MATCH(dms_TradingName,dms_CF_TradingName))="Y" | G5: =INDEX(dms_CF_3.6.5, MATCH(dms_TradingName,dms_CF_TradingName))="Y" | H5: =INDEX(dms_CF_3.6.6.1, MATCH(dms_TradingName,dms_CF_TradingName))="Y" | I5: =INDEX(dms_CF_3.6.6.2, MATCH(dms_TradingName,dms_CF_TradingName))="Y" | J5: =INDEX(dms_CF_3.6.6.3, MATCH(dms_TradingName,dms_CF_TradingName))="Y" | K5: =INDEX(dms_CF_3.6.7.1, MATCH(dms_TradingName,dms_CF_TradingName))="Y" | L5: =INDEX(dms_CF_3.6.7.2, MATCH(dms_TradingName,dms_CF_TradingName))="Y" | M5: =INDEX(dms_CF_3.6.7.3, MATCH(dms_TradingName,dms_CF_TradingName))="Y" | N5: =INDEX(dms_CF_3.6.7.4, MATCH(dms_TradingName,dms_CF_TradingName))="Y" | O5: =INDEX(dms_CF_3.6.8, MATCH(dms_TradingName,dms_CF_TradingName))="Y" | P5: =INDEX(dms_CF_4.1, MATCH(dms_TradingName,dms_CF_TradingName))="Y" | Q5: =INDEX(dms_CF_6.8, MATCH(dms_TradingName,dms_CF_TradingName))="Y" | R5: =INDEX(dms_CF_7.12, MATCH(dms_TradingName,dms_CF_TradingName))="Y" | S5: =INDEX(dms_CF_8.1_A, MATCH(dms_TradingName,dms_CF_TradingName))="Y" | T5: =INDEX(dms_CF_8.1_B, MATCH(dms_TradingName,dms_CF_TradingName))="Y" | U5: =INDEX(dms_CF_8.1_Neg, MATCH(dms_TradingName,dms_CF_TradingName))="Y" -> TRUE | V5: =INDEX(dms_CF_4.4.1_Neg, MATCH(dms_TradingName,dms_CF_TradingName))="Y" | Y5: =INDEX(dms_CF_F10, MATCH(dms_TradingName,dms_CF_TradingName))="Y"
B6: dms_CF_TradingName | C6: JurisdictionList | D6: Sector | E6: Segment | F6: dms_CF_3.6.1 | G6: dms_CF_3.6.5 | H6: dms_CF_3.6.6.1 | I6: dms_CF_3.6.6.2 | J6: dms_CF_3.6.6.3 | K6: dms_CF_3.6.7.1 | L6: dms_CF_3.6.7.2 | M6: dms_CF_3.6.7.3 | N6: dms_CF_3.6.7.4 | O6: dms_CF_3.6.8 | P6: dms_CF_4.1 | Q6: dms_CF_6.8 (set from dms_MAIFI_flag) | R6: dms_CF_7.12 | S6: dms_CF_8.1_A (and 8.4) | T6: dms_CF_8.1_B (and 8.4) | U6: dms_CF_8.1_Neg (and 8.4) | V6: dms_CF_4.4.1 | W6: dms_CF_MAIFI_flag (set from dms_MAIFI_flag) | X6: 9.5 TUOS (set from Jurisdiction) | Y6: dms_CF_F10
B7: Amadeus | C7: NT | D7: Gas | E7: Transmission | F7: - | G7: - | H7: - | I7: - | J7: - | K7: - | L7: - | M7: - | N7: - | O7: - | P7: - | Q7: - | R7: - | S7: - | T7: - | U7: - | V7: - | W7: - | X7: - | Y7: -
B8: APA GasNet | C8: Vic | D8: Gas | E8: Transmission | F8: - | G8: - | H8: - | I8: - | J8: - | K8: - | L8: - | M8: - | N8: - | O8: - | P8: - | Q8: - | R8: - | S8: - | T8: - | U8: - | V8: - | W8: - | X8: - | Y8: -
B9: Ausgrid | C9: NSW | D9: Electricity | E9: Distribution | G9: Y | H9: N | I9: N | J9: N | K9: N | L9: N | M9: N | N9: Y | O9: N | P9: N | Q9: =IFERROR(IF(dms_MAIFI_flag="Yes","N","Y"),"Y") -> Y | R9: Y | S9: N | T9: Y | U9: Y | V9: N | W9: =IFERROR(LEFT(dms_MAIFI_flag),"N") -> N | X9: =IF('AER CF'!$C7="Vic","Y","N") -> N
B10: Ausgrid (Tx Assets) | C10: NSW | D10: Electricity | E10: Distribution | G10: Y | H10: N | I10: N | J10: N | K10: N | L10: N | M10: N | N10: Y | O10: N | P10: N | Q10: =IFERROR(IF(dms_MAIFI_flag="Yes","N","Y"),"Y") -> Y | R10: Y | S10: N | T10: Y | U10: Y | V10: N | W10: =IFERROR(LEFT(dms_MAIFI_flag),"N") -> N | X10: =IF('AER CF'!$C8="Vic","Y","N") -> Y
B11: AusNet (D) | C11: Vic | D11: Electricity | E11: Distribution | G11: N | H11: N | K11: N | L11: N | M11: N | N11: N | O11: N | P11: N | Q11: =IFERROR(IF(dms_MAIFI_flag="Yes","N","Y"),"Y") -> Y | R11: N | S11: N | T11: N | U11: Y | V11: N | W11: =IFERROR(LEFT(dms_MAIFI_flag),"N") -> N | X11: =IF('AER CF'!$C9="Vic","Y","N") -> N
B12: AusNet (T) | C12: Vic | D12: Electricity | E12: Transmission | G12: N | K12: N | L12: N | M12: N | N12: N | O12: N | P12: Y | Q12: =IFERROR(IF(dms_MAIFI_flag="Yes","N","Y"),"Y") -> Y | R12: N | S12: N | T12: N | U12: Y | V12: N | W12: =IFERROR(LEFT(dms_MAIFI_flag),"N") -> N | X12: =IF('AER CF'!$C10="Vic","Y","N") -> N
B13: Australian Distribution Co. | C13: NSW | D13: Electricity | E13: Distribution | F13: N | G13: N | H13: N | I13: N | K13: N | L13: N | M13: N | N13: N | O13: N | P13: N | Q13: =IFERROR(IF(dms_MAIFI_flag="Yes","N","Y"),"Y") -> Y | R13: N | S13: N | T13: N | U13: N | V13: N | W13: =IFERROR(LEFT(dms_MAIFI_flag),"N") -> N | X13: =IF('AER CF'!$C13="Vic","Y","N") -> N
B14: Australian Distribution Co. (Vic) | C14: Vic | D14: Electricity | E14: Distribution | F14: N | G14: N | H14: N | I14: N | K14: N | L14: N | M14: N | N14: N | O14: N | P14: N | Q14: =IFERROR(IF(dms_MAIFI_flag="Yes","N","Y"),"Y") -> Y | R14: N | S14: N | T14: N | U14: N | V14: N | W14: =IFERROR(LEFT(dms_MAIFI_flag),"N") -> N | X14: =IF('AER CF'!$C14="Vic","Y","N") -> Y
B15: CitiPower | C15: Vic | D15: Electricity | E15: Distribution | G15: N | H15: N | K15: N | L15: N | M15: N | N15: N | O15: N | P15: N | Q15: =IFERROR(IF(dms_MAIFI_flag="Yes","N","Y"),"Y") -> Y | R15: N | S15: N | T15: N | U15: Y | V15: N | W15: =IFERROR(LEFT(dms_MAIFI_flag),"N") -> N | X15: =IF('AER CF'!$C15="Vic","Y","N") -> Y
B16: Directlink | C16: Qld | D16: Electricity | E16: Transmission | G16: N | K16: N | L16: N | M16: N | N16: N | O16: N | P16: - | Q16: =IFERROR(IF(dms_MAIFI_flag="Yes","N","Y"),"Y") -> Y | R16: N | S16: N | T16: Y | U16: Y | V16: N | W16: =IFERROR(LEFT(dms_MAIFI_flag),"N") -> N | X16: =IF('AER CF'!$C16="Vic","Y","N") -> N
B17: ElectraNet | C17: SA | D17: Electricity | E17: Transmission | G17: N | K17: N | L17: N | M17: N | N17: N | O17: N | P17: - | Q17: =IFERROR(IF(dms_MAIFI_flag="Yes","N","Y"),"Y") -> Y | R17: N | S17: N | T17: Y | U17: Y | V17: N | W17: =IFERROR(LEFT(dms_MAIFI_flag),"N") -> N | X17: =IF('AER CF'!$C17="Vic","Y","N") -> N
B18: Endeavour Energy | C18: NSW | D18: Electricity | E18: Distribution | G18: Y | H18: N | I18: Y | J18: Y | K18: N | L18: N | M18: N | N18: Y | O18: N | P18: N | Q18: =IFERROR(IF(dms_MAIFI_flag="Yes","N","Y"),"Y") -> Y | R18: Y | S18: N | T18: Y | U18: Y | V18: Y | W18: =IFERROR(LEFT(dms_MAIFI_flag),"N") -> N | X18: =IF('AER CF'!$C18="Vic","Y","N") -> N
B19: Energex | C19: Qld | D19: Electricity | E19: Distribution | G19: Y | H19: N | K19: N | L19: N | M19: N | N19: N | O19: N | P19: N | Q19: =IFERROR(IF(dms_MAIFI_flag="Yes","N","Y"),"Y") -> Y | R19: Y | S19: N | T19: Y | U19: Y | V19: Y | W19: =IFERROR(LEFT(dms_MAIFI_flag),"N") -> N | X19: =IF('AER CF'!$C19="Vic","Y","N") -> N
B20: Ergon Energy | C20: Qld | D20: Electricity | E20: Distribution | G20: Y | H20: N | I20: Y | J20: Y | K20: N | L20: N | M20: N | N20: N | O20: N | P20: N | Q20: =IFERROR(IF(dms_MAIFI_flag="Yes","N","Y"),"Y") -> Y | R20: Y | S20: N | T20: Y | U20: Y | V20: N | W20: =IFERROR(LEFT(dms_MAIFI_flag),"N") -> N | X20: =IF('AER CF'!$C20="Vic","Y","N") -> N
B21: Essential Energy | C21: NSW | D21: Electricity | E21: Distribution | G21: Y | H21: N | I21: Y | J21: Y | K21: N | L21: N | M21: N | N21: Y | O21: N | P21: N | Q21: =IFERROR(IF(dms_MAIFI_flag="Yes","N","Y"),"Y") -> Y | R21: Y | S21: N | T21: Y | U21: Y | V21: N | W21: =IFERROR(LEFT(dms_MAIFI_flag),"N") -> N | X21: =IF('AER CF'!$C21="Vic","Y","N") -> N
B22: Evoenergy Distribution | C22: ACT | D22: Electricity | E22: Distribution | G22: Y | H22: N | I22: Y | J22: Y | K22: Y | L22: Y | M22: N | N22: Y | O22: N | P22: Y | Q22: =IFERROR(IF(dms_MAIFI_flag="Yes","N","Y"),"Y") -> Y | R22: Y | S22: N | T22: Y | U22: Y | V22: N | W22: =IFERROR(LEFT(dms_MAIFI_flag),"N") -> N | X22: =IF('AER CF'!$C22="Vic","Y","N") -> N
B23: Evoenergy Distribution (Tx Assets) | C23: ACT | D23: Electricity | E23: Distribution | G23: Y | H23: N | I23: Y | J23: Y | K23: Y | L23: Y | M23: N | N23: Y | O23: N | P23: Y | Q23: =IFERROR(IF(dms_MAIFI_flag="Yes","N","Y"),"Y") -> Y | R23: Y | S23: N | T23: Y | U23: Y | V23: N | W23: =IFERROR(LEFT(dms_MAIFI_flag),"N") -> N | X23: =IF('AER CF'!$C23="Vic","Y","N") -> N
B24: Jemena Electricity | C24: Vic | D24: Electricity | E24: Distribution | G24: N | H24: N | K24: N | L24: N | M24: N | N24: N | O24: N | P24: N | Q24: =IFERROR(IF(dms_MAIFI_flag="Yes","N","Y"),"Y") -> Y | R24: N | S24: N | T24: N | U24: Y | V24: N | W24: =IFERROR(LEFT(dms_MAIFI_flag),"N") -> N | X24: =IF('AER CF'!$C25="Vic","Y","N") -> Y
B25: JGN | C25: Vic | D25: Gas | E25: Distribution | F25: - | G25: - | H25: - | I25: - | J25: - | K25: - | L25: - | M25: - | N25: - | O25: - | P25: - | Q25: - | R25: - | S25: - | T25: - | U25: - | V25: - | W25: - | X25: - | Y25: -
B26: Murraylink | C26: SA | D26: Electricity | E26: Transmission | G26: N | K26: N | L26: N | M26: N | N26: N | O26: N | P26: - | Q26: =IFERROR(IF(dms_MAIFI_flag="Yes","N","Y"),"Y") -> Y | R26: N | S26: N | T26: Y | U26: Y | V26: N | W26: =IFERROR(LEFT(dms_MAIFI_flag),"N") -> N | X26: =IF('AER CF'!$C26="Vic","Y","N") -> N
B27: Power and Water | C27: NT | D27: Electricity | E27: Distribution | G27: N | H27: N | K27: N | L27: Y | M27: N | N27: N | O27: N | P27: Y | Q27: =IFERROR(IF(dms_MAIFI_flag="Yes","N","Y"),"Y") -> Y | R27: Y | S27: Y | T27: Y | U27: Y | V27: N | W27: =IFERROR(LEFT(dms_MAIFI_flag),"N") -> N | X27: =IF('AER CF'!$C27="Vic","Y","N") -> N
B28: Powercor Australia | C28: Vic | D28: Electricity | E28: Distribution | G28: N | H28: N | K28: N | L28: N | M28: N | N28: N | O28: N | P28: N | Q28: =IFERROR(IF(dms_MAIFI_flag="Yes","N","Y"),"Y") -> Y | R28: N | S28: N | T28: N | U28: Y | V28: N | W28: =IFERROR(LEFT(dms_MAIFI_flag),"N") -> N | X28: =IF('AER CF'!$C28="Vic","Y","N") -> Y
B29: Powerlink | C29: Qld | D29: Electricity | E29: Transmission | G29: N | K29: N | L29: N | M29: N | N29: N | O29: N | P29: - | Q29: =IFERROR(IF(dms_MAIFI_flag="Yes","N","Y"),"Y") -> Y | R29: N | S29: N | T29: Y | U29: Y | V29: N | W29: =IFERROR(LEFT(dms_MAIFI_flag),"N") -> N | X29: =IF('AER CF'!$C29="Vic","Y","N") -> N
B30: Roma to Brisbane Pipeline | C30: Qld | D30: Gas | E30: Transmission | F30: - | G30: - | H30: - | I30: - | J30: - | K30: - | L30: - | M30: - | N30: - | O30: - | P30: - | Q30: - | R30: - | S30: - | T30: - | U30: - | V30: - | W30: - | X30: - | Y30: -
B31: SA Power Networks | C31: SA | D31: Electricity | E31: Distribution | G31: Y | H31: N | K31: N | L31: N | M31: N | N31: N | O31: N | P31: N | Q31: =IFERROR(IF(dms_MAIFI_flag="Yes","N","Y"),"Y") -> Y | R31: Y | S31: N | T31: Y | U31: N | V31: N | W31: =IFERROR(LEFT(dms_MAIFI_flag),"N") -> N | X31: =IF('AER CF'!$C31="Vic","Y","N") -> N
B32: TasNetworks (D) | C32: Tas | D32: Electricity | E32: Distribution | G32: Y | H32: N | K32: N | L32: N | M32: N | N32: N | O32: N | P32: N | Q32: =IFERROR(IF(dms_MAIFI_flag="Yes","N","Y"),"Y") -> Y | R32: Y | S32: N | T32: Y | U32: Y | V32: N | W32: =IFERROR(LEFT(dms_MAIFI_flag),"N") -> N | X32: =IF('AER CF'!$C32="Vic","Y","N") -> N
B33: TasNetworks (T) | C33: Tas | D33: Electricity | E33: Transmission | G33: N | K33: N | L33: N | M33: N | N33: N | O33: N | P33: - | Q33: =IFERROR(IF(dms_MAIFI_flag="Yes","N","Y"),"Y") -> Y | R33: N | S33: N | T33: Y | U33: Y | V33: N | W33: =IFERROR(LEFT(dms_MAIFI_flag),"N") -> N | X33: =IF('AER CF'!$C33="Vic","Y","N") -> N
B34: TransGrid | C34: NSW | D34: Electricity | E34: Transmission | G34: N | K34: N | L34: N | M34: N | N34: N | O34: N | P34: - | Q34: =IFERROR(IF(dms_MAIFI_flag="Yes","N","Y"),"Y") -> Y | R34: N | S34: N | T34: Y | U34: Y | V34: N | W34: =IFERROR(LEFT(dms_MAIFI_flag),"N") -> N | X34: =IF('AER CF'!$C34="Vic","Y","N") -> N
B35: United Energy | C35: Vic | D35: Electricity | E35: Distribution | G35: N | H35: N | K35: N | L35: N | M35: N | N35: N | O35: N | P35: N | Q35: =IFERROR(IF(dms_MAIFI_flag="Yes","N","Y"),"Y") -> Y | R35: N | S35: N | T35: N | U35: Y | V35: N | W35: =IFERROR(LEFT(dms_MAIFI_flag),"N") -> N | X35: =IF('AER CF'!$C35="Vic","Y","N") -> Y
B38: Confidential
B39: Amended
B41: Worksheet 6.2 STPIS reliability
B42: Formula | F42: Applied to:
B44: =INDEX(dms_CBD_flag,MATCH(dms_TradingName,dms_TradingName_List))="NO" | F44: $D$11,$D$17,$D$23,$D$33,$D$39,$D$45,$D$55,$D$61,$D$67,$D$77,$D$83,$D$89
B45: =INDEX(dms_Urban_flag,MATCH(dms_TradingName,dms_TradingName_List))="NO" | F45: $D$12,$D$18,$D$24,$D$56,$D$62,$D$78,$D$68,$D$84
B46: =INDEX(dms_ShortRural_flag,MATCH(dms_TradingName,dms_TradingName_List))="NO" | F46: $D$13,$D$19,$D$25,$D$57,$D$63,$D$69,$D$79,$D$85
B47: =INDEX(dms_LongRural_flag,MATCH(dms_TradingName,dms_TradingName_List))="NO" | F47: $D$14,$D$20,$D$26,$D$58,$D$64,$D$65,$D$70,$D$71,$D$80,$D$86
B48: =INDEX(dms_FeederType_5_flag,MATCH(dms_TradingName,dms_TradingName_List))="NO" | F48: $D$87,$D$81,$D$71,$D$65,$D$59,$D$49,$D$43,$D$37,$D$21,$D$15
B49: =dms_MAIFI_Flag="No" | F49: $D$55:$D$72
B52: Business & other details
B53: =(INDEX(dms_Model_Span,MATCH(dms_Model,dms_Model_List))>1)
B54: =(INDEX(dms_Model_Span,MATCH(dms_Model,dms_Model_List))=1)
B57: STYLES IN USE
B58: HEADING ONE | C58: dms_1
B59: HEADING TWO | C59: dms_2
B60: HEADING THREE | C60: dms_3
B61: HEADING FOUR | C61: dms_4
B62: HEADING FIVE | C62: dms_5
B63: 5.111 | C63: dms_NUM
B64: 0.0545 | C64: dms_NUM%
B65: 5.5555 | C65: dms_NUM3d
B66: Text description | C66: dms_Row_Locked
B67: Text description | C67: dms_Row1
B68: Text description | C68: dms_Row2
B69: Total | C69: dms_T1
B70: Total | C70: dms_T2
B71: EXPENSES | C71: dms_BH
B72: 2019 | C72: dms_BY1
B73: 2019 | C73: dms_BY2
B74: VOLUMES | C74: dms_GH
B75: 2019 | C75: dms_GY1
B76: 2019 | C76: dms_GY2

Sheet AER NRs (hidden)
B1: AER NAMED RANGES
B3: DROP DOWN SELECTORS USED IN WORKBOOKS
B5: COVER SHEET | C5: dms_DataQuality_List | D5: dms_Confid_status_List
C6: -- select -- | D6: -- select --
C7: Actual | D7: Public
C8: Estimate | D8: Confidential
C9: Consolidated
C12: For all files either AER or business needs to be able to specify the type of submission | D12: For PTRM & RFM templates we must provide a choice in case they change their form of control - otherwise it is drawn from the business specific lookup table above.
C13: dms_SourceList | D13: dms_FormControl_Choices
C14: -- select -- | D14: Revenue cap
C15: After appeal | D15: Revenue yield
C16: Draft decision | D16: Tariff cap
C17: Final decision | D17: Weighted average price cap
C18: PTRM update 1
C19: PTRM update 2
C20: PTRM update 3
C21: PTRM update 4
C22: PTRM update 5
C23: PTRM update 6
C24: PTRM update 7
C25: Reallocated
C26: Recast
C27: Regulatory proposal
C28: Reporting
C29: Revised regulatory proposal
K32: This is used to create an image to insert on 6.3 STPIS sheet - not for dropdown lists. | N32: GAS
B33: CA & RESET RINS DNSP | C33: dms_DNSP_020301_SubstationType | D33: dms_DNSP_020301_ProjectType | E33: dms_DNSP_020301_ProjectTrigger | F33: dms_DNSP_020302_ProjectType | G33: dms_DNSP_020302_ProjectTrigger | H33: dms_STPIS_Exclusion_List | I33: dms_Reason_Interruption | J33: dms_Reason_Interruption_Detailed | K33: Reason for interruption | N33: dms_N0205_AssetType
C34: Subtransmission substation | D34: New substation establishment | E34: Demand growth | F34: New line on new route - single circuit | G34: Demand growth | H34: Weather | I34: Animal | J34: Animal impact | K34: Animal | L34: Animal impact | N34: Cast Iron
C35: Zone substation | D35: Substation upgrade - capacity | E35: Voltage issues | F35: New line on new route - dual circuit | G35: Voltage issues | H35: Equipment failure | I35: Asset failure | J35: Animal nesting/burrowing, etc and other | L35: Animal nesting/burrowing, etc and other | N35: PVC
C36: Switching station | D36: Substation upgrade - voltage | E36: Reactive power issue | F36: New line on new route - other | G36: Reactive power issue | H36: Operational error | I36: Other | J36: Other | L36: Other | N36: Polyamide
C37: Other | D37: Other | E37: Fault level issues | F37: Line rebuild over existing route - single circuit | G37: Fault level issues | H37: Vegetation | I37: Overloads | J37: LV | K37: Asset failure | L37: LV | N37: High density polyethylene (80)
E38: Safety | F38: Line rebuild over existing route - dual circuit | G38: Net market benefit | H38: Animals | I38: Planned | J38: Distribution substation | L38: Distribution substation | N38: High density polyethylene (100)
E39: Environment | F39: Reconductor - Single circuit | G39: Safety | H39: Third party impacts | I39: Network business | J39: HV | L39: HV | N39: High density polyethylene (250)
E40: Other | F40: Reconductor - Dual circuit | G40: Environment | H40: Transmission failure | I40: Third party | J40: Zone substation | L40: Zone substation | N40: High density polyethylene (575)
F41: Reconductor - Other | G41: Other | H41: Load shedding | I41: Unknown | J41: Subtransmission | L41: Subtransmission | N41: Medium density polyethylene
F42: Line upgrade - raising/retensoring | H42: Inter-distributor connection failure | I42: Vegetation | J42: insert description of 'other' | K42: Other | L42: insert description of 'other' | N42: Unprotected steel
F43: Line upgrade - voltage upgrade | H43: Other | I43: Weather | J43: Network error | K43: Overloads | N43: Protected steel
F44: Line upgrade - capacity | I44: 2 - STPIS Exclusion (3.3)(a) | J44: Switching and protection error | K44: Planned | N44: Other
F45: String spare circuit | I45: 3 - STPIS Exclusion (3.3)(a) | J45: Fire | K45: Network business | L45: Network error
F46: Other | I46: 4 - STPIS Exclusion (3.3)(a) | J46: Other | L46: Switching and protection error
I47: 5 - STPIS Exclusion (3.3)(a) | J47: Dig-in | K47: Third party | L47: Fire
I48: 6 - STPIS Exclusion (3.3)(a) | J48: Unauthorised access | L48: Other
I49: 7 - STPIS Exclusion (3.3)(a) | J49: Vehicle impact | L49: Dig-in
J50: Unknown | L50: Unauthorised access
J51: Blow-in/Fall-in - NSP responsibility | L51: Vehicle impact
J52: Grow-in - NSP responsibility | K52: Unknown | L52: Unknown
J53: Blow-in/Fall-in - Other responsible party | K53: Vegetation | L53: Blow-in/Fall-in - NSP responsibility
J54: Grow-in - Other responsible party | L54: Grow-in - NSP responsibility
L55: Blow-in/Fall-in - Other responsible party
L56: Grow-in - Other responsible party
K57: Weather
K58: 2 - STPIS Exclusion (3.3)(a)
K59: 3 - STPIS Exclusion (3.3)(a)
K60: 4 - STPIS Exclusion (3.3)(a)
K61: 5 - STPIS Exclusion (3.3)(a)
K62: 6 - STPIS Exclusion (3.3)(a)
K63: 7 - STPIS Exclusion (3.3)(a)
B66: CA & RESET RINS TNSP | C66: dms_TNSP_0203_SubstationType | D66: dms_TNSP_020301_ProjectType | E66: dms_TNSP_020301_ProjectTrigger | F66: dms_TNSP_020302_ProjectType | G66: dms_TNSP_0203_ProjectTrigger
C67: Terminal station | D67: New substation establishment | E67: Demand growth | F67: New line on new route - single circuit | G67: Demand growth
C68: Switching station | D68: Capacity upgrade | E68: Voltage issues | F68: New line on new route - dual circuit | G68: Voltage issues
C69: Transmission substation | D69: Voltage upgrade | E69: Reactive power issue | F69: New line on new route - other | G69: Reactive power issue
C70: Other | D70: Other | E70: Fault level issues | F70: Line rebuild over existing route - single circuit | G70: Fault level issues
E71: Net market benefit | F71: Line rebuild over existing route - dual circuit | G71: Net market benefit
E72: Safety | F72: Reconductor - Single circuit | G72: Safety
E73: Environment | F73: Reconductor - Dual circuit | G73: Environment
E74: Other | F74: Reconductor - Other | G74: Other
F75: Line upgrade - raising/retensoring
F76: Line upgrade - voltage upgrade
F77: Line upgrade - capacity
F78: String spare circuit
F79: Other
B83: NAMED RANGES USED IN ETL PROCESS
M84: GAS ARR & RESET
B85: CA & RESET RINS DNSP ONLY | C85: dms_020303_01_UOM | D85: dms_020501_01_UOM | E85: dms_020501_02_UOM | F85: dms_020501_03_UOM | G85: dms_020501_04_UOM | H85: dms_020701_01_UOM | I85: dms_020701_02_UOM | J85: dms_020701_01_Rows | K85: dms_040102_01_UOM | L85: dms_040102_04_UOM | M85: dms_S140101_UOM | N85: dms_S140201_UOM | O85: dms_E050201_UOM | P85: dms_E050202_UOM
C86: Circuit line length in km | D86: 0's | E86: 0's | F86: 0's | G86: 0's | H86: km | I86: km | J86: Route line length within zone | K86: 0's | L86: days | M86: number | N86: number per km | O86: per metre per connection | P86: metres per connection
C87: Circuit line length in km | D87: 0's | E87: 0's | F87: 0's | G87: 0's | H87: 0's | I87: 0's | J87: Number of maintenance spans | K87: 0's | L87: 0's | M87: number | N87: number | O87: per service per connection | P87: number per connection
C88: Circuit line length in km | D88: MVA added | E88: MVA added | F88: MVA added | G88: MVA added | H88: km | I88: km | J88: Total length of maintenance spans | K88: 0's | L88: $0s | M88: number | N88: number | O88: number per connection | P88: number per connection
C89: Circuit line length in km | D89: 0's | E89: 0's | F89: 0's | G89: 0's | H89: km | I89: km | J89: Length of vegetation corridors | K89: $0s | L89: 0's | M89: km
C90: Number | D90: total spend $0s | E90: total spend $0s | F90: total spend $0s | G90: total spend $0s | H90: 0's | I90: 0's | J90: Average number of trees per maintenance span
C91: Number | D91: net circuit km added | E91: net circuit km added | F91: net circuit km added | G91: net circuit km added | H91: years | I91: years | J91: Average frequency of cutting cycle
C92: Number | D92: total spend $0s | E92: total spend $0s | F92: total spend $0s | G92: total spend $0s
D93: net circuit km added | E93: net circuit km added | F93: net circuit km added | G93: net circuit km added
D94: total spend $0s | E94: total spend $0s | F94: total spend $0s | G94: total spend $0s
D95: 0's | F95: $0s
D96: 0's
D97: 0's
D98: $0s
B101: CA & RESET RINS TNSP ONLY | C101: dms_020701_01_UOM
C102: km
C103: 0's
C104: km
C105: 0's
C106: km
C107: metres
C108: years
B111: CA & RESET RINS DNSP & TNSP | C111: dms_020603_01_UOM
C112: 0's
C113: 0's
C114: 0's
C115: 0's
C116: (per cent)
B119: EB & RESET RINS DNSP ONLY | C119: dms_030601_01_UOM | D119: dms_030601_02_UOM | E119: dms_030701_01_UOM | F119: dms_030702_01_UOM | G119: dms_030703_01_UOM
C120: minutes/customer | D120: minutes/customer | E120: Customer / km | F120: % | G120: km
C121: minutes/customer | D121: minutes/customer | E121: MWh/customer | F121: Number of spans
C122: interruptions/customer | D122: interruptions/customer | E122: kVA / customer | F122: Number of spans
C123: interruptions/customer | D123: interruptions/customer | F123: Number of spans
F124: Number of spans
F125: Years
F126: Years
F127: Trees
F128: Trees
F129: Defects
F130: Defects
F131: Spans
F132: km
F133: Spans
C135: WHEN INSERTING COVER SHEET INTO A TNSP FILE - APPLY THESE NAMED RANGES
B136: EB & RESET RINS TNSP ONLY | C136: dms_030601_01_UOM | E136: dms_030701_01_UOM | F136: dms_030702_01_UOM
C137: % | E137: Number of spans | F137: km
C138: number | E138: Years | F138: %
C139: number | E139: Trees | F139: km
C140: % | E140: Defects | F140: number
C141: number | E141: Number of spans
C142: number | E142: km
C143: % | E143: km
C144: number | E144: Number of spans
C145: number
C146: %
C147: number
C148: %
C149: number
C150: %
C151: number
B153: EB & RESET RINS DNSP & TNSP | C153: dms_EB_RAB_PIT
C154: Beginning of year
C155: End of year
C156: End of year
C157: End of year
C158: End of year
C159: End of year
B161: ARR DNSP ONLY | C161: dms_030605_UOM | D161: dms_03060703_UOM | E161: dms_E020202_UOM | F161: Spare
C162: number | D162: number | E162: Length of mains replaced
C163: number | D163: number | E163: Number of services replaced
C164: number | D164: number
C165: number | D165: number
C166: number | D166: (per cent)
C167: number
C168: number
C169: number
C170: number
C171: number
C172: number
C173: number
C174: (per cent)
C175: (per cent)
B177: RFM | C177: dms_Beg | D177: dms_Mid | E177: dms_End
C178: Beginning of year | D178: Mid year | E178: End of Year
B180: PTRM | C180: dms_PTRM_RAB_PIT | D180: dms_PTRM_TAB_PIT | E180: DMS_Xfactor
C181: Beginning of year | D181: Beginning of year | E181: x factors
C182: End of year | D182: End of year
C183: End of year | D183: End of year
C184: End of year | D184: End of year
C185: End of year
B188: STPIS & MIC NAMED RANGES
B190: These "row descriptions" are the column headings in the various templates but become row descriptions in the ETL process
B192: Table 6.3 sustained interruptions - row descriptions | C192: dms_060301_CustNo_Affected_Row | D192: dms_060301_Avg_Duration_Sustained_Int_Row | E192: dms_060301_Effect_unplanned_SAIDI_Row | F192: dms_060301_Effect_unplanned_SAIFI_Row
C193: Number of customers affected by the interruption | D193: Average duration of sustained customer interruption | E193: Effect on unplanned SAIDI | F193: Effect on unplanned SAIFI
B196: Table 6.1 telephone answering - row descriptions and start date | C196: dms_060101_Rows | D196: dms_060102_Rows | E196: dms_060101_StartDateTxt
C197: Total number of calls (after removing excluded events) | D197: Number of calls answered within 30 seconds (after excluding excluded events) | E197: =dms_060701_StartDateTxt -> 1-Jul-2016
B200: Table 6.8.1 - row descriptions | C200: dms_060801_01_Rows | D200: dms_060801_02_Rows | E200: dms_060801_03_Rows | F200: dms_060801_04_Rows
C201: Number of interruptions | D201: Duration of interruptions | E201: Total unplanned minutes off supply | F201: Effect on unplanned MAIFI
B204: Table 7.9.4 - market impact component - row descriptions | C204: dms_070904_01_Rows | D204: without exclusions | E204: with exclusions
B207: These headings (Lists) are determined from the INDEX/MATCH function on the NSP selected on the Business & other details sheet
B209: Table 6.7.1 - daily performance data - unplanned - MAIFI -- row descriptions and header named range values | C209: dms_060701_Feeder_Header_Lvl4 | D209: =INDEX(dms_FeederName_1,MATCH(dms_TradingName,dms_TradingName_List)) -> CBD | E209: =INDEX(dms_FeederName_1,MATCH(dms_TradingName,dms_TradingName_List)) -> CBD | F209: =INDEX(dms_FeederName_2,MATCH(dms_TradingName,dms_TradingName_List)) -> Urban | G209: =INDEX(dms_FeederName_2,MATCH(dms_TradingName,dms_TradingName_List)) -> Urban | H209: =INDEX(dms_FeederName_3,MATCH(dms_TradingName,dms_TradingName_List)) -> Short rural | I209: =INDEX(dms_FeederName_3,MATCH(dms_TradingName,dms_TradingName_List)) -> Short rural | J209: =INDEX(dms_FeederName_4,MATCH(dms_TradingName,dms_TradingName_List)) -> Long rural | K209: =INDEX(dms_FeederName_4,MATCH(dms_TradingName,dms_TradingName_List)) -> Long rural | L209: =IF((INDEX(dms_FeederName_5,MATCH(dms_TradingName,dms_TradingName_List))=0),"Network",(INDEX(dms_FeederName_5,MATCH(dms_TradingName,dms_TradingName_List)))) -> Network | M209: =IF((INDEX(dms_FeederName_5,MATCH(dms_TradingName,dms_TradingName_List))=0),"Network",(INDEX(dms_FeederName_5,MATCH(dms_TradingName,dms_TradingName_List)))) -> Network | N209: Network | O209: Network
C211: dms_060701_Rows | D211: All events | E211: After removing excluded events | F211: All events | G211: After removing excluded events | H211: All events | I211: After removing excluded events | J211: All events | K211: After removing excluded events | L211: All events | M211: After removing excluded events | N211: All events | O211: After removing excluded events
D212: the number of column headings changes from 10 to 12 depending on the number of feeder categories for the NSP
C214: dms_0603_FeederList | D214: =INDEX(dms_FeederName_1,MATCH(dms_TradingName,dms_TradingName_List)) -> CBD | E214: =INDEX(dms_FeederName_2,MATCH(dms_TradingName,dms_TradingName_List)) -> Urban | F214: =INDEX(dms_FeederName_3,MATCH(dms_TradingName,dms_TradingName_List)) -> Short rural | G214: =INDEX(dms_FeederName_4,MATCH(dms_TradingName,dms_TradingName_List)) -> Long rural
B217: Use these to add to specific worksheets in existing files | C217: Use these to add to specific worksheets in existing files
B220: ARRs 6.7 STPIS daily performance | C220: dms_060101_Values | D220: dms_060102_Values | E220: dms_060701_Values
C221: dms_LeapYear
B224: ARR's 6.8 STPIS exclusions | C224: dms_060801_Event_Date | D224: dms_060801_OutageID | E224: dms_060801_FeederID | F224: dms_060801_FeederClass | G224: dms_060801_CauseID | H224: dms_060801_01_Values | I224: dms_060801_02_Values | J224: dms_060801_03_Values | K224: dms_060801_Excl_Cat | L224: dms_060801_04_Values
C225: dms_060801_StartCell
B228: CA 6.3 sustained interruptions | C228: dms_060301_Event_Date | D228: dms_060301_Event_Time | E228: dms_060301_AssetID | F228: dms_060301_FeederClass | G228: dms_060301_Reason | H228: dms_060301_DetailedReason | I228: dms_060301_CustNo_Affected_Values | J228: dms_060301_Avg_Duration_Sustained_Int_Values | K228: dms_060301_Effect_unplanned_SAIDI_Values | L228: dms_060301_Effect_unplanned_SAIFI_Values | M228: dms_060301_MED
B232: PTRM input sheet | C232: DMS_50_01_01a | D232: DMS_50_01_01aa | E232: DMS_50_01_01b | F232: DMS_50_01_01bb | G232: DMS_50_01_01c | H232: DMS_50_01_01d | I232: DMS_50_01_01dd

Sheet AER lookups (hidden)
B1: AER LOOKUP TABLES
B3: Data in these columns used for data validation and database purposes.
B4: Date last modified: | C4: 2017-01-16 | D4: added (Albury and Victora) for AGN
C5: 2016-10-17 | D5: updated TransGrid's correct legal name, corrected TasNetworks (T) to June financial year
C6: 2017-02-01 | D6: inserted Power and Water, added NRs (dms_FeederCat_1 and dms_FeederCat_2)
C7: 2017-03-03 | D7: inserted AEMO as a business
C8: 2018-03-28 | D8: major changes to accommodate STPIS
C9: Template Version | D9: 5
Z11: FOR ELECTRICITY BUSINESSES ONLY
Z12: Feeder Types | AD12: TasNetworks (D) | AE12: Feeder Names
Z14: CBD | AA14: Urban | AB14: Short rural | AC14: long rural | AD14: EXTRA
B15: dms_TradingName_List | C15: dms_TradingNameFull_List | D15: dms_ABN_List | E15: dms_JurisdictionList | F15: dms_Sector_List | G15: dms_Segment_List | H15: dms_FormControl_List | I15: dms_RPT_List | J15: dms_RPTMonth_List | K15: dms_CRCPlength_List | L15: dms_FRCPlength_List | M15: dms_PRCPlength_List | N15: dms_663_List | O15: dms_DeterminationRef_List | P15: dms_Addr1_List | Q15: dms_Addr2_List | R15: dms_Suburb_List | S15: dms_State_List | T15: dms_PostCode_List | U15: dms_PAddr1_List | V15: dms_PAddr2_List | W15: dms_PSuburb_List | X15: dms_PState_List | Y15: dms_PPostCode_List | Z15: dms_CBD_flag | AA15: dms_Urban_flag | AB15: dms_ShortRural_flag | AC15: dms_LongRural_flag | AD15: dms_FeederType_5_flag | AE15: dms_FeederName_1 | AF15: dms_FeederName_2 | AG15: dms_FeederName_3 | AH15: dms_FeederName_4 | AI15: dms_FeederName_5 | AJ15: dms_Public_Lighting_List | AK15: Name
B16: Murraylink | C16: Murraylink Transmission Company Pty Ltd | D16: 42 089 875 605 | E16: SA | F16: Electricity | G16: Transmission | H16: Revenue cap | I16: Financial | J16: June | K16: 5 | L16: 5 | M16: 5 | N16: 5 | O16: transmission determination | P16: Level 19 | Q16: 580 George Street | R16: SYDNEY | S16: NSW | T16: 2000 | U16: PO Box R41 | W16: ROYAL EXCHANGE | X16: NSW | Y16: 1225 | Z16: NO | AA16: NO | AB16: NO | AC16: NO | AD16: NO | AE16: CBD | AF16: Urban | AG16: Short rural | AH16: Long rural | AJ16: NO | AK16: =B16 -> Murraylink
B21: The Reg Year Ending (dms_RYE) must be set to the last year of the regulatory period. For forecast data is is usually (FRCP_y5) for actual it is a single year (CRY). For historical actual data the RYE will need to be set manually in the business details sheet by setting the dms_Multiyear_flag to 1 and putting the correct value in 'dms_Specified_FinalYear. See cells C67:C68
B22: dms_Model_List | C22: dms_Model_Name_Format1 | D22: dms_Worksheet_List | E22: dms_Model_Span_List
B23: ARR | C23: Annual Reporting | D23: =IF(dms_MultiYear_ResponseFlag="yes","NEW HISTORICAL ANNUAL REPORTING","ANNUAL REPORTING") -> ANNUAL REPORTING | E23: 1
B24: CA | C24: Category Analysis | D24: =IF(dms_MultiYear_ResponseFlag="yes","NEW HISTORICAL CATEGORY ANALYSIS","CATEGORY ANALYSIS") -> CATEGORY ANALYSIS | E24: 1
B25: CESS | C25: Capitlal Expenditure | D25: CAPITLAL EXPENDITURE SHARING SCHEMING | E25: 5
B26: CPI | C26: CPI | D26: CPI | E26: 5
B27: EB | C27: Economic Benchmarking | D27: =IF(dms_MultiYear_ResponseFlag="yes","NEW HISTORICAL ECONOMIC BENCHMARKING","ECONOMIC BENCHMARKING") -> ECONOMIC BENCHMARKING | E27: 1
B28: EBSS | C28: Efficiency Benefit Sharing Scheme | D28: EFFICIENCY BENEFIT SHARING SCHEME | E28: 5
B29: Pricing | C29: Pricing Proposal | D29: PRICING PROPOSAL | E29: 5
B30: Profitability | C30: Profitability | D30: PROFITABILITY | E30: 5
B31: PTRM | C31: Post Tax Revenue Model | D31: POST TAX REVENUE MODEL | E31: 5
B32: Reset | C32: Regulatory Reporting (Reset) | D32: REGULATORY REPORTING STATEMENT | E32: 5
B33: RFM | C33: Roll Forward Model | D33: ROLL FORWARD MODEL | E33: 5
B34: WACC | C34: Weighted Average Cost of Capital | D34: WEIGHTED AVERAGE COST OF CAPITAL | E34: 1
B38: Financial | C38: Calendar | E38: PREVIOUS | G38: CURRENT | I38: FORTHCOMING
B39: 1987-88 | C39: 1988 | D39: PRCP_y1 | E39: =INDEX(INDIRECT(dms_RPT),dms_PRCP_start_row) -> 2013-14 | F39: CRCP_y1 | G39: =INDEX(INDIRECT(dms_RPT),dms_CRCP_start_row) -> 2018-19 | H39: =FRCP_y1 -> 2023-24 | I39: =INDEX(INDIRECT(dms_RPT),dms_FRCP_start_row) -> 2023-24
B40: 1988-89 | C40: 1989 | D40: PRCP_y2 | E40: =INDEX(INDIRECT(dms_RPT),dms_PRCP_start_row+1) -> 2014-15 | F40: CRCP_y2 | G40: =INDEX(INDIRECT(dms_RPT),dms_CRCP_start_row+1) -> 2019-20 | H40: FRCP_y2 | I40: =INDEX(INDIRECT(dms_RPT),dms_FRCP_start_row+1) -> 2024-25
B41: 1989-90 | C41: 1990 | D41: PRCP_y3 | E41: =INDEX(INDIRECT(dms_RPT),dms_PRCP_start_row+2) -> 2015-16 | F41: CRCP_y3 | G41: =INDEX(INDIRECT(dms_RPT),dms_CRCP_start_row+2) -> 2020-21 | H41: FRCP_y3 | I41: =INDEX(INDIRECT(dms_RPT),dms_FRCP_start_row+2) -> 2025-26
B42: 1990-91 | C42: 1991 | D42: PRCP_y4 | E42: =INDEX(INDIRECT(dms_RPT),dms_PRCP_start_row+3) -> 2016-17 | F42: CRCP_y4 | G42: =INDEX(INDIRECT(dms_RPT),dms_CRCP_start_row+3) -> 2021-22 | H42: FRCP_y4 | I42: =INDEX(INDIRECT(dms_RPT),dms_FRCP_start_row+3) -> 2026-27
B43: 1991-92 | C43: 1992 | D43: PRCP_y5 | E43: =INDEX(INDIRECT(dms_RPT),dms_PRCP_start_row+4) -> 2017-18 | F43: CRCP_y5 | G43: =INDEX(INDIRECT(dms_RPT),dms_CRCP_start_row+4) -> 2022-23 | H43: FRCP_y5 | I43: =INDEX(INDIRECT(dms_RPT),dms_FRCP_start_row+4) -> 2027-28
B44: 1992-93 | C44: 1993 | D44: PRCP_y6 | E44: =INDEX(INDIRECT(dms_RPT),dms_PRCP_start_row+5) -> 2018-19 | F44: CRCP_y6 | G44: =INDEX(INDIRECT(dms_RPT),dms_CRCP_start_row+5) -> 2023-24 | H44: FRCP_y6 | I44: =INDEX(INDIRECT(dms_RPT),dms_FRCP_start_row+5) -> 2028-29
B45: 1993-94 | C45: 1994 | D45: PRCP_y7 | E45: =INDEX(INDIRECT(dms_RPT),dms_PRCP_start_row+6) -> 2019-20 | F45: CRCP_y7 | G45: =INDEX(INDIRECT(dms_RPT),dms_CRCP_start_row+6) -> 2024-25 | H45: FRCP_y7 | I45: =INDEX(INDIRECT(dms_RPT),dms_FRCP_start_row+6) -> 2029-30
B46: 1994-95 | C46: 1995 | D46: PRCP_y8 | E46: =INDEX(INDIRECT(dms_RPT),dms_PRCP_start_row+7) -> 2020-21 | F46: CRCP_y8 | G46: =INDEX(INDIRECT(dms_RPT),dms_CRCP_start_row+7) -> 2025-26 | H46: FRCP_y8 | I46: =INDEX(INDIRECT(dms_RPT),dms_FRCP_start_row+7) -> 2030-31
B47: 1995-96 | C47: 1996 | D47: PRCP_y9 | E47: =INDEX(INDIRECT(dms_RPT),dms_PRCP_start_row+8) -> 2021-22 | F47: CRCP_y9 | G47: =INDEX(INDIRECT(dms_RPT),dms_CRCP_start_row+8) -> 2026-27 | H47: FRCP_y9 | I47: =INDEX(INDIRECT(dms_RPT),dms_FRCP_start_row+8) -> 2031-32
B48: 1996-97 | C48: 1997 | D48: PRCP_y10 | E48: =INDEX(INDIRECT(dms_RPT),dms_PRCP_start_row+9) -> 2022-23 | F48: CRCP_y10 | G48: =INDEX(INDIRECT(dms_RPT),dms_CRCP_start_row+9) -> 2027-28 | H48: FRCP_y10 | I48: =INDEX(INDIRECT(dms_RPT),dms_FRCP_start_row+9) -> 2032-33
B49: 1997-98 | C49: 1998 | D49: PRCP_y11 | E49: =INDEX(INDIRECT(dms_RPT),dms_PRCP_start_row+10) -> 2023-24 | F49: CRCP_y11 | G49: =INDEX(INDIRECT(dms_RPT),dms_CRCP_start_row+10) -> 2028-29 | H49: FRCP_y11 | I49: =INDEX(INDIRECT(dms_RPT),dms_FRCP_start_row+10) -> 2033-34
B50: 1998-99 | C50: 1999 | D50: PRCP_y12 | E50: =INDEX(INDIRECT(dms_RPT),dms_PRCP_start_row+11) -> 2024-25 | F50: CRCP_y12 | G50: =INDEX(INDIRECT(dms_RPT),dms_CRCP_start_row+11) -> 2029-30 | H50: FRCP_y12 | I50: =INDEX(INDIRECT(dms_RPT),dms_FRCP_start_row+11) -> 2034-35
B51: 1999-00 | C51: 2000 | D51: PRCP_y13 | E51: =INDEX(INDIRECT(dms_RPT),dms_PRCP_start_row+12) -> 2025-26 | F51: CRCP_y13 | G51: =INDEX(INDIRECT(dms_RPT),dms_CRCP_start_row+12) -> 2030-31 | H51: FRCP_y13 | I51: =INDEX(INDIRECT(dms_RPT),dms_FRCP_start_row+12) -> 2035-36
B52: 2000-01 | C52: 2001 | D52: PRCP_y14 | E52: =INDEX(INDIRECT(dms_RPT),dms_PRCP_start_row+13) -> 2026-27 | F52: CRCP_y14 | G52: =INDEX(INDIRECT(dms_RPT),dms_CRCP_start_row+13) -> 2031-32 | H52: FRCP_y14 | I52: =INDEX(INDIRECT(dms_RPT),dms_FRCP_start_row+13) -> 2036-37
B53: 2001-02 | C53: 2002 | D53: PRCP_y15 | E53: =INDEX(INDIRECT(dms_RPT),dms_PRCP_start_row+14) -> 2027-28 | F53: CRCP_y15 | G53: =INDEX(INDIRECT(dms_RPT),dms_CRCP_start_row+14) -> 2032-33 | H53: FRCP_y15 | I53: =INDEX(INDIRECT(dms_RPT),dms_FRCP_start_row+14) -> 
B54: 2002-03 | C54: 2003 | D54: PRCP_y16 | E54: =INDEX(INDIRECT(dms_RPT),dms_PRCP_start_row+15) -> 2028-29 | F54: CRCP_y16 | G54: =INDEX(INDIRECT(dms_RPT),dms_CRCP_start_row+15) -> 2033-34 | H54: FRCP_y16 | I54: =INDEX(INDIRECT(dms_RPT),dms_FRCP_start_row+15) -> 
B55: 2003-04 | C55: 2004
B56: 2004-05 | C56: 2005
B57: 2005-06 | C57: 2006 | E57: CRY - FRY
B58: 2006-07 | C58: 2007 | D58: dms_y1 | E58: =IFERROR(INDEX(INDIRECT(dms_RPT),dms_CRY_start_row),0) -> 2018-19
B59: 2007-08 | C59: 2008 | D59: dms_y2 | E59: =IFERROR(INDEX(INDIRECT(dms_RPT),dms_CRY_start_row+1),0) -> 2019-20
B60: 2008-09 | C60: 2009 | D60: dms_y3 | E60: =IFERROR(INDEX(INDIRECT(dms_RPT),dms_CRY_start_row+2),0) -> 2020-21
B61: 2009-10 | C61: 2010 | D61: dms_y4 | E61: =IFERROR(INDEX(INDIRECT(dms_RPT),dms_CRY_start_row+3),0) -> 2021-22
B62: 2010-11 | C62: 2011 | D62: dms_y5 | E62: =IFERROR(INDEX(INDIRECT(dms_RPT),dms_CRY_start_row+4),0) -> 2022-23
B63: 2011-12 | C63: 2012 | D63: dms_y6 | E63: =IFERROR(INDEX(INDIRECT(dms_RPT),dms_CRY_start_row+5),0) -> 2023-24
B64: 2012-13 | C64: 2013 | D64: dms_y7 | E64: =IFERROR(INDEX(INDIRECT(dms_RPT),dms_CRY_start_row+6),0) -> 2024-25
B65: 2013-14 | C65: 2014 | D65: dms_y8 | E65: =IFERROR(INDEX(INDIRECT(dms_RPT),dms_CRY_start_row+7),0) -> 2025-26
B66: 2014-15 | C66: 2015 | D66: dms_y9 | E66: =IFERROR(INDEX(INDIRECT(dms_RPT),dms_CRY_start_row+8),0) -> 2026-27
B67: 2015-16 | C67: 2016 | D67: dms_y10 | E67: =IFERROR(INDEX(INDIRECT(dms_RPT),dms_CRY_start_row+9),0) -> 2027-28
B68: 2016-17 | C68: 2017 | D68: dms_y11 | E68: =IFERROR(INDEX(INDIRECT(dms_RPT),dms_CRY_start_row+10),0) -> 2028-29
B69: 2017-18 | C69: 2018 | D69: dms_y12 | E69: =IFERROR(INDEX(INDIRECT(dms_RPT),dms_CRY_start_row+11),0) -> 2029-30
B70: 2018-19 | C70: 2019 | D70: dms_y13 | E70: =IFERROR(INDEX(INDIRECT(dms_RPT),dms_CRY_start_row+12),0) -> 2030-31
B71: 2019-20 | C71: 2020 | D71: dms_y14 | E71: =IFERROR(INDEX(INDIRECT(dms_RPT),dms_CRY_start_row+13),0) -> 2031-32
B72: 2020-21 | C72: 2021 | D72: dms_y15 | E72: =IFERROR(INDEX(INDIRECT(dms_RPT),dms_CRY_start_row+14),0) -> 2032-33
B73: 2021-22 | C73: 2022 | D73: dms_y16 | E73: =IFERROR(INDEX(INDIRECT(dms_RPT),dms_CRY_start_row+15),0) -> 2033-34
B74: 2022-23 | C74: 2023
B75: 2023-24 | C75: 2024
B76: 2024-25 | C76: 2025
B77: 2025-26 | C77: 2026
B78: 2026-27 | C78: 2027
B79: 2027-28 | C79: 2028
B80: 2028-29 | C80: 2029
B81: 2029-30 | C81: 2030
B82: 2030-31 | C82: 2031
B83: 2031-32 | C83: 2032
B84: 2032-33 | C84: 2033
B85: 2033-34 | C85: 2034
B86: 2034-35 | C86: 2035
B87: 2035-36 | C87: 2036
B88: 2036-37 | C88: 2037

Sheet AER ETL (hidden)
B1: AER ETL INFORMATION
B3: USES NAMED RANGES FLAG | C3: yes | D3: dms_Defined_Names_Used
B5: IF THIS IS AN ABC RIN - make sure the the named range CRY is applied and the named range dms_dollar_nom_UOM is applied
B6: IF THIS IS A RESET RIN - make sure the named ranges CRY and dms_dollar_nom_UOM are NOT present in the workbook
B7: FOR ABC RINS THAT SPAN MULTIPLE YEARS - make sure MultiYear Flag is set and final year entered as required
B9: Full trading name | C9: =INDEX(dms_TradingNameFull_List,MATCH(dms_TradingName,dms_TradingName_List)) -> Murraylink Transmission Company Pty Ltd | E9: dms_TradingNameFull
B10: Trading name | C10: =dms_TradingName -> Murraylink
A11: Selected here | B11: Model / RIN | C11: Reset | D11: dms_Model
A12: Read from Business & other details | B12: Source | C12: =dms_Selected_Source -> Regulatory proposal | D12: dms_Source
B13: Data quality | C13: Consolidated | D13: For DB purposes this is always Consoldiated
B14: Data status | C14: Public | D14: For DB purposes this is always Public
B15: Amendment reason | C15: =dms_Amendment_Text -> . | F15: dms_AmendmentReason
B16: Submission date | C16: =dms_Typed_Submission_Date -> 2022-01-31 | D16: dms_SubmissionDate
A18: Redundant | B18: EBSS - First application of scheme in forthcoming period? | C18: No
A19: Pre-populated from lookup table | B19: Data ingestion data quality | C19: Consolidated | D19: dms_DataQuality | E19: Always Consolidated
B20: Sector | C20: =INDEX(dms_Sector_List,MATCH(dms_TradingName,dms_TradingName_List)) -> Electricity | D20: dms_Sector | E20: =INDEX(dms_Sector_List,MATCH(dms_TradingName,dms_TradingName_List))
B21: Segment | C21: =INDEX(dms_Segment_List,MATCH(dms_TradingName,dms_TradingName_List)) -> Transmission | D21: dms_Segment | E21: =INDEX(dms_Segment_List,MATCH(dms_TradingName,dms_TradingName_List))
B22: Regulatory Year Ending | C22: =IF(dms_MultiYear_Flag=1,LEFT(dms_Specified_FinalYear,2)&RIGHT(dms_Specified_FinalYear,2),dms_RYE_result) -> 2028 | D22: dms_RYE | E22: =IF(dms_MultiYear_Flag=1,LEFT(dms_Specified_FinalYear,2)&RIGHT(dms_Specified_FinalYear,2),dms_RYE_result)
B23: Reporting Period Type | C23: =INDEX(dms_RPT_List,MATCH(dms_TradingName,dms_TradingName_List)) -> Financial | D23: dms_RPT | E23: =INDEX(dms_RPT_List,MATCH(dms_TradingName,dms_TradingName_List))
B24: EB/CA Unit of Measure for Monetary Values | C24: $0s | D24: dms_dollar_nom_UOM | E24: If the cover sheet is attached to an ABC RIN apply the NAMED RANGE to the cell
B25: Security Classification | C25: Public | D25: dms_Classification | E25: Always Public
B26: Jurisdiction | C26: =INDEX(dms_JurisdictionList,MATCH(dms_TradingName,dms_TradingName_List)) -> SA | D26: dms_Jurisdiction | E26: =INDEX(dms_JurisdictionList,MATCH(dms_TradingName,dms_TradingName_List))
A27: Relevant for PTRM, RFMs and Reset RINS | B27: $ REAL REFERENCES
B28: Does the named range CRY exist in this file? | C28: =IFERROR(CRY,"NO") -> 2018-19
B29: CRY-1 (last full calendar year before CRY) | C29: =IFERROR(IF(dms_RPT="calendar",CRY-1,LEFT(CRY,4)),"CRY not present") -> 2018 | D29: dms_Cal_Year_B4_CRY | E29: '=IF(dms_RPT="financial",VALUE(LEFT(dms_SingleYear_FinalYear_Result,4)),VALUE(LEFT(dms_SingleYear_FinalYear_Result,4)-1))
B30: Dollar $ real month | C30: =INDEX(dms_RPTMonth_List,MATCH(dms_TradingName,dms_TradingName_List)) -> June | D30: dms_RPTMonth | E30: =INDEX(dms_RPTMonth_List,MATCH(dms_TradingName,dms_TradingName_List))
B31: Dollar $ real (the last month before the FRCP_y1) | C31: =IF(dms_Model="RFM",dms_DollarReal_Prev, IF(dms_SingleYearModel="yes",CONCATENATE(dms_RPTMonth)&" "&VALUE((LEFT(dms_CRY_start_year,2)&RIGHT(dms_CRY_start_year,2))),CONCATENATE(dms_RPTMonth)&" "&dms_DollarReal_year)) -> June 2023 | D31: dms_DollarReal | E31: =IF(dms_Model="RFM",dms_DollarReal_Prev, IF(dms_SingleYearModel="yes",CONCATENATE(dms_RPTMonth)&" "&VALUE((LEFT(dms_CRY_start_year,2)&RIGHT(dms_CRY_start_year,2))),CONCATENATE(dms_RPTMonth)&" "&dms_DollarReal_year))
B32: Dollar $ real previous year (PRCP_y5) | C32: =CONCATENATE(dms_RPTMonth)&" "&dms_Previous_DollarReal_year -> June 2018 | D32: dms_DollarReal_Prev | E32: =IF(SUM(dms_SingleYear_Model)>0,CONCATENATE(dms_RPTMonth)&" "&VALUE(((LEFT(CRY,2))&RIGHT(CRY,2))-1),CONCATENATE(dms_RPTMonth)&" "&VALUE(((LEFT(dms_CRCP_FirstYear_Result,2)&RIGHT(dms_CRCP_FirstYear_Result,2))))-1)
B33: PTRM/ RFMs
B34: Form of control | C34: =INDEX(dms_FormControl_List,MATCH(dms_TradingName,dms_TradingName_List)) -> Revenue cap | D34: dms_FormControl | E34: =INDEX(dms_FormControl_List,MATCH(dms_TradingName,dms_TradingName_List))
A35: All potential values for Regulatory Years or RYEs as calculated | B35: This block works out the various RYE's for ALL RIN types and MODELS
B36: dms_start_year | C36: =FRCP_y1 -> 2023-24 | D36: =FRCP_y1 | E36: FRCP_y1 from cover sheet
B37: dms_CRY_start_year | C37: =IFERROR(CRY,CRCP_y4) -> 2018-19 | D37: =IFERROR(CRY,CRCP_y4)
B38: dms_CRY_start_row | C38: =IFERROR(MATCH(dms_CRY_start_year,INDIRECT(dms_RPT),0),0) -> 32 | D38: =IFERROR(MATCH(dms_CRY_start_year,INDIRECT(dms_RPT),0),0)
B39: dms_FRCP_start_row | C39: =MATCH(dms_start_year,INDIRECT(dms_RPT),0) -> 37 | D39: =MATCH(dms_start_year,INDIRECT(dms_RPT),0) | E39: Uses FRCP_y1 as a start reference
B40: dms_CRCP_start_row | C40: =dms_FRCP_start_row-dms_CRCPlength_Num -> 32 | D40: =dms_FRCP_start_row-dms_CRCPlength_Num | E40: Uses the value in dms_CRCPlength_Num
B41: dms_PRCP_start_row | C41: =dms_FRCP_start_row-dms_CRCPlength_Num-dms_PRCPlength_Num -> 27 | D41: =dms_FRCP_start_row-dms_CRCPlength_Num-dms_PRCPlength_Num | E41: Uses the value in dms_CRCPlength_Num and dms_PRCPlength_Num
B42: dms_RYE_start_row | C42: =dms_FRCP_start_row+(dms_FRCPlength_Num-1) -> 41 | D42: =dms_FRCP_start_row+(dms_FRCPlength_Num-1) | E42: Uses the value in dms_FRCPlength_Num-1
B43: FRCP_start_year | C43: =INDEX(INDIRECT(dms_RPT),dms_FRCP_start_row) -> 2023-24 | D43: =INDEX(INDIRECT(dms_RPT),dms_FRCP_start_row) | E43: Converts the FRCP start row to display the year
B44: CRCP_start_year | C44: =INDEX(INDIRECT(dms_RPT),dms_CRCP_start_row) -> 2018-19 | D44: =INDEX(INDIRECT(dms_RPT),dms_CRCP_start_row) | E44: Converts the CRCP start row to display the year
B45: PRCP_start_year | C45: =INDEX(INDIRECT(dms_RPT),dms_PRCP_start_row) -> 2013-14 | D45: =INDEX(INDIRECT(dms_RPT),dms_PRCP_start_row) | E45: Converts the PRCP start row to display the year
B46: FRCP_final_year | C46: =INDEX(INDIRECT(dms_RPT),dms_FRCP_start_row+dms_FRCPlength_Num-1) -> 2027-28 | D46: =INDEX(INDIRECT(dms_RPT),dms_FRCP_start_row+dms_FRCPlength_Num-1) | E46: Finds the FRCP final year
B47: CRCP_final_year | C47: =INDEX(INDIRECT(dms_RPT),dms_CRCP_start_row+dms_CRCPlength_Num-1) -> 2022-23 | D47: =INDEX(INDIRECT(dms_RPT),dms_CRCP_start_row+dms_CRCPlength_Num-1) | E47: Finds the CRCP final year
B48: PRCP_final_year | C48: =INDEX(INDIRECT(dms_RPT),dms_PRCP_start_row+dms_FRCPlength_Num-1) -> 2017-18 | D48: =INDEX(INDIRECT(dms_RPT),dms_PRCP_start_row+dms_FRCPlength_Num-1) | E48: Finds the PRCP final year
B49: dms_Reset_final_year | C49: =INDEX(INDIRECT(dms_RPT),dms_RYE_start_row) -> 2027-28 | D49: =INDEX(INDIRECT(dms_RPT),dms_RYE_start_row) | E49: For Resets and PTRM/RFMs (same as FRCP_final_year)
B50: dms_SpecifiedYear_final_year | C50: =FRY -> 2027-28 | D50: =FRY | E50: FRY from cover sheet
B51: dms_DollarReal_year | C51: =LEFT(CRCP_final_year,2)&RIGHT(CRCP_final_year,2) -> 2023 | D51: =LEFT(CRCP_final_year,2)&RIGHT(CRCP_final_year,2) | E51: Uses the value in CRCP_final_year
B52: dms_Previous_DollarReal_year | C52: =LEFT(PRCP_final_year,2)&RIGHT(PRCP_final_year,2) -> 2018 | D52: =LEFT(PRCP_final_year,2)&RIGHT(PRCP_final_year,2) | E52: Uses the value in PRCP_final_year
B53: dms_CRY_RYE | C53: =IFERROR(LEFT(CRY,2)&RIGHT(CRY,2),0) -> 2019 | D53: =IFERROR(LEFT(CRY,2)&RIGHT(CRY,2),0) | E53: For ABC single year RINS
B54: dms_Reset_RYE | C54: =IF(dms_Model_Span>1,IF(dms_Model="RFM",(LEFT(dms_DollarReal_year,2)&RIGHT(dms_DollarReal_year,2)),(LEFT(dms_Reset_final_year,2)&RIGHT(dms_Reset_final_year,2))),0) -> 2028 | D54: =IF(dms_Model_Span>1,IF(dms_Model="RFM",(LEFT(dms_DollarReal_year,2)&RIGHT(dms_DollarReal_year,2)),(LEFT(dms_Reset_final_year,2)&RIGHT(dms_Reset_final_year,2))),0) | E54: If model span > 1 then uses dms_Reset_RYE otherwise it's a multi year ABC and uses dms_Specified_RYE
B55: dms_Specified_RYE | C55: =IF(dms_MultiYear_ResponseFlag="Yes",(LEFT(dms_Specified_FinalYear,2)&RIGHT(dms_Specified_FinalYear,2)),0) -> 0 | D55: =IF(dms_MultiYear_ResponseFlag="Yes",(LEFT(dms_Specified_FinalYear,2)&RIGHT(dms_Specified_FinalYear,2)),0) | E55: If multi year ABC - uses dms_Specified_FinalYear
B56: dms_Model_Span | C56: =INDEX(dms_Model_Span_List,MATCH(dms_Model,dms_Model_List)) -> 5 | D56: =INDEX(dms_Model_Span_List,MATCH(dms_Model,dms_Model_List)) | E56: A result of 5 is used to signify that it is more than 1 year span
B57: dms_RYE_result | C57: =IF(dms_MultiYear_ResponseFlag="yes",dms_Specified_RYE,(IF(dms_Model_Span>1,dms_Reset_RYE,dms_CRY_RYE))) -> 2028 | D57: =IF(dms_MultiYear_ResponseFlag="yes",dms_Specified_RYE,(IF(dms_Model_Span>1,dms_Reset_RYE,dms_CRY_RYE))) | E57: Nested IF - feeds into dms_RYE
B58: dms_Reset_Span | C58: =IF(dms_Reset_RYE>0,CONCATENATE(FRCP_y1," to ",FRCP_final_year),0) -> 2023-24 to 2027-28 | D58: =IF(dms_Reset_RYE>0,CONCATENATE(FRCP_y1," to ",FRCP_final_year),0) | E58: Reset span of years as text
B59: dms_SpecifiedYear_Span | C59: =IF(dms_Specified_RYE>0,CONCATENATE(CRY," to ",dms_Specified_FinalYear),0) -> 0 | D59: =IF(dms_Specified_RYE>0,CONCATENATE(CRY," to ",dms_Specified_FinalYear),0) | E59: Multi year ABC span of years as text
B60: dms_Header_Span | C60: =IF(dms_MultiYear_Flag=1,dms_SpecifiedYear_Span,IF(dms_Model_Span>1,dms_y1&" to "&FRCP_final_year,CRY)) -> 2018-19 to 2027-28 | D60: =IF(dms_MultiYear_Flag=1,dms_SpecifiedYear_Span,IF(dms_Model_Span>1,dms_Reset_Span,CRY)) | E60: NESTED IF - for Sheet Headers
B61: ABC RINS THAT SPAN MULTIPLE YEARS
B62: This is a multi year ABC RIN? | C62: No
C63: =IF(dms_MultiYear_ResponseFlag="No",0,1) -> 0 | D63: dms_MultiYear_Flag | E63: This is set from the answer provided above
C64: =IF(dms_MultiYear_Flag=1,FRY,"not a Multiple year submission") -> not a Multiple year submission | D64: dms_Specified_FinalYear | E64: The result here is returned to dms_CRCP_FinalYear_Result if response to Q in C73 is "yes" and dms_MultiYear_Flag is set to 1
B65: Start year for 5.2 in Multi year ABC RINS | C65: =IFERROR(IF(dms_MultiYear_Flag=1,FRY,CRY),"not an ABC") -> 2018-19 | D65: dms_0502_Inst_Year | E65: =IF(dms_MultiYear_Flag=1,FRY,CRY) | G65: For single year RINS this is CRY - multi year RINS need to start a the end of the span of years (ie. FRY)
B66: WHAT IS THE RYE?
B67: Reg Period Lengths
B68: PRCP length in years | C68: =INDEX(dms_PRCPlength_List,MATCH(dms_TradingName,dms_TradingName_List)) -> 5 | D68: dms_PRCPlength_Num | E68: =INDEX(dms_PRCPlength_List,MATCH(dms_TradingName,dms_TradingName_List))
B69: CRCP length in years | C69: =INDEX(dms_CRCPlength_List,MATCH(dms_TradingName,dms_TradingName_List)) -> 5 | D69: dms_CRCPlength_Num | E69: =INDEX(dms_CRCPlength_List,MATCH(dms_TradingName,dms_TradingName_List))
B70: FRCP length in years | C70: =INDEX(dms_FRCPlength_List,MATCH(dms_TradingName,dms_TradingName_List)) -> 5 | D70: dms_FRCPlength_Num | E70: =INDEX(dms_FRCPlength_List,MATCH(dms_TradingName,dms_TradingName_List))
B71: Single year RIN?
B72: Single Year ABC RIN ? | C72: =IF(dms_Model="EB",1,0) -> 0 | D72: dms_EB
C73: =IF(dms_Model="CA",1,0) -> 0 | D73: dms_CA | E73: =dms_SingleYear_Model
C74: =IF(dms_Model="ARR",1,0) -> 0 | D74: dms_ARR
B75: Is this a single Year ABC RIN? | C75: =IF(SUM(dms_SingleYear_Model)=1,"yes","no") -> no | D75: dms_SingleYearModel | E75: =IF(SUM(dms_SingleYear_Model)=1,"yes","no")
B76: Single Year Final Year Result | C76: =IF(AND(dms_SingleYearModel="yes",dms_MultiYear_Flag=0),CRY,0) -> 0 | D76: dms_SingleYear_FinalYear_Result | E76: =IFERROR(IF(SUM(dms_SingleYear_Model)<>0,(INDIRECT(dms_SingleYear_FinalYear_Ref)),"not a single year RIN"),"CRY not present")
B77: Multi year RIN?
B79: Multi Year Reset/Model? | C79: =IF(dms_Model_Span>1,"yes","no") -> yes
B80: Final year result for Reset/Model | C80: =IF(dms_Model_Span>1,dms_Reset_final_year,0) -> 2027-28 | D80: dms_MultiYear_FinalYear_Result | E80: dms_CRCP_FinalYear_Result
B82: Multi Year ABC RIN? | C82: =IF(dms_MultiYear_Flag=1,"yes","no") -> no | D82: dms_MultiYear_ABC_RIN
B83: Final year result for ABC multi year | C83: =IF(dms_MultiYear_Flag=1,C50,0) -> 0
B85: EB RINS
B86: Calendar Year for table 3.6 data | C86: =IFERROR(IF(dms_Segment="Transmission",dms_Cal_Year_B4_CRY,CRY),"CRY not present") -> 2018 | D86: dms_0306_Year | E86: =IF(dms_Segment="Transmission",dms_Cal_Year_B4_CRY,CRY)
B87: CA RINS
B88: Find how many rows in tables 6.3 sustained interruptions? | E88: dms_060301_MaxRows only returns a valid value when cover sheet is attached to a CA file
C89: =IF(dms_Model<>"CA","not a CA","Is a CA") -> not a CA | E89: =IF(dms_Model<>"CA","not a CA","Is a CA")
B90: dms_060301_Avg_Duration_Sustained_Int_Values present? | C90: =IFERROR(IF(INDEX(dms_060301_Avg_Duration_Sustained_Int_Values,1,1)<>"","yes","no"),"no") -> no | D90: dms_060301_checkvalue | E90: =IFERROR(IF(INDEX(dms_060301_Avg_Duration_Sustained_Int_Values,1,1)<>"","yes","no"),"no")
C91: =IF(AND(dms_Model="CA",(dms_060301_checkvalue="no")),"error - NR not present","no errors") -> no errors | E91: =IF(AND(dms_Model="CA",(dms_060301_checkvalue="no")),"error - NR not present","no errors")
B92: Table 6.3.1 - last row reference | C92: =IFERROR(IF(dms_Model="CA",LOOKUP(2,1/(dms_060301_Avg_Duration_Sustained_Int_Values<>""),(ROW(dms_060301_Avg_Duration_Sustained_Int_Values))),"not a CA"),"6.3 not present") -> not a CA | D92: dms_060301_LastRow | E92: =IFERROR(IF(dms_Model="CA",LOOKUP(2,1/(dms_060301_Avg_Duration_Sustained_Int_Values<>""),(ROW(dms_060301_Avg_Duration_Sustained_Int_Values))),"not a CA"),"6.3 not present")
B93: Table 6.3.1 - max number rows | C93: =IFERROR(IF(dms_Model="CA",(dms_060301_LastRow-15),"not a CA"),"error") -> not a CA | D93: dms_060301_MaxRows | E93: =IFERROR(IF(dms_Model="CA",(dms_060301_LastRow-15),"not a CA"),"error")
B94: Table 6.6.3 - Public lighting repair - no. business days | C94: =INDEX(dms_663_List,MATCH(dms_TradingName,dms_TradingName_List)) -> 5 | D94: dms_663 | E94: =INDEX(dms_663_List,MATCH(dms_TradingName,dms_TradingName_List))
B95: ARR or RESET RINS
B96: How many rows in tables 6.1 or 6.7? (leap year?) | C96: insert dms_LeapYear NR if required | E96: 'dms_LeapYear is used to determine dms_060701_Max_Rows BUT it is only found on worksheet 6.1 or 6.7 and the date value in the cell is used to determine whether it is a leap year
B97: Is dms_LeapYear named range present? | C97: =IFERROR(IF(dms_LeapYear,"yes"),"no") -> no
B98: Table 6.7.1 - includes a leap year? | C98: =IFERROR(IF(MONTH(DATE(YEAR(dms_LeapYear),2,29))=2,"is a leap year","not a leap year"), "dms_LeapYear not present") -> dms_LeapYear not present | D98: dms_LeapYear_Result | E98: =IFERROR(IF(MONTH(DATE(YEAR(dms_LeapYear),2,29))=2,"is a leap year","not a leap year"),"dms_LeapYear not present")
B99: MaxRows if Reset and leap year | C99: =IF(dms_LeapYear_Result="is a leap year",1827,1826) -> 1826 | D99: dms_060701_Reset_MaxRows | E99: =IF(dms_LeapYear_Result="is a leap year",1827,1826) | H99: number of days present in Reset RIN table
B100: MaxRows if ARR and leap year | C100: =IF(dms_LeapYear_Result="is a leap year",366,365) -> 365 | D100: dms_060701_ARR_MaxRows | E100: =IF(dms_LeapYear_Result="is a leap year",366,365) | H100: number of days present in ARR RIN table
B101: Table 6.7.1 - Max Rows (leap year/ non leap year) | C101: =IF(dms_Model="ARR",dms_060701_ARR_MaxRows,IF(dms_Model="Reset",dms_060701_Reset_MaxRows,"not a relevant RIN type")) -> 1826 | D101: dms_060701_MaxRows | E101: =IF(dms_Model="ARR",dms_060701_ARR_MaxRows,IF(dms_Model="Reset",dms_060701_Reset_MaxRows,"not a relevant RIN type"))
B102: How many columns in 6.7? (4 or 5 feeder categories) | C102: =IF(dms_FifthFeeder_flag_NSP="NO","This NSP has only 4 feeder categories","This NSP has 5 feeder categories") -> This NSP has only 4 feeder categories
B103: Table 6.7.1 - Last column (# of feeder categories > 4) | C103: =IF(dms_FifthFeeder_flag_NSP="NO",10,12) -> 10 | D103: dms_060701_MaxCols | E103: =IF(dms_FifthFeeder_flag_NSP="NO",8,10)
B104: Table 6.7.1 - Number of offset rows | C104: =IF(dms_Model="ARR",15,9) -> 9 | D104: dms_060701_OffsetRows | E104: =IF(dms_Model="ARR",15,9)
B105: Start date for telephone answering in 6.1 or 6.7? | E105: Using 060101 as naming standard not 060701 for start dates
B106: Table 6.1.1 and 6.7.1 - Start Date as Text | C106: =IF(dms_SingleYearModel="yes",(CONCATENATE(IF(LEN(CRY)=4,"1-Jan-","1-Jul-"),LEFT(CRY,4))),(CONCATENATE(IF(LEN(PRCP_y4)=4,"1-Jan-","1-Jul-"),LEFT(PRCP_y4,4)))) -> 1-Jul-2016 | D106: dms_060101_StartDateTxt | E106: =IF(SUM(dms_SingleYear_Model)>1,(CONCATENATE(IF(LEN(CRY)=4,"1-Jan-","1-Jul-"),LEFT(CRY,4))),(CONCATENATE(IF(LEN(CRCP_y4)=4,"1-Jan-","1-Jul-"),LEFT(CRCP_y4,4))))
B107: Table 6.1.1 and 6.7.1 - Start Date as Date Value | C107: =DATEVALUE(dms_060701_StartDateTxt) -> 42552 | D107: dms_060101_StartDateVal | E107: =DATEVALUE(dms_060701_StartDateTxt)
B108: ARRs
B109: How many rows in table 6.8? | C109: insert dms_060801_StartCell NR if required | E109: dms_060801_StartCell is only found on worksheet 6.8 and is used to determine the starting date for the date range
B110: Is dms_060801_StartCell named range present? | C110: yes | D110: Must be present for ARRs | E110: =IFERROR(IF((ROW(dms_060801_StartCell)-1)=1,"yes","yes"),"no")
B111: Table 6.8 - Number of offset rows | C111: 12 | D111: dms_0608_OffsetRows | E111: =IFERROR(IF(dms_Model="ARR",(ROW(dms_060801_StartCell)-1),"not an ARR"),"6.8 error")
B112: Table 6.8 - Last row | C112: 0 | D112: dms_0608_LastRow | E112: =IFERROR(IF(dms_060801_StartCell<>"",IF(dms_Model="ARR",(LOOKUP(2,1/(dms_060801_01_Values<>""),(ROW(dms_060801_01_Values)))),"not an ARR"),0),"0")
B113: Table 6.8 - MaxRows | C113: =IFERROR(IF(dms_Model="ARR",(MAX(0,dms_0608_LastRow-dms_0608_OffsetRows)),"not an ARR"),"0") -> not an ARR | D113: dms_060801_MaxRows | E113: =IFERROR(IF(dms_Model="ARR",(MAX(0,dms_0608_LastRow-dms_0608_OffsetRows)),"not an ARR"),"0")
B114: TNSP RESET RINS
B115: Table 7.9.4 only appears in TNSPs Reset RIN
B116: Table 7.9.4 - first year | C116: =LEFT(PRCP_y3,4) -> 2015 | D116: dms_070904_Start_Year | E116: =LEFT(PRCP_y3,4)
B118: MISC
B119: Distribution Determination Reference | C119: =INDEX(dms_DeterminationRef_List,MATCH(dms_TradingName,dms_TradingName_List)) -> transmission determination | D119: dms_DeterminationRef
B120: Public lighting NSP? | C120: =INDEX(dms_Public_Lighting_List,MATCH(dms_TradingName,dms_TradingName_List)) -> NO | D120: dms_Public_Lighting | E120: =INDEX(dms_Public_Lighting_List,MATCH(dms_TradingName,dms_TradingName_List))
B121: CBD Feeder for this business | C121: =INDEX(dms_CBD_flag,MATCH(dms_TradingName,dms_TradingName_List)) -> NO | D121: dms_CBD_flag_NSP
B122: Urban Feeder for this business | C122: =INDEX(dms_Urban_flag,MATCH(dms_TradingName,dms_TradingName_List)) -> NO | D122: dms_Urban_flag_NSP
B123: Short rural Feeder for this business | C123: =INDEX(dms_ShortRural_flag,MATCH(dms_TradingName,dms_TradingName_List)) -> NO | D123: dms_ShortRural_flag_NSP
B124: Long rural Feeder for this business | C124: =INDEX(dms_LongRural_flag,MATCH(dms_TradingName,dms_TradingName_List)) -> NO | D124: dms_LongRural_flag_NSP
B125: Fifth Feeder Category (eg. TasNetworks (D)) | C125: =INDEX(dms_FeederType_5_flag,MATCH(dms_TradingName,dms_TradingName_List)) -> NO | D125: dms_FifthFeeder_flag_NSP | E125: =INDEX(dms_FeederType_5_flag,MATCH(dms_TradingName,dms_TradingName_List))
B127: DISCARD FILES
B128: discard this record? | C128: NO | D128: dms_DISCARD | E128: If record is to be discarded from DB set this flag to YES
B130: SUBSET FILES
B131: Is this Submission File a Subset File | C131: NO | D131: dms_Partial
B134: REGULATORY YEARS FOR MULTI RYE SUBMISSIONS
B135: Multiple RYE flag | C135: NO | D135: dms_Multi_RYE_flag
C136: Manually specify RYE | D136: Named ranges to apply
C137: 2013 | D137: dms_RYE_01
C138: 2014 | D138: dms_RYE_02
C139: 2015 | D139: dms_RYE_03
C140: 2016 | D140: dms_RYE_04
C141: 2017 | D141: dms_RYE_05
C142: 2018 | D142: dms_RYE_06
C143: 2019 | D143: dms_RYE_07
C144: 2020 | D144: dms_RYE_08
C145: 2021 | D145: dms_RYE_09

Sheet CONTENTS
D1: =INDEX(dms_Worksheet_List,MATCH(dms_Model,dms_Model_List)) -> REGULATORY REPORTING STATEMENT
D2: =INDEX(dms_TradingNameFull_List,MATCH(dms_TradingName,dms_TradingName_List)) -> Murraylink Transmission Company Pty Ltd
D3: =CONCATENATE( "DATA SPAN ",dms_Header_Span) -> DATA SPAN 2018-19 to 2027-28
E6: CONTENTS
E8: TEMPLATE DATED | F8: DECEMBER 2021
E10: SUBMISSION | F10: Business & other details
E12: EXPENDITURE | F12: 2.1 Expenditure Summary
F13: 2.3c Material Projects
F14: 2.6 Non-network
F15: 2.14 Forecast price changes
F16: 2.16 Opex
F17: 2.17 Step Changes
E19: ECONOMIC BENCHMARKING | F19: 3.2.3 Provisions
E21: OTHER | F21: 7.1 Policies and Procedures
F22: 7.2 Contingent projects
F23: 7.3 Obligations
F24: 7.4 Shared Assets
F25: 7.9 STPIS
F26: 8.2 Capex

Sheet Business & other details
V1: =INDEX(dms_Worksheet_List,MATCH(dms_Model,dms_Model_List)) -> REGULATORY REPORTING STATEMENT
V2: =INDEX(dms_TradingNameFull_List,MATCH(dms_TradingName,dms_TradingName_List)) -> Murraylink Transmission Company Pty Ltd
V3: =IF(SUM(dms_SingleYear_Model)>0,CRY,CONCATENATE("Regulatory period ",FRCP_y1," to ",dms_MultiYear_FinalYear_Result)) -> Regulatory period 2023-24 to 2027-28
V4: BUSINESS & OTHER DETAILS
V6: INSTRUCTIONS
V7: Complete the following business details regulatory template before entering data or values in any other regulatory template. This regulatory template is linked to other cells within the spreadsheet and automatically generates column headings and conditional formatting to distinguish business specific input and non-input cells.
Q9: SUBMISSION PARTICULARS INPUT SHEET
V12: ENTITY DETAILS
V14: Business Name
V16: Short name | AL16: Murraylink
V17: ACN/ABN | AL17: =INDEX(dms_ABN_List,MATCH(dms_TradingName,dms_TradingName_List)) -> 42 089 875 605
V21: Business Address | BQ21: Postal Address
V23: Address 1 | AL23: =INDEX(dms_Addr1_List,MATCH(dms_TradingName,dms_TradingName_List)) -> Level 19 | BI23: Address 1 | BQ23: =INDEX(dms_PAddr1_List,MATCH(dms_TradingName,dms_TradingName_List)) -> PO Box R41
V24: Address 2 | AL24: =IF(ISBLANK(INDEX(dms_Addr2_List,MATCH(dms_TradingName,dms_TradingName_List))),"",(INDEX(dms_Addr2_List,MATCH(dms_TradingName,dms_TradingName_List)))) -> 580 George Street | BI24: Address 2 | BQ24: =IF(ISBLANK(INDEX(dms_PAddr2_List,MATCH(dms_TradingName,dms_TradingName_List))),"",(INDEX(dms_PAddr2_List,MATCH(dms_TradingName,dms_TradingName_List)))) -> 
V25: Suburb | AL25: =INDEX(dms_Suburb_List,MATCH(dms_TradingName,dms_TradingName_List)) -> SYDNEY | BI25: Suburb | BQ25: =INDEX(dms_PSuburb_List,MATCH(dms_TradingName,dms_TradingName_List)) -> ROYAL EXCHANGE
V26: State | AL26: =INDEX(dms_State_List,MATCH(dms_TradingName,dms_TradingName_List)) -> NSW | AV26: Post code | BI26: State | BQ26: =INDEX(dms_PState_List,MATCH(dms_TradingName,dms_TradingName_List)) -> NSW | CA26: Post code
BA28: `
V30: Contact Names
V32: Name | BI32: Name
V33: Phone | BI33: Phone
V34: Email | BI34: Email
Q39: REGULATORY CONTROL PERIODS
Z42: Forthcoming period | AL42: 2023-24 | AU42: =FRCP_y2 -> 2024-25 | BD42: =FRCP_y3 -> 2025-26 | BM42: =FRCP_y4 -> 2026-27 | BV42: =FRCP_y5 -> 2027-28
AL43: =FRCP_y6 -> 2028-29 | AU43: =FRCP_y7 -> 2029-30 | BD43: =FRCP_y8 -> 2030-31 | BM43: =FRCP_y9 -> 2031-32 | BV43: =FRCP_y10 -> 2032-33
AL44: =FRCP_y11 -> 2033-34 | AU44: =FRCP_y12 -> 2034-35 | BD44: =FRCP_y13 -> 2035-36 | BM44: =FRCP_y14 -> 2036-37 | BV44: =FRCP_y15 -> 
X46: RESETS | Z46: Current period | AL46: =CRCP_y1 -> 2018-19 | AU46: =CRCP_y2 -> 2019-20 | BD46: =CRCP_y3 -> 2020-21 | BM46: =CRCP_y4 -> 2021-22 | BV46: =CRCP_y5 -> 2022-23
AL47: =CRCP_y6 -> 2023-24 | AU47: =CRCP_y7 -> 2024-25 | BD47: =CRCP_y8 -> 2025-26 | BM47: =CRCP_y9 -> 2026-27 | BV47: =CRCP_y10 -> 2027-28
AL48: =CRCP_y11 -> 2028-29 | AU48: =CRCP_y12 -> 2029-30 | BD48: =CRCP_y13 -> 2030-31 | BM48: =CRCP_y14 -> 2031-32 | BV48: =CRCP_y15 -> 2032-33
Z50: Previous period | AL50: =PRCP_y1 -> 2013-14 | AU50: =PRCP_y2 -> 2014-15 | BD50: =PRCP_y3 -> 2015-16 | BM50: =PRCP_y4 -> 2016-17 | BV50: =PRCP_y5 -> 2017-18
AL51: =PRCP_y6 -> 2018-19 | AU51: =PRCP_y7 -> 2019-20 | BD51: =PRCP_y8 -> 2020-21 | BM51: =PRCP_y9 -> 2021-22 | BV51: =PRCP_y10 -> 2022-23
AL52: =PRCP_y11 -> 2023-24 | AU52: =PRCP_y12 -> 2024-25 | BD52: =PRCP_y13 -> 2025-26 | BM52: =PRCP_y14 -> 2026-27 | BV52: =PRCP_y15 -> 2027-28
Z54: Commencing year | AL54: 2018-19
X55: ANNUAL RINS
Z56: Final year | AL56: 2027-28
Q60: SUBMISSION DETAILS
Z62: RIN type | AL62: =INDIRECT(dms_Model) -> Regulatory Reporting (Reset)
Z64: Source | AL64: Regulatory proposal
X66: THIS FILE | Z66: Data Quality | AL66: Consolidated
Z68: Confidentiality Status | AL68: Public
Z70: Amended RIN Amendment Reason | AL70: .
Z74: Submission Date | AL74: 2022-01-31 | BD74: Please enter date this file submitted to AER

Sheet 2.1 Expenditure Summary
B1: =IF(dms_DataQuality="backcast",INDEX(dms_Worksheet_List,MATCH(dms_Model,dms_Model_List))&" BACKCAST",INDEX(dms_Worksheet_List,MATCH(dms_Model,dms_Model_List))) -> REGULATORY REPORTING STATEMENT
B2: =INDEX(dms_TradingNameFull_List,MATCH(dms_TradingName,dms_TradingName_List)) -> Murraylink Transmission Company Pty Ltd
B3: =IF(SUM(dms_SingleYear_Model)>0,CRY,CONCATENATE("Regulatory period ",FRCP_y1," to ",dms_MultiYear_FinalYear_Result)) -> Regulatory period 2023-24 to 2027-28
B4: 2.1 - EXPENDITURE SUMMARY
B8: 2.1.1 - PRESCRIBED TRANSMISSION SERVICES CAPEX (as incurred)
C10: EXPENDITURE
C11: Actual ($0's, nominal) | F11: =CONCATENATE("Forecast ($0's, real ", dms_DollarReal, ")") -> Forecast ($0's, real June 2023)
C12: =CRCP_y1 -> 2018-19 | D12: =CRCP_y2 -> 2019-20 | E12: =CRCP_y3 -> 2020-21 | F12: =CRCP_y4 -> 2021-22 | G12: =CRCP_y5 -> 2022-23 | H12: =FRCP_y1 -> 2023-24 | I12: =FRCP_y2 -> 2024-25 | J12: =FRCP_y3 -> 2025-26 | K12: =FRCP_y4 -> 2026-27 | L12: =FRCP_y5 -> 2027-28
B13: Replacement expenditure | C13: 10220190 | D13: 6760250 | E13: 5695910 | F13: 2527290 | G13: 3447040 | H13: 4281219.762 | I13: 4335969.42 | J13: 2503835.136 | K13: 714098.1188 | L13: 635269.3982
B14: Connections | C14: - | D14: - | E14: - | F14: 0 | G14: 0 | H14: 0 | I14: 0 | J14: 0 | K14: 0 | L14: 0
B15: Augmentation Expenditure | C15: - | D15: - | E15: - | F15: 0 | G15: 0 | H15: 0 | I15: 0 | J15: 0 | K15: 0 | L15: 0
B16: Non-network | C16: 40390 | D16: - | E16: - | F16: 0 | G16: 153380 | H16: 41347.30196 | I16: 0 | J16: 0 | K16: 0 | L16: 157017.5977
B17: Capitalised network overheads | C17: - | D17: - | E17: - | F17: 0 | G17: 0 | H17: 0 | I17: 0 | J17: 0 | K17: 0 | L17: 0
B18: Capitalised corporate overheads | C18: - | D18: - | E18: - | F18: 0 | G18: 0 | H18: 0 | I18: 0 | J18: 0 | K18: 0 | L18: 0
B19: TOTAL CAPEX | C19: =SUM(C13:C18) -> 10260580 | D19: 6760250 | E19: 5695910 | F19: 2527290 | G19: 3600420 | H19: 4322567.064 | I19: 4335969.42 | J19: 2503835.136 | K19: 714098.1188 | L19: 792286.996

Sheet 2.3c Material Projects
B1: =IF(dms_DataQuality="backcast",INDEX(dms_Worksheet_List,MATCH(dms_Model,dms_Model_List))&" BACKCAST",INDEX(dms_Worksheet_List,MATCH(dms_Model,dms_Model_List))) -> REGULATORY REPORTING STATEMENT
B2: =INDEX(dms_TradingNameFull_List,MATCH(dms_TradingName,dms_TradingName_List)) -> Murraylink Transmission Company Pty Ltd
B3: =IF(SUM(dms_SingleYear_Model)>0,CRY,CONCATENATE("Regulatory period ",FRCP_y1," to ",dms_MultiYear_FinalYear_Result)) -> Regulatory period 2023-24 to 2027-28
B4: 2.3c MATERIAL PROJECTS
B7: Instructions
B8: Enter information for material projects only in the tables below.
B10: 2.3c.1 - PROJECTS IN THE FORTHCOMING REGULATORY CONTROL PERIOD
B12: ONGOING AND FUTURE PROJECTS
B13: Unique identifier | C13: Project name | D13: Description of project | E13: Proposed start date | F13: Proposed commissioning date | G13: Location | H13: Business case approval | I13: Business case approval date | J13: Primary expenditure purpose category | L13: =CONCATENATE("Forecast yearly expenditure - forthcoming regulatory control period, $real ",dms_DollarReal) -> Forecast yearly expenditure - forthcoming regulatory control period, $real June 2023 | Q13: Total
L14: =FRCP_y1 -> 2023-24 | M14: =FRCP_y2 -> 2024-25 | N14: =FRCP_y3 -> 2025-26 | O14: =FRCP_y4 -> 2026-27 | P14: =FRCP_y5 -> 2027-28
B15: Include unique identifier for each project | D15: Provide a brief description of the project stating (where required) whether the regulatory test was satisfied, reference the appropriate documentation and where the regulatory test is yet to be satisfied the estimated timeframe for this to be achieved. | E15: Identify month and year | F15: Identify month and year | G15: Identify location if only one site, if several, e.g. pole replacement, insert 'various'. | H15: Reference the appropriate documentation supporting approval for the project. Where the business case is yet to be approved provide the estimated timeframe for this to be achieved. | I15: Identify month and year of the business case approval (if relevant) | J15: State the primary expenditure purpose category regarding this project. | L15: Include the anticipated or known expenditure of the project by expenditure purpose.
B16: 0 | C16: 0 | D16: 0 | E16: 0 | F16: 0 | G16: 0 | H16: 0 | I16: 0 | J16: 0 | K16: Capital expenditure | L16: 0 | M16: 0 | N16: 0 | O16: 0 | P16: 0 | Q16: =SUM(L16:P16) -> 0
B17: 0 | C17: 0 | D17: 0 | E17: 0 | F17: 0 | G17: 0 | H17: 0 | I17: 0 | J17: 0 | K17: Operating expenditure | L17: 0 | M17: 0 | N17: 0 | O17: 0 | P17: 0 | Q17: =SUM(L17:P17) -> 0
B18: 0 | C18: 0 | D18: 0 | E18: 0 | F18: 0 | G18: 0 | H18: 0 | I18: 0 | J18: 0 | K18: Maintenance expenditure | L18: 0 | M18: 0 | N18: 0 | O18: 0 | P18: 0 | Q18: =SUM(L18:P18) -> 0
K19: Total | L19: =SUM(L16:L18) -> 0 | M19: 0 | N19: 0 | O19: 0 | P19: 0 | Q19: 0
B20: 0 | C20: 0 | D20: 0 | E20: 0 | F20: 0 | G20: 0 | H20: 0 | I20: 0 | J20: 0 | K20: Capital expenditure | L20: 0 | M20: 0 | N20: 0 | O20: 0 | P20: 0 | Q20: =SUM(L20:P20) -> 0
B21: 0 | C21: 0 | D21: 0 | E21: 0 | F21: 0 | G21: 0 | H21: 0 | I21: 0 | J21: 0 | K21: Operating expenditure | L21: 0 | M21: 0 | N21: 0 | O21: 0 | P21: 0 | Q21: =SUM(L21:P21) -> 0
B22: 0 | C22: 0 | D22: 0 | E22: 0 | F22: 0 | G22: 0 | H22: 0 | I22: 0 | J22: 0 | K22: Maintenance expenditure | L22: 0 | M22: 0 | N22: 0 | O22: 0 | P22: 0 | Q22: =SUM(L22:P22) -> 0
K23: Total | L23: =SUM(L20:L22) -> 0 | M23: 0 | N23: 0 | O23: 0 | P23: 0 | Q23: 0
B24: 0 | C24: 0 | D24: 0 | E24: 0 | F24: 0 | G24: 0 | H24: 0 | I24: 0 | J24: 0 | K24: Capital expenditure | L24: 0 | M24: 0 | N24: 0 | O24: 0 | P24: 0 | Q24: =SUM(L24:P24) -> 0
B25: 0 | C25: 0 | D25: 0 | E25: 0 | F25: 0 | G25: 0 | H25: 0 | I25: 0 | J25: 0 | K25: Operating expenditure | L25: 0 | M25: 0 | N25: 0 | O25: 0 | P25: 0 | Q25: =SUM(L25:P25) -> 0
B26: 0 | C26: 0 | D26: 0 | E26: 0 | F26: 0 | G26: 0 | H26: 0 | I26: 0 | J26: 0 | K26: Maintenance expenditure | L26: 0 | M26: 0 | N26: 0 | O26: 0 | P26: 0 | Q26: =SUM(L26:P26) -> 0
K27: Total | L27: =SUM(L24:L26) -> 0 | M27: 0 | N27: 0 | O27: 0 | P27: 0 | Q27: 0
B28: 0 | C28: 0 | D28: 0 | E28: 0 | F28: 0 | G28: 0 | H28: 0 | I28: 0 | J28: 0 | K28: Capital expenditure | L28: 0 | M28: 0 | N28: 0 | O28: 0 | P28: 0 | Q28: =SUM(L28:P28) -> 0
B29: 0 | C29: 0 | D29: 0 | E29: 0 | F29: 0 | G29: 0 | H29: 0 | I29: 0 | J29: 0 | K29: Operating expenditure | L29: 0 | M29: 0 | N29: 0 | O29: 0 | P29: 0 | Q29: =SUM(L29:P29) -> 0
B30: 0 | C30: 0 | D30: 0 | E30: 0 | F30: 0 | G30: 0 | H30: 0 | I30: 0 | J30: 0 | K30: Maintenance expenditure | L30: 0 | M30: 0 | N30: 0 | O30: 0 | P30: 0 | Q30: =SUM(L30:P30) -> 0
K31: Total | L31: =SUM(L28:L30) -> 0 | M31: 0 | N31: 0 | O31: 0 | P31: 0 | Q31: 0
B32: 0 | C32: 0 | D32: 0 | E32: 0 | F32: 0 | G32: 0 | H32: 0 | I32: 0 | J32: 0 | K32: Capital expenditure | L32: 0 | M32: 0 | N32: 0 | O32: 0 | P32: 0 | Q32: =SUM(L32:P32) -> 0
B33: 0 | C33: 0 | D33: 0 | E33: 0 | F33: 0 | G33: 0 | H33: 0 | I33: 0 | J33: 0 | K33: Operating expenditure | L33: 0 | M33: 0 | N33: 0 | O33: 0 | P33: 0 | Q33: =SUM(L33:P33) -> 0
B34: 0 | C34: 0 | D34: 0 | E34: 0 | F34: 0 | G34: 0 | H34: 0 | I34: 0 | J34: 0 | K34: Maintenance expenditure | L34: 0 | M34: 0 | N34: 0 | O34: 0 | P34: 0 | Q34: =SUM(L34:P34) -> 0
K35: Total | L35: =SUM(L32:L34) -> 0 | M35: 0 | N35: 0 | O35: 0 | P35: 0 | Q35: 0
B36: 0 | C36: 0 | D36: 0 | E36: 0 | F36: 0 | G36: 0 | H36: 0 | I36: 0 | J36: 0 | K36: Capital expenditure | L36: 0 | M36: 0 | N36: 0 | O36: 0 | P36: 0 | Q36: =SUM(L36:P36) -> 0
B37: 0 | C37: 0 | D37: 0 | E37: 0 | F37: 0 | G37: 0 | H37: 0 | I37: 0 | J37: 0 | K37: Operating expenditure | L37: 0 | M37: 0 | N37: 0 | O37: 0 | P37: 0 | Q37: =SUM(L37:P37) -> 0
B38: 0 | C38: 0 | D38: 0 | E38: 0 | F38: 0 | G38: 0 | H38: 0 | I38: 0 | J38: 0 | K38: Maintenance expenditure | L38: 0 | M38: 0 | N38: 0 | O38: 0 | P38: 0 | Q38: =SUM(L38:P38) -> 0
K39: Total | L39: =SUM(L36:L38) -> 0 | M39: 0 | N39: 0 | O39: 0 | P39: 0 | Q39: 0
B40: 0 | C40: 0 | D40: 0 | E40: 0 | F40: 0 | G40: 0 | H40: 0 | I40: 0 | J40: 0 | K40: Capital expenditure | L40: 0 | M40: 0 | N40: 0 | O40: 0 | P40: 0 | Q40: =SUM(L40:P40) -> 0
B41: 0 | C41: 0 | D41: 0 | E41: 0 | F41: 0 | G41: 0 | H41: 0 | I41: 0 | J41: 0 | K41: Operating expenditure | L41: 0 | M41: 0 | N41: 0 | O41: 0 | P41: 0 | Q41: =SUM(L41:P41) -> 0
B42: 0 | C42: 0 | D42: 0 | E42: 0 | F42: 0 | G42: 0 | H42: 0 | I42: 0 | J42: 0 | K42: Maintenance expenditure | L42: 0 | M42: 0 | N42: 0 | O42: 0 | P42: 0 | Q42: =SUM(L42:P42) -> 0
K43: Total | L43: =SUM(L40:L42) -> 0 | M43: 0 | N43: 0 | O43: 0 | P43: 0 | Q43: 0
B44: 0 | C44: 0 | D44: 0 | E44: 0 | F44: 0 | G44: 0 | H44: 0 | I44: 0 | J44: 0 | K44: Capital expenditure | L44: 0 | M44: 0 | N44: 0 | O44: 0 | P44: 0 | Q44: =SUM(L44:P44) -> 0
B45: 0 | C45: 0 | D45: 0 | E45: 0 | F45: 0 | G45: 0 | H45: 0 | I45: 0 | J45: 0 | K45: Operating expenditure | L45: 0 | M45: 0 | N45: 0 | O45: 0 | P45: 0 | Q45: =SUM(L45:P45) -> 0
B46: 0 | C46: 0 | D46: 0 | E46: 0 | F46: 0 | G46: 0 | H46: 0 | I46: 0 | J46: 0 | K46: Maintenance expenditure | L46: 0 | M46: 0 | N46: 0 | O46: 0 | P46: 0 | Q46: =SUM(L46:P46) -> 0
K47: Total | L47: =SUM(L44:L46) -> 0 | M47: 0 | N47: 0 | O47: 0 | P47: 0 | Q47: 0
B48: 0 | C48: 0 | D48: 0 | E48: 0 | F48: 0 | G48: 0 | H48: 0 | I48: 0 | J48: 0 | K48: Capital expenditure | L48: 0 | M48: 0 | N48: 0 | O48: 0 | P48: 0 | Q48: =SUM(L48:P48) -> 0
B49: 0 | C49: 0 | D49: 0 | E49: 0 | F49: 0 | G49: 0 | H49: 0 | I49: 0 | J49: 0 | K49: Operating expenditure | L49: 0 | M49: 0 | N49: 0 | O49: 0 | P49: 0 | Q49: =SUM(L49:P49) -> 0
B50: 0 | C50: 0 | D50: 0 | E50: 0 | F50: 0 | G50: 0 | H50: 0 | I50: 0 | J50: 0 | K50: Maintenance expenditure | L50: 0 | M50: 0 | N50: 0 | O50: 0 | P50: 0 | Q50: =SUM(L50:P50) -> 0
K51: Total | L51: =SUM(L48:L50) -> 0 | M51: 0 | N51: 0 | O51: 0 | P51: 0 | Q51: 0
B52: 0 | C52: 0 | D52: 0 | E52: 0 | F52: 0 | G52: 0 | H52: 0 | I52: 0 | J52: 0 | K52: Capital expenditure | L52: 0 | M52: 0 | N52: 0 | O52: 0 | P52: 0 | Q52: =SUM(L52:P52) -> 0
B53: 0 | C53: 0 | D53: 0 | E53: 0 | F53: 0 | G53: 0 | H53: 0 | I53: 0 | J53: 0 | K53: Operating expenditure | L53: 0 | M53: 0 | N53: 0 | O53: 0 | P53: 0 | Q53: =SUM(L53:P53) -> 0
B54: 0 | C54: 0 | D54: 0 | E54: 0 | F54: 0 | G54: 0 | H54: 0 | I54: 0 | J54: 0 | K54: Maintenance expenditure | L54: 0 | M54: 0 | N54: 0 | O54: 0 | P54: 0 | Q54: =SUM(L54:P54) -> 0
K55: Total | L55: =SUM(L52:L54) -> 0 | M55: 0 | N55: 0 | O55: 0 | P55: 0 | Q55: 0
K56: Total | L56: =(L19+L23+L27+L31+L35+L39+L43+L47+L51+L55) -> 0 | M56: 0 | N56: 0 | O56: 0 | P56: 0 | Q56: 0
B60: 2.3c.2 - PROJECTS IN THE CURRENT REGULATORY CONTROL PERIOD
B62: CURRENT PROJECTS
L63: Yearly expenditure - current regulatory control period (nominal $'0s) | Q63: Total
B64: Unique identifier | C64: Project name | D64: Description of project | E64: Proposed start date | F64: Proposed commissioning date | G64: Location | H64: Business case approval | I64: Business case approval date | J64: Primary expenditure purpose category | L64: =CRCP_y1 -> 2018-19 | M64: =CRCP_y2 -> 2019-20 | N64: =CRCP_y3 -> 2020-21 | O64: =CRCP_y4 -> 2021-22 | P64: =CRCP_y5 -> 2022-23 | Q64: Total
B65: Include unique identifier for each project | D65: Provide a brief description of the project stating (where required) whether the regulatory test was satisfied, reference the appropriate documentation and where the regulatory test is yet to be satisfied the estimated timeframe for this to be achieved. | E65: Identify month and year | F65: Identify month and year | G65: Identify location if only one site, if several, e.g. pole replacement, insert 'various'. | H65: Reference the appropriate documentation supporting approval for the project. Where the business case is yet to be approved provide the estimated timeframe for this to be achieved. | I65: Identify month and year of the business case approval (if relevant) | J65: State the primary expenditure purpose category regarding this project. | L65: Include approved expenditure of the project as at time of business case approval.
B66: 38723 | C66: Replacement of Control System | D66: Due to the manufacturer announced obsolescence of key components of the existing control system the control and protection system at Murraylink was replaced. | E66: 2018-01-01 | F66: OCT-20 | G66: Murraylink | H66: 4.2 | I66: 2018-04-30 | J66: Replacement | K66: Capital expenditure | L66: 8703582.48 | M66: 6644099.93 | N66: 5071000.43 | O66: 0 | P66: 0 | Q66: =SUM(L66:P66) -> 20418682.84
K67: Operating expenditure | L67: 0 | M67: 0 | N67: 0 | O67: 0 | P67: 0 | Q67: =SUM(L67:P67) -> 0
K68: Maintenance expenditure | L68: 0 | M68: 0 | N68: 0 | O68: 0 | P68: 0 | Q68: =SUM(L68:P68) -> 0
K69: Total | L69: =SUM(L66:L68) -> 8703582.48 | M69: 6644099.93 | N69: 5071000.43 | O69: 0 | P69: 0 | Q69: 20418682.84
B70: 0 | C70: 0 | D70: 0 | E70: 0 | F70: 0 | G70: 0 | H70: 0 | I70: 0 | J70: 0 | K70: Capital expenditure | L70: 0 | M70: 0 | N70: 0 | O70: 0 | P70: 0 | Q70: =SUM(L70:P70) -> 0
B71: 0 | C71: 0 | D71: 0 | E71: 0 | F71: 0 | G71: 0 | H71: 0 | I71: 0 | J71: 0 | K71: Operating expenditure | L71: 0 | M71: 0 | N71: 0 | O71: 0 | P71: 0 | Q71: =SUM(L71:P71) -> 0
B72: 0 | C72: 0 | D72: 0 | E72: 0 | F72: 0 | G72: 0 | H72: 0 | I72: 0 | J72: 0 | K72: Maintenance expenditure | L72: 0 | M72: 0 | N72: 0 | O72: 0 | P72: 0 | Q72: =SUM(L72:P72) -> 0
K73: Total | L73: =SUM(L70:L72) -> 0 | M73: 0 | N73: 0 | O73: 0 | P73: 0 | Q73: 0
B74: 0 | C74: 0 | D74: 0 | E74: 0 | F74: 0 | G74: 0 | H74: 0 | I74: 0 | J74: 0 | K74: Capital expenditure | L74: 0 | M74: 0 | N74: 0 | O74: 0 | P74: 0 | Q74: =SUM(L74:P74) -> 0
B75: 0 | C75: 0 | D75: 0 | E75: 0 | F75: 0 | G75: 0 | H75: 0 | I75: 0 | J75: 0 | K75: Operating expenditure | L75: 0 | M75: 0 | N75: 0 | O75: 0 | P75: 0 | Q75: =SUM(L75:P75) -> 0
B76: 0 | C76: 0 | D76: 0 | E76: 0 | F76: 0 | G76: 0 | H76: 0 | I76: 0 | J76: 0 | K76: Maintenance expenditure | L76: 0 | M76: 0 | N76: 0 | O76: 0 | P76: 0 | Q76: =SUM(L76:P76) -> 0
K77: Total | L77: =SUM(L74:L76) -> 0 | M77: 0 | N77: 0 | O77: 0 | P77: 0 | Q77: 0
B78: 0 | C78: 0 | D78: 0 | E78: 0 | F78: 0 | G78: 0 | H78: 0 | I78: 0 | J78: 0 | K78: Capital expenditure | L78: 0 | M78: 0 | N78: 0 | O78: 0 | P78: 0 | Q78: =SUM(L78:P78) -> 0
B79: 0 | C79: 0 | D79: 0 | E79: 0 | F79: 0 | G79: 0 | H79: 0 | I79: 0 | J79: 0 | K79: Operating expenditure | L79: 0 | M79: 0 | N79: 0 | O79: 0 | P79: 0 | Q79: =SUM(L79:P79) -> 0
B80: 0 | C80: 0 | D80: 0 | E80: 0 | F80: 0 | G80: 0 | H80: 0 | I80: 0 | J80: 0 | K80: Maintenance expenditure | L80: 0 | M80: 0 | N80: 0 | O80: 0 | P80: 0 | Q80: =SUM(L80:P80) -> 0
K81: Total | L81: =SUM(L78:L80) -> 0 | M81: 0 | N81: 0 | O81: 0 | P81: 0 | Q81: 0
B82: 0 | C82: 0 | D82: 0 | E82: 0 | F82: 0 | G82: 0 | H82: 0 | I82: 0 | J82: 0 | K82: Capital expenditure | L82: 0 | M82: 0 | N82: 0 | O82: 0 | P82: 0 | Q82: =SUM(L82:P82) -> 0
B83: 0 | C83: 0 | D83: 0 | E83: 0 | F83: 0 | G83: 0 | H83: 0 | I83: 0 | J83: 0 | K83: Operating expenditure | L83: 0 | M83: 0 | N83: 0 | O83: 0 | P83: 0 | Q83: =SUM(L83:P83) -> 0
B84: 0 | C84: 0 | D84: 0 | E84: 0 | F84: 0 | G84: 0 | H84: 0 | I84: 0 | J84: 0 | K84: Maintenance expenditure | L84: 0 | M84: 0 | N84: 0 | O84: 0 | P84: 0 | Q84: =SUM(L84:P84) -> 0
K85: Total | L85: =SUM(L82:L84) -> 0 | M85: 0 | N85: 0 | O85: 0 | P85: 0 | Q85: 0
B86: 0 | C86: 0 | D86: 0 | E86: 0 | F86: 0 | G86: 0 | H86: 0 | I86: 0 | J86: 0 | K86: Capital expenditure | L86: 0 | M86: 0 | N86: 0 | O86: 0 | P86: 0 | Q86: =SUM(L86:P86) -> 0
B87: 0 | C87: 0 | D87: 0 | E87: 0 | F87: 0 | G87: 0 | H87: 0 | I87: 0 | J87: 0 | K87: Operating expenditure | L87: 0 | M87: 0 | N87: 0 | O87: 0 | P87: 0 | Q87: =SUM(L87:P87) -> 0
B88: 0 | C88: 0 | D88: 0 | E88: 0 | F88: 0 | G88: 0 | H88: 0 | I88: 0 | J88: 0 | K88: Maintenance expenditure | L88: 0 | M88: 0 | N88: 0 | O88: 0 | P88: 0 | Q88: =SUM(L88:P88) -> 0
K89: Total | L89: =SUM(L86:L88) -> 0 | M89: 0 | N89: 0 | O89: 0 | P89: 0 | Q89: 0
B90: 0 | C90: 0 | D90: 0 | E90: 0 | F90: 0 | G90: 0 | H90: 0 | I90: 0 | J90: 0 | K90: Capital expenditure | L90: 0 | M90: 0 | N90: 0 | O90: 0 | P90: 0 | Q90: =SUM(L90:P90) -> 0
B91: 0 | C91: 0 | D91: 0 | E91: 0 | F91: 0 | G91: 0 | H91: 0 | I91: 0 | J91: 0 | K91: Operating expenditure | L91: 0 | M91: 0 | N91: 0 | O91: 0 | P91: 0 | Q91: =SUM(L91:P91) -> 0
B92: 0 | C92: 0 | D92: 0 | E92: 0 | F92: 0 | G92: 0 | H92: 0 | I92: 0 | J92: 0 | K92: Maintenance expenditure | L92: 0 | M92: 0 | N92: 0 | O92: 0 | P92: 0 | Q92: =SUM(L92:P92) -> 0
K93: Total | L93: =SUM(L90:L92) -> 0 | M93: 0 | N93: 0 | O93: 0 | P93: 0 | Q93: 0
B94: 0 | C94: 0 | D94: 0 | E94: 0 | F94: 0 | G94: 0 | H94: 0 | I94: 0 | J94: 0 | K94: Capital expenditure | L94: 0 | M94: 0 | N94: 0 | O94: 0 | P94: 0 | Q94: =SUM(L94:P94) -> 0
B95: 0 | C95: 0 | D95: 0 | E95: 0 | F95: 0 | G95: 0 | H95: 0 | I95: 0 | J95: 0 | K95: Operating expenditure | L95: 0 | M95: 0 | N95: 0 | O95: 0 | P95: 0 | Q95: =SUM(L95:P95) -> 0
B96: 0 | C96: 0 | D96: 0 | E96: 0 | F96: 0 | G96: 0 | H96: 0 | I96: 0 | J96: 0 | K96: Maintenance expenditure | L96: 0 | M96: 0 | N96: 0 | O96: 0 | P96: 0 | Q96: =SUM(L96:P96) -> 0
K97: Total | L97: =SUM(L94:L96) -> 0 | M97: 0 | N97: 0 | O97: 0 | P97: 0 | Q97: 0
B98: 0 | C98: 0 | D98: 0 | E98: 0 | F98: 0 | G98: 0 | H98: 0 | I98: 0 | J98: 0 | K98: Capital expenditure | L98: 0 | M98: 0 | N98: 0 | O98: 0 | P98: 0 | Q98: =SUM(L98:P98) -> 0
B99: 0 | C99: 0 | D99: 0 | E99: 0 | F99: 0 | G99: 0 | H99: 0 | I99: 0 | J99: 0 | K99: Operating expenditure | L99: 0 | M99: 0 | N99: 0 | O99: 0 | P99: 0 | Q99: =SUM(L99:P99) -> 0
B100: 0 | C100: 0 | D100: 0 | E100: 0 | F100: 0 | G100: 0 | H100: 0 | I100: 0 | J100: 0 | K100: Maintenance expenditure | L100: 0 | M100: 0 | N100: 0 | O100: 0 | P100: 0 | Q100: =SUM(L100:P100) -> 0
K101: Total | L101: =SUM(L98:L100) -> 0 | M101: 0 | N101: 0 | O101: 0 | P101: 0 | Q101: 0
B102: 0 | C102: 0 | D102: 0 | E102: 0 | F102: 0 | G102: 0 | H102: 0 | I102: 0 | J102: 0 | K102: Capital expenditure | L102: 0 | M102: 0 | N102: 0 | O102: 0 | P102: 0 | Q102: =SUM(L102:P102) -> 0
B103: 0 | C103: 0 | D103: 0 | E103: 0 | F103: 0 | G103: 0 | H103: 0 | I103: 0 | J103: 0 | K103: Operating expenditure | L103: 0 | M103: 0 | N103: 0 | O103: 0 | P103: 0 | Q103: =SUM(L103:P103) -> 0
B104: 0 | C104: 0 | D104: 0 | E104: 0 | F104: 0 | G104: 0 | H104: 0 | I104: 0 | J104: 0 | K104: Maintenance expenditure | L104: 0 | M104: 0 | N104: 0 | O104: 0 | P104: 0 | Q104: =SUM(L104:P104) -> 0
K105: Total | L105: =SUM(L102:L104) -> 0 | M105: 0 | N105: 0 | O105: 0 | P105: 0 | Q105: 0
K106: Total | L106: =(L69+L73+L77+L81+L85+L89+L93+L97+L101+L105) -> 8703582.48 | M106: 6644099.93 | N106: 5071000.43 | O106: 0 | P106: 0 | Q106: 20418682.84

Sheet 2.6 Non-network
B1: =IF(dms_DataQuality="backcast",INDEX(dms_Worksheet_List,MATCH(dms_Model,dms_Model_List))&" BACKCAST",INDEX(dms_Worksheet_List,MATCH(dms_Model,dms_Model_List))) -> REGULATORY REPORTING STATEMENT
B2: =INDEX(dms_TradingNameFull_List,MATCH(dms_TradingName,dms_TradingName_List)) -> Murraylink Transmission Company Pty Ltd
B3: =IF(SUM(dms_SingleYear_Model)>0,CRY,CONCATENATE("Regulatory period ",FRCP_y1," to ",dms_MultiYear_FinalYear_Result)) -> Regulatory period 2023-24 to 2027-28
B4: 2.6 NON NETWORK EXPENDITURE
B8: 2.6.1 - NON-NETWORK EXPENDITURE
D9: EXPENDITURE
D10: Actual ($0's, nominal) | G10: =CONCATENATE("Forecast ($0's, real ", dms_DollarReal, ")") -> Forecast ($0's, real June 2023)
D11: =CRCP_y1 -> 2018-19 | E11: =CRCP_y2 -> 2019-20 | F11: =CRCP_y3 -> 2020-21 | G11: =CRCP_y4 -> 2021-22 | H11: =CRCP_y5 -> 2022-23 | I11: =FRCP_y1 -> 2023-24 | J11: =FRCP_y2 -> 2024-25 | K11: =FRCP_y3 -> 2025-26 | L11: =FRCP_y4 -> 2026-27 | M11: =FRCP_y5 -> 2027-28
B12: OPEX
B13: IT & COMMUNICATIONS | C13: Total IT & communications | D13: 0 | E13: 0 | F13: 0 | G13: 0 | H13: 0 | I13: 0 | J13: 0 | K13: 0 | L13: 0 | M13: 0
B14: MOTOR VEHICLES | C14: Total motor vehicles | D14: 0 | E14: 0 | F14: 0 | G14: 0 | H14: 0 | I14: 0 | J14: 0 | K14: 0 | L14: 0 | M14: 0
B15: BUILDINGS AND PROPERTY | C15: Total buildings and property expenditure | D15: 0 | E15: 0 | F15: 0 | G15: 0 | H15: 0 | I15: 0 | J15: 0 | K15: 0 | L15: 0 | M15: 0
B16: OTHER | C16: Total other | D16: 1190844.751 | E16: 917094.4719 | F16: 1001682.051 | G16: 1052385.945 | H16: 1052385.945 | I16: 1052385.945 | J16: 1052385.945 | K16: 1052385.945 | L16: 1052385.945 | M16: 1052385.945
B17: CAPEX
B18: IT & COMMUNICATIONS | C18: Total IT & communications | D18: 0 | E18: 0 | F18: 0 | G18: 0 | H18: 0 | I18: 0 | J18: 0 | K18: 0 | L18: 0 | M18: 0
B19: MOTOR VEHICLES | C19: Total motor vehicles | D19: 0 | E19: 0 | F19: 0 | G19: 0 | H19: 0 | I19: 0 | J19: 0 | K19: 0 | L19: 0 | M19: 0
B20: BUILDINGS AND PROPERTY | C20: Total buildings and property expenditure | D20: 0 | E20: 0 | F20: 0 | G20: 0 | H20: 0 | I20: 0 | J20: 0 | K20: 0 | L20: 0 | M20: 0
B21: OTHER | C21: Total other | D21: 40388.1 | E21: 0 | F21: 0 | G21: 0 | H21: 153380000 | I21: 41347301.96 | J21: 0 | K21: 0 | L21: 0 | M21: 157017597.7

Sheet 2.14 Forecast price changes
B1: =(LOOKUP(dms_Model,dms_Model_List,dms_Worksheet_List)) -> REGULATORY REPORTING STATEMENT
B2: =INDEX(dms_TradingNameFull_List,MATCH(dms_TradingName,dms_TradingName_List)) -> Murraylink Transmission Company Pty Ltd
B3: =IF(SUM(dms_SingleYear_Model)>0,CRY,CONCATENATE("Regulatory period ",FRCP_y1," to ",dms_MultiYear_FinalYear_Result)) -> Regulatory period 2023-24 to 2027-28
B4: 2.14 FORECAST PRICE CHANGES
B6: Instructions
B7: The TNSP must provide all forecast price changes used to forecast opex and capex, including forecast changes in CPI. Forecast price changes must be expressed in real terms, except for CPI. If the same escalators are not used for capex and opex, report capex and opex escalators separately. If price changes for a given year were not used to forecast either opex or capex enter '0' for that year.
B9: 2.14.1 - FORECAST LABOUR AND MATERIALS PRICE CHANGES
C10: Price changes (% YoY real) Current regulatory period | H10: Price changes (%YoY real) Forthcoming regulatory period
C11: Actual ($0's, nominal) | F11: =CONCATENATE("Forecast ($0's, real ", dms_DollarReal, ")") -> Forecast ($0's, real June 2023)
C12: =CRCP_y1 -> 2018-19 | D12: =CRCP_y2 -> 2019-20 | E12: =CRCP_y3 -> 2020-21 | F12: =CRCP_y4 -> 2021-22 | G12: =CRCP_y5 -> 2022-23 | H12: =FRCP_y1 -> 2023-24 | I12: =FRCP_y2 -> 2024-25 | J12: =FRCP_y3 -> 2025-26 | K12: =FRCP_y4 -> 2026-27 | L12: =FRCP_y5 -> 2027-28
B13: Materials price changes
B14: 0 | C14: 0 | D14: 0 | E14: 0 | F14: 0 | G14: 0 | H14: 0 | I14: 0 | J14: 0 | K14: 0 | L14: 0
B15: 0 | C15: 0 | D15: 0 | E15: 0 | F15: 0 | G15: 0 | H15: 0 | I15: 0 | J15: 0 | K15: 0 | L15: 0
B16: 0 | C16: 0 | D16: 0 | E16: 0 | F16: 0 | G16: 0 | H16: 0 | I16: 0 | J16: 0 | K16: 0 | L16: 0
B17: 0 | C17: 0 | D17: 0 | E17: 0 | F17: 0 | G17: 0 | H17: 0 | I17: 0 | J17: 0 | K17: 0 | L17: 0
B18: 0 | C18: 0 | D18: 0 | E18: 0 | F18: 0 | G18: 0 | H18: 0 | I18: 0 | J18: 0 | K18: 0 | L18: 0
B19: 0 | C19: 0 | D19: 0 | E19: 0 | F19: 0 | G19: 0 | H19: 0 | I19: 0 | J19: 0 | K19: 0 | L19: 0
B20: 0 | C20: 0 | D20: 0 | E20: 0 | F20: 0 | G20: 0 | H20: 0 | I20: 0 | J20: 0 | K20: 0 | L20: 0
B21: 0 | C21: 0 | D21: 0 | E21: 0 | F21: 0 | G21: 0 | H21: 0 | I21: 0 | J21: 0 | K21: 0 | L21: 0
B22: 0 | C22: 0 | D22: 0 | E22: 0 | F22: 0 | G22: 0 | H22: 0 | I22: 0 | J22: 0 | K22: 0 | L22: 0
B23: 0 | C23: 0 | D23: 0 | E23: 0 | F23: 0 | G23: 0 | H23: 0 | I23: 0 | J23: 0 | K23: 0 | L23: 0
B24: 0 | C24: 0 | D24: 0 | E24: 0 | F24: 0 | G24: 0 | H24: 0 | I24: 0 | J24: 0 | K24: 0 | L24: 0
B25: 0 | C25: 0 | D25: 0 | E25: 0 | F25: 0 | G25: 0 | H25: 0 | I25: 0 | J25: 0 | K25: 0 | L25: 0
B26: 0 | C26: 0 | D26: 0 | E26: 0 | F26: 0 | G26: 0 | H26: 0 | I26: 0 | J26: 0 | K26: 0 | L26: 0
B27: 0 | C27: 0 | D27: 0 | E27: 0 | F27: 0 | G27: 0 | H27: 0 | I27: 0 | J27: 0 | K27: 0 | L27: 0
B28: 0 | C28: 0 | D28: 0 | E28: 0 | F28: 0 | G28: 0 | H28: 0 | I28: 0 | J28: 0 | K28: 0 | L28: 0
B29: 0 | C29: 0 | D29: 0 | E29: 0 | F29: 0 | G29: 0 | H29: 0 | I29: 0 | J29: 0 | K29: 0 | L29: 0
B30: 0 | C30: 0 | D30: 0 | E30: 0 | F30: 0 | G30: 0 | H30: 0 | I30: 0 | J30: 0 | K30: 0 | L30: 0
B31: 0 | C31: 0 | D31: 0 | E31: 0 | F31: 0 | G31: 0 | H31: 0 | I31: 0 | J31: 0 | K31: 0 | L31: 0
B32: 0 | C32: 0 | D32: 0 | E32: 0 | F32: 0 | G32: 0 | H32: 0 | I32: 0 | J32: 0 | K32: 0 | L32: 0
B33: 0 | C33: 0 | D33: 0 | E33: 0 | F33: 0 | G33: 0 | H33: 0 | I33: 0 | J33: 0 | K33: 0 | L33: 0
B34: 0 | C34: 0 | D34: 0 | E34: 0 | F34: 0 | G34: 0 | H34: 0 | I34: 0 | J34: 0 | K34: 0 | L34: 0
B35: 0 | C35: 0 | D35: 0 | E35: 0 | F35: 0 | G35: 0 | H35: 0 | I35: 0 | J35: 0 | K35: 0 | L35: 0
B36: 0 | C36: 0 | D36: 0 | E36: 0 | F36: 0 | G36: 0 | H36: 0 | I36: 0 | J36: 0 | K36: 0 | L36: 0
B37: 0 | C37: 0 | D37: 0 | E37: 0 | F37: 0 | G37: 0 | H37: 0 | I37: 0 | J37: 0 | K37: 0 | L37: 0
B38: 0 | C38: 0 | D38: 0 | E38: 0 | F38: 0 | G38: 0 | H38: 0 | I38: 0 | J38: 0 | K38: 0 | L38: 0
B39: 0 | C39: 0 | D39: 0 | E39: 0 | F39: 0 | G39: 0 | H39: 0 | I39: 0 | J39: 0 | K39: 0 | L39: 0
B40: 0 | C40: 0 | D40: 0 | E40: 0 | F40: 0 | G40: 0 | H40: 0 | I40: 0 | J40: 0 | K40: 0 | L40: 0
B41: 0 | C41: 0 | D41: 0 | E41: 0 | F41: 0 | G41: 0 | H41: 0 | I41: 0 | J41: 0 | K41: 0 | L41: 0
B42: 0 | C42: 0 | D42: 0 | E42: 0 | F42: 0 | G42: 0 | H42: 0 | I42: 0 | J42: 0 | K42: 0 | L42: 0
B43: 0 | C43: 0 | D43: 0 | E43: 0 | F43: 0 | G43: 0 | H43: 0 | I43: 0 | J43: 0 | K43: 0 | L43: 0
B44: Labour and Other price changes
B45: 0 | C45: 0 | D45: 0 | E45: 0 | F45: 0 | G45: 0 | H45: 0 | I45: 0 | J45: 0 | K45: 0 | L45: 0
B46: 0 | C46: 0 | D46: 0 | E46: 0 | F46: 0 | G46: 0 | H46: 0 | I46: 0 | J46: 0 | K46: 0 | L46: 0
B47: 0 | C47: 0 | D47: 0 | E47: 0 | F47: 0 | G47: 0 | H47: 0 | I47: 0 | J47: 0 | K47: 0 | L47: 0
B48: 0 | C48: 0 | D48: 0 | E48: 0 | F48: 0 | G48: 0 | H48: 0 | I48: 0 | J48: 0 | K48: 0 | L48: 0
B49: 0 | C49: 0 | D49: 0 | E49: 0 | F49: 0 | G49: 0 | H49: 0 | I49: 0 | J49: 0 | K49: 0 | L49: 0
B50: 0 | C50: 0 | D50: 0 | E50: 0 | F50: 0 | G50: 0 | H50: 0 | I50: 0 | J50: 0 | K50: 0 | L50: 0
B51: 0 | C51: 0 | D51: 0 | E51: 0 | F51: 0 | G51: 0 | H51: 0 | I51: 0 | J51: 0 | K51: 0 | L51: 0
B52: 0 | C52: 0 | D52: 0 | E52: 0 | F52: 0 | G52: 0 | H52: 0 | I52: 0 | J52: 0 | K52: 0 | L52: 0
B53: 0 | C53: 0 | D53: 0 | E53: 0 | F53: 0 | G53: 0 | H53: 0 | I53: 0 | J53: 0 | K53: 0 | L53: 0
B54: 0 | C54: 0 | D54: 0 | E54: 0 | F54: 0 | G54: 0 | H54: 0 | I54: 0 | J54: 0 | K54: 0 | L54: 0
B55: 0 | C55: 0 | D55: 0 | E55: 0 | F55: 0 | G55: 0 | H55: 0 | I55: 0 | J55: 0 | K55: 0 | L55: 0
B56: 0 | C56: 0 | D56: 0 | E56: 0 | F56: 0 | G56: 0 | H56: 0 | I56: 0 | J56: 0 | K56: 0 | L56: 0
B57: 0 | C57: 0 | D57: 0 | E57: 0 | F57: 0 | G57: 0 | H57: 0 | I57: 0 | J57: 0 | K57: 0 | L57: 0
B58: 0 | C58: 0 | D58: 0 | E58: 0 | F58: 0 | G58: 0 | H58: 0 | I58: 0 | J58: 0 | K58: 0 | L58: 0
B59: 0 | C59: 0 | D59: 0 | E59: 0 | F59: 0 | G59: 0 | H59: 0 | I59: 0 | J59: 0 | K59: 0 | L59: 0
B60: CPI | C60: 0 | D60: 0 | E60: 0 | F60: 0 | G60: 0 | H60: 0 | I60: 0 | J60: 0 | K60: 0 | L60: 0

Sheet 2.16 Opex Summary
B1: =(LOOKUP(dms_Model,dms_Model_List,dms_Worksheet_List)) -> REGULATORY REPORTING STATEMENT
B2: Murraylink Transmission Company Pty Ltd
B3: Regulatory period 2023-24 to 2027-28
B4: 2.16 OPEX SUMMARY
B6: Instructions | K6: IMPORTANT!
B7: Complete the tables below in accordance with the regulatory information notice. Murraylink's total forecast opex must reconcile to Table 2.16.1. If Murraylink did not forecast its total opex using a Base Year approach, total forecast opex must reconcile to Table 2.16.2 | K7: =CONCATENATE("Has Murraylink used a base-step-trend model to derive its opex forecast? ") -> Has Murraylink used a base-step-trend model to derive its opex forecast? | M7: Yes
B8: The total step changes and category specific forecasts in Table 2.16.1 must reconcile (in each year) to the total step changes and category secific forecasts for each year in Tables 2.17.1 and 2.17.5 of worksheet 2.17 Step Changes.") | K8: Yes / No
K9: Please nominate the base year. | M9: 2020-21
B11: 2.16.1 - PRESCRIBED TRANSMISSION SERVICES - OPEX BY DRIVER
C12: =CONCATENATE("Forecast ($0's, real ", dms_DollarReal, ")") -> Forecast ($0's, real June 2023)
C13: =CRCP_y1 -> 2018-19 | D13: =CRCP_y2 -> 2019-20 | E13: =CRCP_y3 -> 2020-21 | F13: =CRCP_y4 -> 2021-22 | G13: =CRCP_y5 -> 2022-23 | H13: =FRCP_y1 -> 2023-24 | I13: =FRCP_y2 -> 2024-25 | J13: =FRCP_y3 -> 2025-26 | K13: =FRCP_y4 -> 2026-27 | L13: =FRCP_y5 -> 2027-28
B14: Base year total opex, excluding category specific | E14: 4493877.704 | F14: 4493877.704 | G14: 4493877.704 | H14: 4493877.704 | I14: 4493877.704 | J14: 4493877.704 | K14: 4493877.704 | L14: 4493877.704
B15: Increment from base year to final year | G15: 0 | H15: 0 | I15: 0 | J15: 0 | K15: 0 | L15: 0
B16: Price growth | H16: 0 | I16: 0 | J16: 0 | K16: 0 | L16: 0
B17: Output growth | H17: 0 | I17: 0 | J17: 0 | K17: 0 | L17: 0
B18: Productivity growth | H18: 0 | I18: 0 | J18: 0 | K18: 0 | L18: 0
B19: Step changes | H19: 0 | I19: 0 | J19: 0 | K19: 0 | L19: 0
B20: Category specific | E20: 0 | F20: 0 | G20: 0 | H20: 0 | I20: 0 | J20: 0 | K20: 0 | L20: 0
B21: Total opex | C21: =SUM(C14:C20) -> 0 | D21: 0 | E21: 4493877.704 | F21: 4493877.704 | G21: 4493877.704 | H21: 4493877.704 | I21: 4493877.704 | J21: 4493877.704 | K21: 4493877.704 | L21: 4493877.704
B25: 2.16.2 - PRESCRIBED TRANSMISSION SERVICES - OPEX BY CATEGORY
C26: =CONCATENATE("Forecast ($0's, real ", dms_DollarReal, ")") -> Forecast ($0's, real June 2023)
C27: =CRCP_y1 -> 2018-19 | D27: =CRCP_y2 -> 2019-20 | E27: =CRCP_y3 -> 2020-21 | F27: =CRCP_y4 -> 2021-22 | G27: =CRCP_y5 -> 2022-23 | H27: =FRCP_y1 -> 2023-24 | I27: =FRCP_y2 -> 2024-25 | J27: =FRCP_y3 -> 2025-26 | K27: =FRCP_y4 -> 2026-27 | L27: =FRCP_y5 -> 2027-28
B58: Total opex | C58: =SUM(C28:C57) -> 0 | D58: 0 | E58: 0 | F58: 0 | G58: 0 | H58: 0 | I58: 0 | J58: 0 | K58: 0 | L58: 0

Sheet 2.17 Step Changes
B1: =(LOOKUP(dms_Model,dms_Model_List,dms_Worksheet_List)) -> REGULATORY REPORTING STATEMENT
B2: =INDEX(dms_TradingNameFull_List,MATCH(dms_TradingName,dms_TradingName_List)) -> Murraylink Transmission Company Pty Ltd
B3: =IF(SUM(dms_SingleYear_Model)>0,CRY,CONCATENATE("Regulatory period ",FRCP_y1," to ",dms_MultiYear_FinalYear_Result)) -> Regulatory period 2023-24 to 2027-28
B4: 2.17 STEP CHANGES
B6: Instructions
B7: Complete the Tables below in accordance with the regulatory information notice. The total step changes in Table 2.17.1 must reconcile (in each year) to the total step changes for each year in Table 2.16.1 of worksheet 2.16 Opex Summary.
B9: 2.17.1 - FORECAST OPEX STEP CHANGES
D10: EXPENDITURE
D11: =CONCATENATE("Forecast ($0's, real ", dms_DollarReal, ")") -> Forecast ($0's, real June 2023)
B12: Step change | C12: Description | D12: =CRCP_y4 -> 2021-22 | E12: =CRCP_y5 -> 2022-23 | F12: =FRCP_y1 -> 2023-24 | G12: =FRCP_y2 -> 2024-25 | H12: =FRCP_y3 -> 2025-26 | I12: =FRCP_y4 -> 2026-27 | J12: =FRCP_y5 -> 2027-28
B13: 0 | C13: 0 | D13: 0 | E13: 0 | F13: 0 | G13: 0 | H13: 0 | I13: 0 | J13: 0
B14: 0 | C14: 0 | D14: 0 | E14: 0 | F14: 0 | G14: 0 | H14: 0 | I14: 0 | J14: 0
B15: 0 | C15: 0 | D15: 0 | E15: 0 | F15: 0 | G15: 0 | H15: 0 | I15: 0 | J15: 0
B16: 0 | C16: 0 | D16: 0 | E16: 0 | F16: 0 | G16: 0 | H16: 0 | I16: 0 | J16: 0
B17: 0 | C17: 0 | D17: 0 | E17: 0 | F17: 0 | G17: 0 | H17: 0 | I17: 0 | J17: 0
B18: 0 | C18: 0 | D18: 0 | E18: 0 | F18: 0 | G18: 0 | H18: 0 | I18: 0 | J18: 0
B19: 0 | C19: 0 | D19: 0 | E19: 0 | F19: 0 | G19: 0 | H19: 0 | I19: 0 | J19: 0
B20: 0 | C20: 0 | D20: 0 | E20: 0 | F20: 0 | G20: 0 | H20: 0 | I20: 0 | J20: 0
B21: 0 | C21: 0 | D21: 0 | E21: 0 | F21: 0 | G21: 0 | H21: 0 | I21: 0 | J21: 0
B22: 0 | C22: 0 | D22: 0 | E22: 0 | F22: 0 | G22: 0 | H22: 0 | I22: 0 | J22: 0
B23: 0 | C23: 0 | D23: 0 | E23: 0 | F23: 0 | G23: 0 | H23: 0 | I23: 0 | J23: 0
B24: 0 | C24: 0 | D24: 0 | E24: 0 | F24: 0 | G24: 0 | H24: 0 | I24: 0 | J24: 0
B25: 0 | C25: 0 | D25: 0 | E25: 0 | F25: 0 | G25: 0 | H25: 0 | I25: 0 | J25: 0
B26: 0 | C26: 0 | D26: 0 | E26: 0 | F26: 0 | G26: 0 | H26: 0 | I26: 0 | J26: 0
B27: 0 | C27: 0 | D27: 0 | E27: 0 | F27: 0 | G27: 0 | H27: 0 | I27: 0 | J27: 0
C28: TOTAL | D28: =SUM(D13:D27) -> 0 | E28: 0 | F28: 0 | G28: 0 | H28: 0 | I28: 0 | J28: 0
C29: Check | F29: =IF(D$28-'2.16 Opex Summary'!H19=0,"OK","Error") -> OK | G29: =IF(E$28-'2.16 Opex Summary'!I19=0,"OK","Error") -> OK | H29: =IF(F$28-'2.16 Opex Summary'!J19=0,"OK","Error") -> OK | I29: =IF(G$28-'2.16 Opex Summary'!K19=0,"OK","Error") -> OK | J29: =IF(H$28-'2.16 Opex Summary'!L19=0,"OK","Error") -> OK
B31: 2.17.2 - FORECAST CAPEX STEP CHANGES
D32: EXPENDITURE
D33: =CONCATENATE("Forecast ($0's, real ", dms_DollarReal, ")") -> Forecast ($0's, real June 2023)
B34: Step change | C34: Description | D34: =CRCP_y4 -> 2021-22 | E34: =CRCP_y5 -> 2022-23 | F34: =FRCP_y1 -> 2023-24 | G34: =FRCP_y2 -> 2024-25 | H34: =FRCP_y3 -> 2025-26 | I34: =FRCP_y4 -> 2026-27 | J34: =FRCP_y5 -> 2027-28
B35: 0 | C35: 0 | D35: 0 | E35: 0 | F35: 0 | G35: 0 | H35: 0 | I35: 0 | J35: 0
B36: 0 | C36: 0 | D36: 0 | E36: 0 | F36: 0 | G36: 0 | H36: 0 | I36: 0 | J36: 0
B37: 0 | C37: 0 | D37: 0 | E37: 0 | F37: 0 | G37: 0 | H37: 0 | I37: 0 | J37: 0
B38: 0 | C38: 0 | D38: 0 | E38: 0 | F38: 0 | G38: 0 | H38: 0 | I38: 0 | J38: 0
B39: 0 | C39: 0 | D39: 0 | E39: 0 | F39: 0 | G39: 0 | H39: 0 | I39: 0 | J39: 0
B40: 0 | C40: 0 | D40: 0 | E40: 0 | F40: 0 | G40: 0 | H40: 0 | I40: 0 | J40: 0
B41: 0 | C41: 0 | D41: 0 | E41: 0 | F41: 0 | G41: 0 | H41: 0 | I41: 0 | J41: 0
B42: 0 | C42: 0 | D42: 0 | E42: 0 | F42: 0 | G42: 0 | H42: 0 | I42: 0 | J42: 0
B43: 0 | C43: 0 | D43: 0 | E43: 0 | F43: 0 | G43: 0 | H43: 0 | I43: 0 | J43: 0
B44: 0 | C44: 0 | D44: 0 | E44: 0 | F44: 0 | G44: 0 | H44: 0 | I44: 0 | J44: 0
B45: 0 | C45: 0 | D45: 0 | E45: 0 | F45: 0 | G45: 0 | H45: 0 | I45: 0 | J45: 0
B46: 0 | C46: 0 | D46: 0 | E46: 0 | F46: 0 | G46: 0 | H46: 0 | I46: 0 | J46: 0
B47: 0 | C47: 0 | D47: 0 | E47: 0 | F47: 0 | G47: 0 | H47: 0 | I47: 0 | J47: 0
B48: 0 | C48: 0 | D48: 0 | E48: 0 | F48: 0 | G48: 0 | H48: 0 | I48: 0 | J48: 0
B49: 0 | C49: 0 | D49: 0 | E49: 0 | F49: 0 | G49: 0 | H49: 0 | I49: 0 | J49: 0
C50: TOTAL | D50: =SUM(D35:D49) -> 0 | E50: 0 | F50: 0 | G50: 0 | H50: 0 | I50: 0 | J50: 0
B53: 2.17.5 - CATEGORY SPECIFIC OPEX
D54: EXPENDITURE
D55: =CONCATENATE("Forecast ($0's, real ", dms_DollarReal, ")") -> Forecast ($0's, real June 2023)
B56: Category specific opex | D56: =CRCP_y4 -> 2021-22 | E56: =CRCP_y5 -> 2022-23 | F56: =FRCP_y1 -> 2023-24 | G56: =FRCP_y2 -> 2024-25 | H56: =FRCP_y3 -> 2025-26 | I56: =FRCP_y4 -> 2026-27 | J56: =FRCP_y5 -> 2027-28
B57: 0 | D57: 0 | E57: 0 | F57: 0 | G57: 0 | H57: 0 | I57: 0 | J57: 0
B58: 0 | D58: 0 | E58: 0 | F58: 0 | G58: 0 | H58: 0 | I58: 0 | J58: 0
B59: 0 | D59: 0 | E59: 0 | F59: 0 | G59: 0 | H59: 0 | I59: 0 | J59: 0
B60: 0 | D60: 0 | E60: 0 | F60: 0 | G60: 0 | H60: 0 | I60: 0 | J60: 0
B61: 0 | D61: 0 | E61: 0 | F61: 0 | G61: 0 | H61: 0 | I61: 0 | J61: 0
B62: 0 | D62: 0 | E62: 0 | F62: 0 | G62: 0 | H62: 0 | I62: 0 | J62: 0
B63: 0 | D63: 0 | E63: 0 | F63: 0 | G63: 0 | H63: 0 | I63: 0 | J63: 0
B64: 0 | D64: 0 | E64: 0 | F64: 0 | G64: 0 | H64: 0 | I64: 0 | J64: 0
B65: 0 | D65: 0 | E65: 0 | F65: 0 | G65: 0 | H65: 0 | I65: 0 | J65: 0
B66: 0 | D66: 0 | E66: 0 | F66: 0 | G66: 0 | H66: 0 | I66: 0 | J66: 0
B67: 0 | D67: 0 | E67: 0 | F67: 0 | G67: 0 | H67: 0 | I67: 0 | J67: 0
B68: 0 | D68: 0 | E68: 0 | F68: 0 | G68: 0 | H68: 0 | I68: 0 | J68: 0
B69: 0 | D69: 0 | E69: 0 | F69: 0 | G69: 0 | H69: 0 | I69: 0 | J69: 0
B70: 0 | D70: 0 | E70: 0 | F70: 0 | G70: 0 | H70: 0 | I70: 0 | J70: 0
B71: 0 | D71: 0 | E71: 0 | F71: 0 | G71: 0 | H71: 0 | I71: 0 | J71: 0
C72: TOTAL | D72: =SUM(D57:D71) -> 0 | E72: 0 | F72: 0 | G72: 0 | H72: 0 | I72: 0 | J72: 0

Sheet 3.2.3 Provisions
B1: REGULATORY REPORTING STATEMENT
B2: =INDEX(dms_TradingNameFull_List,MATCH(dms_TradingName,dms_TradingName_List)) -> Murraylink Transmission Company Pty Ltd
B3: =IF(SUM(dms_SingleYear_Model)>0,CRY,CONCATENATE("Regulatory period ",FRCP_y1," to ",dms_MultiYear_FinalYear_Result)) -> Regulatory period 2023-24 to 2027-28
B4: 3.2 OPERATING EXPENDITURE
B6: The is ONE table on this worksheet. Each Provision has been grouped for ease of navigation. See the Instructions sheet on how to group and ungroup tables.
B9: 3.2.3 - PROVISIONS
C10: =CONCATENATE("Forecast ($0's, real ", dms_DollarReal, ")") -> Forecast ($0's, real June 2023)
C11: =CRCP_y4 -> 2021-22 | D11: =CRCP_y5 -> 2022-23 | E11: =FRCP_y1 -> 2023-24 | F11: =FRCP_y2 -> 2024-25 | G11: =FRCP_y3 -> 2025-26 | H11: =FRCP_y4 -> 2026-27 | I11: =FRCP_y5 -> 2027-28
A12: TOPEX03A | B12: <Provision name>
B13: Brief description of provision
A14: TOPEX0301A | B14: Opening balance (the carrying amount at the beginning of the period) | C14: 0 | D14: 0 | E14: 0 | F14: 0 | G14: 0 | H14: 0 | I14: 0
B15: Additional provisions made in the period, including increases to existing provisions
A16: TOPEX0302A | B16: Opex component | C16: 0 | D16: 0 | E16: 0 | F16: 0 | G16: 0 | H16: 0 | I16: 0
A17: TOPEX0303A | B17: Capex component | C17: 0 | D17: 0 | E17: 0 | F17: 0 | G17: 0 | H17: 0 | I17: 0
A18: TOPEX0304A | B18: Other component | C18: 0 | D18: 0 | E18: 0 | F18: 0 | G18: 0 | H18: 0 | I18: 0
B19: Amounts used (that is, incurred and charged against the provision) during the period
A20: TOPEX0305A | B20: Opex component | C20: 0 | D20: 0 | E20: 0 | F20: 0 | G20: 0 | H20: 0 | I20: 0
A21: TOPEX0306A | B21: Capex component | C21: 0 | D21: 0 | E21: 0 | F21: 0 | G21: 0 | H21: 0 | I21: 0
A22: TOPEX0307A | B22: Other component | C22: 0 | D22: 0 | E22: 0 | F22: 0 | G22: 0 | H22: 0 | I22: 0
B23: Unused amounts reversed during the period
A24: TOPEX0308A | B24: Opex component | C24: 0 | D24: 0 | E24: 0 | F24: 0 | G24: 0 | H24: 0 | I24: 0
A25: TOPEX0309A | B25: Capex component | C25: 0 | D25: 0 | E25: 0 | F25: 0 | G25: 0 | H25: 0 | I25: 0
A26: TOPEX0310A | B26: Other component | C26: 0 | D26: 0 | E26: 0 | F26: 0 | G26: 0 | H26: 0 | I26: 0
B27: The increase during the period in the discounted amount arising from the passage of time and the effect of any change in the discount rate
A28: TOPEX0311A | B28: Opex component | C28: 0 | D28: 0 | E28: 0 | F28: 0 | G28: 0 | H28: 0 | I28: 0
A29: TOPEX0312A | B29: Capex component | C29: 0 | D29: 0 | E29: 0 | F29: 0 | G29: 0 | H29: 0 | I29: 0
A30: TOPEX0313A | B30: Other component | C30: 0 | D30: 0 | E30: 0 | F30: 0 | G30: 0 | H30: 0 | I30: 0
A31: TOPEX0314A | B31: Closing balance (carrying amount at the end of the period) | C31: 0 | D31: 0 | E31: 0 | F31: 0 | G31: 0 | H31: 0 | I31: 0
A32: TOPEX03B | B32: <Provision name>
B33: Brief description of provision
A34: TOPEX0301B | B34: Opening balance (the carrying amount at the beginning of the period) | C34: 0 | D34: 0 | E34: 0 | F34: 0 | G34: 0 | H34: 0 | I34: 0
B35: Additional provisions made in the period, including increases to existing provisions
A36: TOPEX0302B | B36: Opex component | C36: 0 | D36: 0 | E36: 0 | F36: 0 | G36: 0 | H36: 0 | I36: 0
A37: TOPEX0303B | B37: Capex component | C37: 0 | D37: 0 | E37: 0 | F37: 0 | G37: 0 | H37: 0 | I37: 0
A38: TOPEX0304B | B38: Other component | C38: 0 | D38: 0 | E38: 0 | F38: 0 | G38: 0 | H38: 0 | I38: 0
B39: Amounts used (that is, incurred and charged against the provision) during the period
A40: TOPEX0305B | B40: Opex component | C40: 0 | D40: 0 | E40: 0 | F40: 0 | G40: 0 | H40: 0 | I40: 0
A41: TOPEX0306B | B41: Capex component | C41: 0 | D41: 0 | E41: 0 | F41: 0 | G41: 0 | H41: 0 | I41: 0
A42: TOPEX0307B | B42: Other component | C42: 0 | D42: 0 | E42: 0 | F42: 0 | G42: 0 | H42: 0 | I42: 0
B43: Unused amounts reversed during the period
A44: TOPEX0308B | B44: Opex component | C44: 0 | D44: 0 | E44: 0 | F44: 0 | G44: 0 | H44: 0 | I44: 0
A45: TOPEX0309B | B45: Capex component | C45: 0 | D45: 0 | E45: 0 | F45: 0 | G45: 0 | H45: 0 | I45: 0
A46: TOPEX0310B | B46: Other component | C46: 0 | D46: 0 | E46: 0 | F46: 0 | G46: 0 | H46: 0 | I46: 0
B47: The increase during the period in the discounted amount arising from the passage of time and the effect of any change in the discount rate
A48: TOPEX0311B | B48: Opex component | C48: 0 | D48: 0 | E48: 0 | F48: 0 | G48: 0 | H48: 0 | I48: 0
A49: TOPEX0312B | B49: Capex component | C49: 0 | D49: 0 | E49: 0 | F49: 0 | G49: 0 | H49: 0 | I49: 0
A50: TOPEX0313B | B50: Other component | C50: 0 | D50: 0 | E50: 0 | F50: 0 | G50: 0 | H50: 0 | I50: 0
A51: TOPEX0314B | B51: Closing balance (carrying amount at the end of the period) | C51: 0 | D51: 0 | E51: 0 | F51: 0 | G51: 0 | H51: 0 | I51: 0
A52: TOPEX03C | B52: <Provision name>
B53: Brief description of provision
A54: TOPEX0301C | B54: Opening balance (the carrying amount at the beginning of the period) | C54: 0 | D54: 0 | E54: 0 | F54: 0 | G54: 0 | H54: 0 | I54: 0
B55: Additional provisions made in the period, including increases to existing provisions
A56: TOPEX0302C | B56: Opex component | C56: 0 | D56: 0 | E56: 0 | F56: 0 | G56: 0 | H56: 0 | I56: 0
A57: TOPEX0303C | B57: Capex component | C57: 0 | D57: 0 | E57: 0 | F57: 0 | G57: 0 | H57: 0 | I57: 0
A58: TOPEX0304C | B58: Other component | C58: 0 | D58: 0 | E58: 0 | F58: 0 | G58: 0 | H58: 0 | I58: 0
B59: Amounts used (that is, incurred and charged against the provision) during the period
A60: TOPEX0305C | B60: Opex component | C60: 0 | D60: 0 | E60: 0 | F60: 0 | G60: 0 | H60: 0 | I60: 0
A61: TOPEX0306C | B61: Capex component | C61: 0 | D61: 0 | E61: 0 | F61: 0 | G61: 0 | H61: 0 | I61: 0
A62: TOPEX0307C | B62: Other component | C62: 0 | D62: 0 | E62: 0 | F62: 0 | G62: 0 | H62: 0 | I62: 0
B63: Unused amounts reversed during the period
A64: TOPEX0308C | B64: Opex component | C64: 0 | D64: 0 | E64: 0 | F64: 0 | G64: 0 | H64: 0 | I64: 0
A65: TOPEX0309C | B65: Capex component | C65: 0 | D65: 0 | E65: 0 | F65: 0 | G65: 0 | H65: 0 | I65: 0
A66: TOPEX0310C | B66: Other component | C66: 0 | D66: 0 | E66: 0 | F66: 0 | G66: 0 | H66: 0 | I66: 0
B67: The increase during the period in the discounted amount arising from the passage of time and the effect of any change in the discount rate
A68: TOPEX0311C | B68: Opex component | C68: 0 | D68: 0 | E68: 0 | F68: 0 | G68: 0 | H68: 0 | I68: 0
A69: TOPEX0312C | B69: Capex component | C69: 0 | D69: 0 | E69: 0 | F69: 0 | G69: 0 | H69: 0 | I69: 0
A70: TOPEX0313C | B70: Other component | C70: 0 | D70: 0 | E70: 0 | F70: 0 | G70: 0 | H70: 0 | I70: 0
A71: TOPEX0314C | B71: Closing balance (carrying amount at the end of the period) | C71: 0 | D71: 0 | E71: 0 | F71: 0 | G71: 0 | H71: 0 | I71: 0
A72: TOPEX03D | B72: <Provision name>
B73: Brief description of provision
A74: TOPEX0301D | B74: Opening balance (the carrying amount at the beginning of the period) | C74: 0 | D74: 0 | E74: 0 | F74: 0 | G74: 0 | H74: 0 | I74: 0
B75: Additional provisions made in the period, including increases to existing provisions
A76: TOPEX0302D | B76: Opex component | C76: 0 | D76: 0 | E76: 0 | F76: 0 | G76: 0 | H76: 0 | I76: 0
A77: TOPEX0303D | B77: Capex component | C77: 0 | D77: 0 | E77: 0 | F77: 0 | G77: 0 | H77: 0 | I77: 0
A78: TOPEX0304D | B78: Other component | C78: 0 | D78: 0 | E78: 0 | F78: 0 | G78: 0 | H78: 0 | I78: 0
B79: Amounts used (that is, incurred and charged against the provision) during the period
A80: TOPEX0305D | B80: Opex component | C80: 0 | D80: 0 | E80: 0 | F80: 0 | G80: 0 | H80: 0 | I80: 0
A81: TOPEX0306D | B81: Capex component | C81: 0 | D81: 0 | E81: 0 | F81: 0 | G81: 0 | H81: 0 | I81: 0
A82: TOPEX0307D | B82: Other component | C82: 0 | D82: 0 | E82: 0 | F82: 0 | G82: 0 | H82: 0 | I82: 0
B83: Unused amounts reversed during the period
A84: TOPEX0308D | B84: Opex component | C84: 0 | D84: 0 | E84: 0 | F84: 0 | G84: 0 | H84: 0 | I84: 0
A85: TOPEX0309D | B85: Capex component | C85: 0 | D85: 0 | E85: 0 | F85: 0 | G85: 0 | H85: 0 | I85: 0
A86: TOPEX0310D | B86: Other component | C86: 0 | D86: 0 | E86: 0 | F86: 0 | G86: 0 | H86: 0 | I86: 0
B87: The increase during the period in the discounted amount arising from the passage of time and the effect of any change in the discount rate
A88: TOPEX0311D | B88: Opex component | C88: 0 | D88: 0 | E88: 0 | F88: 0 | G88: 0 | H88: 0 | I88: 0
A89: TOPEX0312D | B89: Capex component | C89: 0 | D89: 0 | E89: 0 | F89: 0 | G89: 0 | H89: 0 | I89: 0
A90: TOPEX0313D | B90: Other component | C90: 0 | D90: 0 | E90: 0 | F90: 0 | G90: 0 | H90: 0 | I90: 0
A91: TOPEX0314D | B91: Closing balance (carrying amount at the end of the period) | C91: 0 | D91: 0 | E91: 0 | F91: 0 | G91: 0 | H91: 0 | I91: 0
A92: TOPEX03E | B92: <Provision name>
B93: Brief description of provision
A94: TOPEX0301E | B94: Opening balance (the carrying amount at the beginning of the period) | C94: 0 | D94: 0 | E94: 0 | F94: 0 | G94: 0 | H94: 0 | I94: 0
B95: Additional provisions made in the period, including increases to existing provisions
A96: TOPEX0302E | B96: Opex component | C96: 0 | D96: 0 | E96: 0 | F96: 0 | G96: 0 | H96: 0 | I96: 0
A97: TOPEX0303E | B97: Capex component | C97: 0 | D97: 0 | E97: 0 | F97: 0 | G97: 0 | H97: 0 | I97: 0
A98: TOPEX0304E | B98: Other component | C98: 0 | D98: 0 | E98: 0 | F98: 0 | G98: 0 | H98: 0 | I98: 0
B99: Amounts used (that is, incurred and charged against the provision) during the period
A100: TOPEX0305E | B100: Opex component | C100: 0 | D100: 0 | E100: 0 | F100: 0 | G100: 0 | H100: 0 | I100: 0
A101: TOPEX0306E | B101: Capex component | C101: 0 | D101: 0 | E101: 0 | F101: 0 | G101: 0 | H101: 0 | I101: 0
A102: TOPEX0307E | B102: Other component | C102: 0 | D102: 0 | E102: 0 | F102: 0 | G102: 0 | H102: 0 | I102: 0
B103: Unused amounts reversed during the period
A104: TOPEX0308E | B104: Opex component | C104: 0 | D104: 0 | E104: 0 | F104: 0 | G104: 0 | H104: 0 | I104: 0
A105: TOPEX0309E | B105: Capex component | C105: 0 | D105: 0 | E105: 0 | F105: 0 | G105: 0 | H105: 0 | I105: 0
A106: TOPEX0310E | B106: Other component | C106: 0 | D106: 0 | E106: 0 | F106: 0 | G106: 0 | H106: 0 | I106: 0
B107: The increase during the period in the discounted amount arising from the passage of time and the effect of any change in the discount rate
A108: TOPEX0311E | B108: Opex component | C108: 0 | D108: 0 | E108: 0 | F108: 0 | G108: 0 | H108: 0 | I108: 0
A109: TOPEX0312E | B109: Capex component | C109: 0 | D109: 0 | E109: 0 | F109: 0 | G109: 0 | H109: 0 | I109: 0
A110: TOPEX0313E | B110: Other component | C110: 0 | D110: 0 | E110: 0 | F110: 0 | G110: 0 | H110: 0 | I110: 0
A111: TOPEX0314E | B111: Closing balance (carrying amount at the end of the period) | C111: 0 | D111: 0 | E111: 0 | F111: 0 | G111: 0 | H111: 0 | I111: 0
A112: TOPEX03F | B112: <Provision name>
B113: Brief description of provision
A114: TOPEX0301F | B114: Opening balance (the carrying amount at the beginning of the period) | C114: 0 | D114: 0 | E114: 0 | F114: 0 | G114: 0 | H114: 0 | I114: 0
B115: Additional provisions made in the period, including increases to existing provisions
A116: TOPEX0302F | B116: Opex component | C116: 0 | D116: 0 | E116: 0 | F116: 0 | G116: 0 | H116: 0 | I116: 0
A117: TOPEX0303F | B117: Capex component | C117: 0 | D117: 0 | E117: 0 | F117: 0 | G117: 0 | H117: 0 | I117: 0
A118: TOPEX0304F | B118: Other component | C118: 0 | D118: 0 | E118: 0 | F118: 0 | G118: 0 | H118: 0 | I118: 0
B119: Amounts used (that is, incurred and charged against the provision) during the period
A120: TOPEX0305F | B120: Opex component | C120: 0 | D120: 0 | E120: 0 | F120: 0 | G120: 0 | H120: 0 | I120: 0
A121: TOPEX0306F | B121: Capex component | C121: 0 | D121: 0 | E121: 0 | F121: 0 | G121: 0 | H121: 0 | I121: 0
A122: TOPEX0307F | B122: Other component | C122: 0 | D122: 0 | E122: 0 | F122: 0 | G122: 0 | H122: 0 | I122: 0
B123: Unused amounts reversed during the period
A124: TOPEX0308F | B124: Opex component | C124: 0 | D124: 0 | E124: 0 | F124: 0 | G124: 0 | H124: 0 | I124: 0
A125: TOPEX0309F | B125: Capex component | C125: 0 | D125: 0 | E125: 0 | F125: 0 | G125: 0 | H125: 0 | I125: 0
A126: TOPEX0310F | B126: Other component | C126: 0 | D126: 0 | E126: 0 | F126: 0 | G126: 0 | H126: 0 | I126: 0
B127: The increase during the period in the discounted amount arising from the passage of time and the effect of any change in the discount rate
A128: TOPEX0311F | B128: Opex component | C128: 0 | D128: 0 | E128: 0 | F128: 0 | G128: 0 | H128: 0 | I128: 0
A129: TOPEX0312F | B129: Capex component | C129: 0 | D129: 0 | E129: 0 | F129: 0 | G129: 0 | H129: 0 | I129: 0
A130: TOPEX0313F | B130: Other component | C130: 0 | D130: 0 | E130: 0 | F130: 0 | G130: 0 | H130: 0 | I130: 0
A131: TOPEX0314F | B131: Closing balance (carrying amount at the end of the period) | C131: 0 | D131: 0 | E131: 0 | F131: 0 | G131: 0 | H131: 0 | I131: 0
A132: TOPEX03G | B132: <Provision name>
B133: Brief description of provision
A134: TOPEX0301G | B134: Opening balance (the carrying amount at the beginning of the period) | C134: 0 | D134: 0 | E134: 0 | F134: 0 | G134: 0 | H134: 0 | I134: 0
B135: Additional provisions made in the period, including increases to existing provisions
A136: TOPEX0302G | B136: Opex component | C136: 0 | D136: 0 | E136: 0 | F136: 0 | G136: 0 | H136: 0 | I136: 0
A137: TOPEX0303G | B137: Capex component | C137: 0 | D137: 0 | E137: 0 | F137: 0 | G137: 0 | H137: 0 | I137: 0
A138: TOPEX0304G | B138: Other component | C138: 0 | D138: 0 | E138: 0 | F138: 0 | G138: 0 | H138: 0 | I138: 0
B139: Amounts used (that is, incurred and charged against the provision) during the period
A140: TOPEX0305G | B140: Opex component | C140: 0 | D140: 0 | E140: 0 | F140: 0 | G140: 0 | H140: 0 | I140: 0
A141: TOPEX0306G | B141: Capex component | C141: 0 | D141: 0 | E141: 0 | F141: 0 | G141: 0 | H141: 0 | I141: 0
A142: TOPEX0307G | B142: Other component | C142: 0 | D142: 0 | E142: 0 | F142: 0 | G142: 0 | H142: 0 | I142: 0
B143: Unused amounts reversed during the period
A144: TOPEX0308G | B144: Opex component | C144: 0 | D144: 0 | E144: 0 | F144: 0 | G144: 0 | H144: 0 | I144: 0
A145: TOPEX0309G | B145: Capex component | C145: 0 | D145: 0 | E145: 0 | F145: 0 | G145: 0 | H145: 0 | I145: 0
A146: TOPEX0310G | B146: Other component | C146: 0 | D146: 0 | E146: 0 | F146: 0 | G146: 0 | H146: 0 | I146: 0
B147: The increase during the period in the discounted amount arising from the passage of time and the effect of any change in the discount rate
A148: TOPEX0311G | B148: Opex component | C148: 0 | D148: 0 | E148: 0 | F148: 0 | G148: 0 | H148: 0 | I148: 0
A149: TOPEX0312G | B149: Capex component | C149: 0 | D149: 0 | E149: 0 | F149: 0 | G149: 0 | H149: 0 | I149: 0
A150: TOPEX0313G | B150: Other component | C150: 0 | D150: 0 | E150: 0 | F150: 0 | G150: 0 | H150: 0 | I150: 0
A151: TOPEX0314G | B151: Closing balance (carrying amount at the end of the period) | C151: 0 | D151: 0 | E151: 0 | F151: 0 | G151: 0 | H151: 0 | I151: 0
A152: TOPEX03H | B152: <Provision name>
B153: Brief description of provision
A154: TOPEX0301H | B154: Opening balance (the carrying amount at the beginning of the period) | C154: 0 | D154: 0 | E154: 0 | F154: 0 | G154: 0 | H154: 0 | I154: 0
B155: Additional provisions made in the period, including increases to existing provisions
A156: TOPEX0302H | B156: Opex component | C156: 0 | D156: 0 | E156: 0 | F156: 0 | G156: 0 | H156: 0 | I156: 0
A157: TOPEX0303H | B157: Capex component | C157: 0 | D157: 0 | E157: 0 | F157: 0 | G157: 0 | H157: 0 | I157: 0
A158: TOPEX0304H | B158: Other component | C158: 0 | D158: 0 | E158: 0 | F158: 0 | G158: 0 | H158: 0 | I158: 0
B159: Amounts used (that is, incurred and charged against the provision) during the period
A160: TOPEX0305H | B160: Opex component | C160: 0 | D160: 0 | E160: 0 | F160: 0 | G160: 0 | H160: 0 | I160: 0
A161: TOPEX0306H | B161: Capex component | C161: 0 | D161: 0 | E161: 0 | F161: 0 | G161: 0 | H161: 0 | I161: 0
A162: TOPEX0307H | B162: Other component | C162: 0 | D162: 0 | E162: 0 | F162: 0 | G162: 0 | H162: 0 | I162: 0
B163: Unused amounts reversed during the period
A164: TOPEX0308H | B164: Opex component | C164: 0 | D164: 0 | E164: 0 | F164: 0 | G164: 0 | H164: 0 | I164: 0
A165: TOPEX0309H | B165: Capex component | C165: 0 | D165: 0 | E165: 0 | F165: 0 | G165: 0 | H165: 0 | I165: 0
A166: TOPEX0310H | B166: Other component | C166: 0 | D166: 0 | E166: 0 | F166: 0 | G166: 0 | H166: 0 | I166: 0
B167: The increase during the period in the discounted amount arising from the passage of time and the effect of any change in the discount rate
A168: TOPEX0311H | B168: Opex component | C168: 0 | D168: 0 | E168: 0 | F168: 0 | G168: 0 | H168: 0 | I168: 0
A169: TOPEX0312H | B169: Capex component | C169: 0 | D169: 0 | E169: 0 | F169: 0 | G169: 0 | H169: 0 | I169: 0
A170: TOPEX0313H | B170: Other component | C170: 0 | D170: 0 | E170: 0 | F170: 0 | G170: 0 | H170: 0 | I170: 0
A171: TOPEX0314H | B171: Closing balance (carrying amount at the end of the period) | C171: 0 | D171: 0 | E171: 0 | F171: 0 | G171: 0 | H171: 0 | I171: 0
A172: TOPEX03I | B172: <Provision name>
B173: Brief description of provision
A174: TOPEX0301I | B174: Opening balance (the carrying amount at the beginning of the period) | C174: 0 | D174: 0 | E174: 0 | F174: 0 | G174: 0 | H174: 0 | I174: 0
B175: Additional provisions made in the period, including increases to existing provisions
A176: TOPEX0302I | B176: Opex component | C176: 0 | D176: 0 | E176: 0 | F176: 0 | G176: 0 | H176: 0 | I176: 0
A177: TOPEX0303I | B177: Capex component | C177: 0 | D177: 0 | E177: 0 | F177: 0 | G177: 0 | H177: 0 | I177: 0
A178: TOPEX0304I | B178: Other component | C178: 0 | D178: 0 | E178: 0 | F178: 0 | G178: 0 | H178: 0 | I178: 0
B179: Amounts used (that is, incurred and charged against the provision) during the period
A180: TOPEX0305I | B180: Opex component | C180: 0 | D180: 0 | E180: 0 | F180: 0 | G180: 0 | H180: 0 | I180: 0
A181: TOPEX0306I | B181: Capex component | C181: 0 | D181: 0 | E181: 0 | F181: 0 | G181: 0 | H181: 0 | I181: 0
A182: TOPEX0307I | B182: Other component | C182: 0 | D182: 0 | E182: 0 | F182: 0 | G182: 0 | H182: 0 | I182: 0
B183: Unused amounts reversed during the period
A184: TOPEX0308I | B184: Opex component | C184: 0 | D184: 0 | E184: 0 | F184: 0 | G184: 0 | H184: 0 | I184: 0
A185: TOPEX0309I | B185: Capex component | C185: 0 | D185: 0 | E185: 0 | F185: 0 | G185: 0 | H185: 0 | I185: 0
A186: TOPEX0310I | B186: Other component | C186: 0 | D186: 0 | E186: 0 | F186: 0 | G186: 0 | H186: 0 | I186: 0
B187: The increase during the period in the discounted amount arising from the passage of time and the effect of any change in the discount rate
A188: TOPEX0311I | B188: Opex component | C188: 0 | D188: 0 | E188: 0 | F188: 0 | G188: 0 | H188: 0 | I188: 0
A189: TOPEX0312I | B189: Capex component | C189: 0 | D189: 0 | E189: 0 | F189: 0 | G189: 0 | H189: 0 | I189: 0
A190: TOPEX0313I | B190: Other component | C190: 0 | D190: 0 | E190: 0 | F190: 0 | G190: 0 | H190: 0 | I190: 0
A191: TOPEX0314I | B191: Closing balance (carrying amount at the end of the period) | C191: 0 | D191: 0 | E191: 0 | F191: 0 | G191: 0 | H191: 0 | I191: 0
A192: TOPEX03J | B192: Provision name
B193: Brief description of provision
A194: TOPEX0301J | B194: Opening balance (the carrying amount at the beginning of the period) | C194: 0 | D194: 0 | E194: 0 | F194: 0 | G194: 0 | H194: 0 | I194: 0
B195: Additional provisions made in the period, including increases to existing provisions
A196: TOPEX0302J | B196: Opex component | C196: 0 | D196: 0 | E196: 0 | F196: 0 | G196: 0 | H196: 0 | I196: 0
A197: TOPEX0303J | B197: Capex component | C197: 0 | D197: 0 | E197: 0 | F197: 0 | G197: 0 | H197: 0 | I197: 0
A198: TOPEX0304J | B198: Other component | C198: 0 | D198: 0 | E198: 0 | F198: 0 | G198: 0 | H198: 0 | I198: 0
B199: Amounts used (that is, incurred and charged against the provision) during the period
A200: TOPEX0305J | B200: Opex component | C200: 0 | D200: 0 | E200: 0 | F200: 0 | G200: 0 | H200: 0 | I200: 0
A201: TOPEX0306J | B201: Capex component | C201: 0 | D201: 0 | E201: 0 | F201: 0 | G201: 0 | H201: 0 | I201: 0
A202: TOPEX0307J | B202: Other component | C202: 0 | D202: 0 | E202: 0 | F202: 0 | G202: 0 | H202: 0 | I202: 0
B203: Unused amounts reversed during the period
... 168 more rows

Sheet 7.1 Policies and Procedures
B1: =(LOOKUP(dms_Model,dms_Model_List,dms_Worksheet_List)) -> REGULATORY REPORTING STATEMENT
B2: =INDEX(dms_TradingNameFull_List,MATCH(dms_TradingName,dms_TradingName_List)) -> Murraylink Transmission Company Pty Ltd
B3: =IF(SUM(dms_SingleYear_Model)>0,CRY,CONCATENATE("Regulatory period ",FRCP_y1," to ",dms_MultiYear_FinalYear_Result)) -> Regulatory period 2023-24 to 2027-28
B4: 7.1 PLANS, POLICIES, PROCEDURES AND STRATEGIES
B6: Instructions
B7: =CONCATENATE(dms_TradingName, " must list and provide a brief description of key internal plans, "&"policies, procedures or strategies that are used by it to plan and conduct its day to day operations and that have been relied upon in the development of its regulatory proposal. "&dms_TradingName," must identify any internal plans, policies, procedures and strategies that have changed in the current regulatory control period "&"or that are expected to change before the next regulatory control period where the change has been identified as a step change.") -> Murraylink must list and provide a brief description of key internal plans, policies, procedures or strategies that are used by it to plan and conduct its day to day operations and that have been relied upon in the development of its regulatory proposal. Murraylink must identify any internal plans, policies, procedures and strategies that have changed in the current regulatory control period or that are expected to change before the next regulatory control period where the change has been identified as a step change.
B11: 7.1.1 - PLANS, POLICIES, PROCEDURES AND STRATEGIES
C12: Brief description | D12: Relevance to regulatory proposal | E12: Expenditure impact
C13: Description of the plan, policy, procedure or strategy. | D13: Identify the element of the proposal/supporting documents that the policy, plan, procedure or strategy is relevant to e.g. replacement capex, capacity utilisation thresholds, opex | E13: Is this policy, plan or procedure identified in the response to section 4 'Step Changes' of the notice (yes or no)?
B14: Corporate
B18: Governance framework
B36: Accounting policies, procedures and methodologies (including a capitalisation policy, depreciation policy and an approved expenditure allocation methodology)
B37: APA Cost Allocation Methodology | C37: The purpose of the Cost Allocation Methodology is to set out the policy for attributing and allocating cost to services in accordance with the NGR, and for reporting operating and capital costs information to the AER. | D37: Includes accounting methodlogies and impacts capital expedniture and operating expenditure | E37: no
B38: Accounting Policy Capitalisation of Labour | C38: The purpose of this policy is to provide guidance in respect of the determination of when and which categories of internal labour costs may be capitalised.
B40: Asset management plan or equivalent documentation
B41: Asset Management Policies
B42: Murraylink Asset Management Plan | C42: Translates Murraylink’s strategic goals and objectives, the requirements of stakeholders, and the technical and practical requirements of the assets into programmes of work and plans of action to meet these requirements. | D42: Sets out the rationale for the operations, maintenance and captial expenditure requested in the revenue proposal. | E42: no
B44: Asset Management Strategies
B49: Asset Management Plans
B50: 0 | C50: 0 | D50: 0 | E50: 0
B51: 0 | C51: 0 | D51: 0 | E51: 0
B52: 0 | C52: 0 | D52: 0 | E52: 0
B53: 0 | C53: 0 | D53: 0 | E53: 0
B54: 0 | C54: 0 | D54: 0 | E54: 0
B55: 0 | C55: 0 | D55: 0 | E55: 0
B56: 0 | C56: 0 | D56: 0 | E56: 0
B57: 0 | C57: 0 | D57: 0 | E57: 0
B58: 0 | C58: 0 | D58: 0 | E58: 0
B59: 0 | C59: 0 | D59: 0 | E59: 0
B60: 0 | C60: 0 | D60: 0 | E60: 0
B61: 0 | C61: 0 | D61: 0 | E61: 0
B62: 0 | C62: 0 | D62: 0 | E62: 0
B63: 0 | C63: 0 | D63: 0 | E63: 0
B64: 0 | C64: 0 | D64: 0 | E64: 0
B65: 0 | C65: 0 | D65: 0 | E65: 0
B66: 0 | C66: 0 | D66: 0 | E66: 0
B67: 0 | C67: 0 | D67: 0 | E67: 0
B68: 0 | C68: 0 | D68: 0 | E68: 0
B69: 0 | C69: 0 | D69: 0 | E69: 0
B70: 0 | C70: 0 | D70: 0 | E70: 0
B71: 0 | C71: 0 | D71: 0 | E71: 0
B72: 0 | C72: 0 | D72: 0 | E72: 0
B73: Capital expenditure policies and procedures (including capex approval policies and procedures and replacement policy)
B78: Internal standards for network planning, design, maintenance and operation
B158: Procurement and contracting out policies
B159: APA Group Procurement Policy | C159: Describes the process for undertaking procurement for APA group entities including APA operations | D159: Capex and Opex | E159: no
B160: 0 | C160: 0 | D160: 0 | E160: 0
B161: 0 | C161: 0 | D161: 0 | E161: 0
B162: 0 | C162: 0 | D162: 0 | E162: 0
B163: Information technology policies or strategies
B164: APA Group IT Security Policy | C164: Outlines the Framework of Policy, Standards and Procedures required to manage information security within APA. | D164: Supports for capex and opex requirements | E164: no
B165: APA Group IT Acceptable Use Policy | C165: Defines the acceptable and unacceptable use of APA Group’s Information Technology systems and equipment. | D165: Supports for capex and opex requirements | E165: no
B166: 0 | C166: 0 | D166: 0 | E166: 0
B167: 0 | C167: 0 | D167: 0 | E167: 0
B168: 0 | C168: 0 | D168: 0 | E168: 0
B169: 0 | C169: 0 | D169: 0 | E169: 0
B170: 0 | C170: 0 | D170: 0 | E170: 0
B171: 0 | C171: 0 | D171: 0 | E171: 0
B172: 0 | C172: 0 | D172: 0 | E172: 0
B173: 0 | C173: 0 | D173: 0 | E173: 0
B174: 0 | C174: 0 | D174: 0 | E174: 0
B175: 0 | C175: 0 | D175: 0 | E175: 0
B176: 0 | C176: 0 | D176: 0 | E176: 0
B177: 0 | C177: 0 | D177: 0 | E177: 0
B178: 0 | C178: 0 | D178: 0 | E178: 0
B179: 0 | C179: 0 | D179: 0 | E179: 0
B180: 0 | C180: 0 | D180: 0 | E180: 0
B181: 0 | C181: 0 | D181: 0 | E181: 0
B182: 0 | C182: 0 | D182: 0 | E182: 0
B183: 0 | C183: 0 | D183: 0 | E183: 0
B184: 0 | C184: 0 | D184: 0 | E184: 0
B185: 0 | C185: 0 | D185: 0 | E185: 0
B186: 0 | C186: 0 | D186: 0 | E186: 0
B187: 0 | C187: 0 | D187: 0 | E187: 0
B188: 0 | C188: 0 | D188: 0 | E188: 0
B189: 0 | C189: 0 | D189: 0 | E189: 0
B190: 0 | C190: 0 | D190: 0 | E190: 0
B191: 0 | C191: 0 | D191: 0 | E191: 0
B192: 0 | C192: 0 | D192: 0 | E192: 0
B193: 0 | C193: 0 | D193: 0 | E193: 0
B194: 0 | C194: 0 | D194: 0 | E194: 0
B195: 0 | C195: 0 | D195: 0 | E195: 0
B196: 0 | C196: 0 | D196: 0 | E196: 0
B197: 0 | C197: 0 | D197: 0 | E197: 0
B198: 0 | C198: 0 | D198: 0 | E198: 0
B199: 0 | C199: 0 | D199: 0 | E199: 0
B200: Demand management policies or strategies
B201: 0 | C201: 0 | D201: 0 | E201: 0
B202: 0 | C202: 0 | D202: 0 | E202: 0
B203: 0 | C203: 0 | D203: 0 | E203: 0
B204: Self insurance guidelines or policy
B205: 0 | C205: 0 | D205: 0 | E205: 0
B206: 0 | C206: 0 | D206: 0 | E206: 0
B207: 0 | C207: 0 | D207: 0 | E207: 0
B208: 0 | C208: 0 | D208: 0 | E208: 0
B209: Land and easement acquisition polices
B210: 0 | C210: 0 | D210: 0 | E210: 0
B211: 0 | C211: 0 | D211: 0 | E211: 0
B212: 0 | C212: 0 | D212: 0 | E212: 0
B213: 0 | C213: 0 | D213: 0 | E213: 0
B214: Asset security plans and policies
B215: 0 | C215: 0 | D215: 0 | E215: 0
B216: 0 | C216: 0 | D216: 0 | E216: 0
B217: 0 | C217: 0 | D217: 0 | E217: 0
B218: 0 | C218: 0 | D218: 0 | E218: 0
B219: 0 | C219: 0 | D219: 0 | E219: 0
B220: 0 | C220: 0 | D220: 0 | E220: 0
B221: 0 | C221: 0 | D221: 0 | E221: 0
B222: 0 | C222: 0 | D222: 0 | E222: 0
B223: 0 | C223: 0 | D223: 0 | E223: 0
B224: 0 | C224: 0 | D224: 0 | E224: 0
B225: Disaster recovery policy
B226: <insert relevant policy, plan, strategy etc> | C226: 0 | D226: 0 | E226: 0
B227: 0 | C227: 0 | D227: 0 | E227: 0
B228: 0 | C228: 0 | D228: 0 | E228: 0
B229: 0 | C229: 0 | D229: 0 | E229: 0
B230: 0 | C230: 0 | D230: 0 | E230: 0
B231: 0 | C231: 0 | D231: 0 | E231: 0
B232: 0 | C232: 0 | D232: 0 | E232: 0
B233: 0 | C233: 0 | D233: 0 | E233: 0
B234: 0 | C234: 0 | D234: 0 | E234: 0
B235: 0 | C235: 0 | D235: 0 | E235: 0
B236: 0 | C236: 0 | D236: 0 | E236: 0
B237: 0 | C237: 0 | D237: 0 | E237: 0
B238: 0 | C238: 0 | D238: 0 | E238: 0
B239: 0 | C239: 0 | D239: 0 | E239: 0
B240: 0 | C240: 0 | D240: 0 | E240: 0
B241: 0 | C241: 0 | D241: 0 | E241: 0
B242: 0 | C242: 0 | D242: 0 | E242: 0
B243: 0 | C243: 0 | D243: 0 | E243: 0
B244: 0 | C244: 0 | D244: 0 | E244: 0
B245: 0 | C245: 0 | D245: 0 | E245: 0
B246: 0 | C246: 0 | D246: 0 | E246: 0
B247: 0 | C247: 0 | D247: 0 | E247: 0
B248: 0 | C248: 0 | D248: 0 | E248: 0
B249: 0 | C249: 0 | D249: 0 | E249: 0
B250: 0 | C250: 0 | D250: 0 | E250: 0
B251: 0 | C251: 0 | D251: 0 | E251: 0
B252: 0 | C252: 0 | D252: 0 | E252: 0
B253: 0 | C253: 0 | D253: 0 | E253: 0
B254: 0 | C254: 0 | D254: 0 | E254: 0
B255: 0 | C255: 0 | D255: 0 | E255: 0

Sheet 7.2 Contingent projects
B1: =(LOOKUP(dms_Model,dms_Model_List,dms_Worksheet_List)) -> REGULATORY REPORTING STATEMENT
B2: =INDEX(dms_TradingNameFull_List,MATCH(dms_TradingName,dms_TradingName_List)) -> Murraylink Transmission Company Pty Ltd
B3: =IF(SUM(dms_SingleYear_Model)>0,CRY,CONCATENATE("Regulatory period ",FRCP_y1," to ",dms_MultiYear_FinalYear_Result)) -> Regulatory period 2023-24 to 2027-28
B4: 7.2 CONTINGENT PROJECTS
B7: Instructions
B8: =CONCATENATE(dms_TradingName," is required to populate all input cells (yellow) in table 7.2.1 presented below. Additional rows may be added by ",dms_TradingName," if required." ) -> Murraylink is required to populate all input cells (yellow) in table 7.2.1 presented below. Additional rows may be added by Murraylink if required.
B10: 7.2.1 - PROPOSED CONTINGENT PROJECTS FOR THE FORTHCOMING REGULATORY CONTROL PERIOD
B11: Proposed contingent project name | C11: Proposed contingent capital expenditure ($0's, nominal) | D11: Proposed trigger events | E11: =CONCATENATE("Proposed MAR for ", FRCP_y1," ($0's, nominal)") -> Proposed MAR for 2023-24 ($0's, nominal) | F11: =CONCATENATE("5 per cent of the ", FRCP_y1," ($0's, nominal) MAR") -> 5 per cent of the 2023-24 ($0's, nominal) MAR
B12: Upgrade of generation 2 IGBT | C12: 31000000 | D12: Less than 72 IGBT in stock Completion of RIT-T EII Board approval of project | E12: 13388399.9 | F12: =+E12*0.05 -> 669419.9949
E13: =+$E$12 -> 13388399.9 | F13: =+E13*0.05 -> 669419.9949
E14: =+$E$12 -> 13388399.9 | F14: 669419.9949
E15: 13388399.9 | F15: 669419.9949
E16: 13388399.9 | F16: 669419.9949
E17: 13388399.9 | F17: 669419.9949
E18: 13388399.9 | F18: 669419.9949
E19: 13388399.9 | F19: 669419.9949
E20: 13388399.9 | F20: 669419.9949
E21: 13388399.9 | F21: 669419.9949
E22: 13388399.9 | F22: 669419.9949
E23: 13388399.9 | F23: 669419.9949
E24: 13388399.9 | F24: 669419.9949
E25: 13388399.9 | F25: 669419.9949
E26: 13388399.9 | F26: 669419.9949
E27: 13388399.9 | F27: 669419.9949
E28: 13388399.9 | F28: 669419.9949
E29: 13388399.9 | F29: 669419.9949
E30: 13388399.9 | F30: 669419.9949
E31: 13388399.9 | F31: 669419.9949

Sheet 7.3 Obligations
B1: =(LOOKUP(dms_Model,dms_Model_List,dms_Worksheet_List)) -> REGULATORY REPORTING STATEMENT
B2: =INDEX(dms_TradingNameFull_List,MATCH(dms_TradingName,dms_TradingName_List)) -> Murraylink Transmission Company Pty Ltd
B3: =IF(SUM(dms_SingleYear_Model)>0,CRY,CONCATENATE("Regulatory period ",FRCP_y1," to ",dms_MultiYear_FinalYear_Result)) -> Regulatory period 2023-24 to 2027-28
B4: 7.3 OBLIGATIONS, REQUIREMENTS & STANDARDS
B6: There is ONE table on this worksheet. It has been sub-grouped for ease of navigation. See the Instructions sheet on how to group or ungroup data.
B8: Instructions
B9: =CONCATENATE("Outline those obligations and requirements that ",dms_TradingName, " identifies as having a material impact on expenditure requirements.") -> Outline those obligations and requirements that Murraylink identifies as having a material impact on expenditure requirements.
B12: 7.3.1 - OBLIGATIONS OR REQUIREMENTS
C13: Brief description | D13: Relevance to regulatory proposal | E13: Expenditure impact
C14: Description of relevant obligations or requirements within the instrument (e.g. safety obligations, reliability targets) | D14: Identify what element of the proposal/supporting documents the obligation or requirement is relevant to e.g. replacement capex, capacity utilisation thresholds, opex | E14: Is the obligation or requirement identified in the response to section 4 'Step Changes' of the notice (yes or no)?
B15: Legislation
B16: National Electricity Law | C16: Sets out the obligations of Transmission Networks in relation to eonomic regulation | D16: Sets out the basis for the regulatory proposal | E16: No
B17: South Australian Electricity Act 1996 | C17: Technial compliance obligations for the operation of Murraylink | D17: Supports for capex and opex requirements | E17: No
B19: Victorian Electricity Industry Act 2000 | C19: Technial compliance obligations for the operation of Murraylink | D19: Supports for capex and opex requirements | E19: No
B20: Victorian Electricity Safety Act 1998 | C20: Technial compliance obligations for the operation of Murraylink | E20: No
B21: 0 | C21: 0 | D21: 0 | E21: 0
B22: 0 | C22: 0 | D22: 0 | E22: 0
B23: 0 | C23: 0 | D23: 0 | E23: 0
B24: 0 | C24: 0 | D24: 0 | E24: 0
B25: 0 | C25: 0 | D25: 0 | E25: 0
B26: 0 | C26: 0 | D26: 0 | E26: 0
B27: 0 | C27: 0 | D27: 0 | E27: 0
B28: 0 | C28: 0 | D28: 0 | E28: 0
B29: 0 | C29: 0 | D29: 0 | E29: 0
B30: 0 | C30: 0 | D30: 0 | E30: 0
B31: 0 | C31: 0 | D31: 0 | E31: 0
B32: 0 | C32: 0 | D32: 0 | E32: 0
B33: 0 | C33: 0 | D33: 0 | E33: 0
B34: 0 | C34: 0 | D34: 0 | E34: 0
B35: 0 | C35: 0 | D35: 0 | E35: 0
B36: 0 | C36: 0 | D36: 0 | E36: 0
B37: 0 | C37: 0 | D37: 0 | E37: 0
B38: 0 | C38: 0 | D38: 0 | E38: 0
B39: 0 | C39: 0 | D39: 0 | E39: 0
B40: 0 | C40: 0 | D40: 0 | E40: 0
B41: 0 | C41: 0 | D41: 0 | E41: 0
B42: 0 | C42: 0 | D42: 0 | E42: 0
B43: 0 | C43: 0 | D43: 0 | E43: 0
B44: 0 | C44: 0 | D44: 0 | E44: 0
B45: 0 | C45: 0 | D45: 0 | E45: 0
B46: 0 | C46: 0 | D46: 0 | E46: 0
B47: 0 | C47: 0 | D47: 0 | E47: 0
B48: 0 | C48: 0 | D48: 0 | E48: 0
B49: 0 | C49: 0 | D49: 0 | E49: 0
B50: 0 | C50: 0 | D50: 0 | E50: 0
B51: 0 | C51: 0 | D51: 0 | E51: 0
B52: 0 | C52: 0 | D52: 0 | E52: 0
B53: 0 | C53: 0 | D53: 0 | E53: 0
B54: 0 | C54: 0 | D54: 0 | E54: 0
B55: 0 | C55: 0 | D55: 0 | E55: 0
B56: 0 | C56: 0 | D56: 0 | E56: 0
B57: 0 | C57: 0 | D57: 0 | E57: 0
B58: 0 | C58: 0 | D58: 0 | E58: 0
B59: 0 | C59: 0 | D59: 0 | E59: 0
B60: 0 | C60: 0 | D60: 0 | E60: 0
B61: 0 | C61: 0 | D61: 0 | E61: 0
B62: 0 | C62: 0 | D62: 0 | E62: 0
B63: 0 | C63: 0 | D63: 0 | E63: 0
B64: 0 | C64: 0 | D64: 0 | E64: 0
B65: 0 | C65: 0 | D65: 0 | E65: 0
B66: 0 | C66: 0 | D66: 0 | E66: 0
B67: 0 | C67: 0 | D67: 0 | E67: 0
B68: 0 | C68: 0 | D68: 0 | E68: 0
B69: 0 | C69: 0 | D69: 0 | E69: 0
B70: 0 | C70: 0 | D70: 0 | E70: 0
B71: 0 | C71: 0 | D71: 0 | E71: 0
B72: 0 | C72: 0 | D72: 0 | E72: 0
B73: 0 | C73: 0 | D73: 0 | E73: 0
B74: 0 | C74: 0 | D74: 0 | E74: 0
B75: 0 | C75: 0 | D75: 0 | E75: 0
B76: 0 | C76: 0 | D76: 0 | E76: 0
B77: 0 | C77: 0 | D77: 0 | E77: 0
B78: 0 | C78: 0 | D78: 0 | E78: 0
B79: 0 | C79: 0 | D79: 0 | E79: 0
B80: 0 | C80: 0 | D80: 0 | E80: 0
B81: 0 | C81: 0 | D81: 0 | E81: 0
B82: 0 | C82: 0 | D82: 0 | E82: 0
B83: 0 | C83: 0 | D83: 0 | E83: 0
B84: 0 | C84: 0 | D84: 0 | E84: 0
B85: 0 | C85: 0 | D85: 0 | E85: 0
B86: 0 | C86: 0 | D86: 0 | E86: 0
B87: 0 | C87: 0 | D87: 0 | E87: 0
B88: 0 | C88: 0 | D88: 0 | E88: 0
B89: 0 | C89: 0 | D89: 0 | E89: 0
B90: 0 | C90: 0 | D90: 0 | E90: 0
B91: 0 | C91: 0 | D91: 0 | E91: 0
B92: 0 | C92: 0 | D92: 0 | E92: 0
B93: 0 | C93: 0 | D93: 0 | E93: 0
B94: 0 | C94: 0 | D94: 0 | E94: 0
B95: 0 | C95: 0 | D95: 0 | E95: 0
B96: 0 | C96: 0 | D96: 0 | E96: 0
B97: 0 | C97: 0 | D97: 0 | E97: 0
B98: 0 | C98: 0 | D98: 0 | E98: 0
B99: 0 | C99: 0 | D99: 0 | E99: 0
B100: 0 | C100: 0 | D100: 0 | E100: 0
B101: 0 | C101: 0 | D101: 0 | E101: 0
B102: 0 | C102: 0 | D102: 0 | E102: 0
B103: 0 | C103: 0 | D103: 0 | E103: 0
B104: 0 | C104: 0 | D104: 0 | E104: 0
B105: 0 | C105: 0 | D105: 0 | E105: 0
B106: 0 | C106: 0 | D106: 0 | E106: 0
B107: 0 | C107: 0 | D107: 0 | E107: 0
B108: 0 | C108: 0 | D108: 0 | E108: 0
B109: 0 | C109: 0 | D109: 0 | E109: 0
B110: 0 | C110: 0 | D110: 0 | E110: 0
B111: 0 | C111: 0 | D111: 0 | E111: 0
B112: 0 | C112: 0 | D112: 0 | E112: 0
B113: 0 | C113: 0 | D113: 0 | E113: 0
B114: 0 | C114: 0 | D114: 0 | E114: 0
B115: 0 | C115: 0 | D115: 0 | E115: 0
B116: 0 | C116: 0 | D116: 0 | E116: 0
B117: 0 | C117: 0 | D117: 0 | E117: 0
B118: 0 | C118: 0 | D118: 0 | E118: 0
B119: 0 | C119: 0 | D119: 0 | E119: 0
B120: 0 | C120: 0 | D120: 0 | E120: 0
B121: 0 | C121: 0 | D121: 0 | E121: 0
B122: 0 | C122: 0 | D122: 0 | E122: 0
B123: 0 | C123: 0 | D123: 0 | E123: 0
B124: 0 | C124: 0 | D124: 0 | E124: 0
B125: 0 | C125: 0 | D125: 0 | E125: 0
B126: 0 | C126: 0 | D126: 0 | E126: 0
B127: 0 | C127: 0 | D127: 0 | E127: 0
B128: 0 | C128: 0 | D128: 0 | E128: 0
B129: 0 | C129: 0 | D129: 0 | E129: 0
B130: 0 | C130: 0 | D130: 0 | E130: 0
B131: 0 | C131: 0 | D131: 0 | E131: 0
B132: 0 | C132: 0 | D132: 0 | E132: 0
B133: 0 | C133: 0 | D133: 0 | E133: 0
B134: 0 | C134: 0 | D134: 0 | E134: 0
B135: 0 | C135: 0 | D135: 0 | E135: 0
B136: 0 | C136: 0 | D136: 0 | E136: 0
B137: 0 | C137: 0 | D137: 0 | E137: 0
B138: 0 | C138: 0 | D138: 0 | E138: 0
B139: 0 | C139: 0 | D139: 0 | E139: 0
B140: 0 | C140: 0 | D140: 0 | E140: 0
B141: 0 | C141: 0 | D141: 0 | E141: 0
B142: 0 | C142: 0 | D142: 0 | E142: 0
B143: 0 | C143: 0 | D143: 0 | E143: 0
B144: 0 | C144: 0 | D144: 0 | E144: 0
B145: 0 | C145: 0 | D145: 0 | E145: 0
B146: 0 | C146: 0 | D146: 0 | E146: 0
B147: 0 | C147: 0 | D147: 0 | E147: 0
B148: 0 | C148: 0 | D148: 0 | E148: 0
B149: 0 | C149: 0 | D149: 0 | E149: 0
B150: 0 | C150: 0 | D150: 0 | E150: 0
B151: 0 | C151: 0 | D151: 0 | E151: 0
B152: 0 | C152: 0 | D152: 0 | E152: 0
B153: 0 | C153: 0 | D153: 0 | E153: 0
B154: 0 | C154: 0 | D154: 0 | E154: 0
B155: 0 | C155: 0 | D155: 0 | E155: 0
B156: 0 | C156: 0 | D156: 0 | E156: 0
B157: 0 | C157: 0 | D157: 0 | E157: 0
B158: 0 | C158: 0 | D158: 0 | E158: 0
B159: 0 | C159: 0 | D159: 0 | E159: 0
B160: 0 | C160: 0 | D160: 0 | E160: 0
B161: 0 | C161: 0 | D161: 0 | E161: 0
B162: 0 | C162: 0 | D162: 0 | E162: 0
B163: 0 | C163: 0 | D163: 0 | E163: 0
B164: 0 | C164: 0 | D164: 0 | E164: 0
B165: 0 | C165: 0 | D165: 0 | E165: 0
B166: 0 | C166: 0 | D166: 0 | E166: 0
B167: 0 | C167: 0 | D167: 0 | E167: 0
B168: 0 | C168: 0 | D168: 0 | E168: 0
B169: 0 | C169: 0 | D169: 0 | E169: 0
B170: 0 | C170: 0 | D170: 0 | E170: 0
B171: 0 | C171: 0 | D171: 0 | E171: 0
B172: 0 | C172: 0 | D172: 0 | E172: 0
B173: 0 | C173: 0 | D173: 0 | E173: 0
B174: 0 | C174: 0 | D174: 0 | E174: 0
B175: 0 | C175: 0 | D175: 0 | E175: 0
B176: 0 | C176: 0 | D176: 0 | E176: 0
B177: 0 | C177: 0 | D177: 0 | E177: 0
B178: 0 | C178: 0 | D178: 0 | E178: 0
B179: 0 | C179: 0 | D179: 0 | E179: 0
B180: 0 | C180: 0 | D180: 0 | E180: 0
B181: 0 | C181: 0 | D181: 0 | E181: 0
B182: 0 | C182: 0 | D182: 0 | E182: 0
B183: 0 | C183: 0 | D183: 0 | E183: 0
B184: 0 | C184: 0 | D184: 0 | E184: 0
B185: 0 | C185: 0 | D185: 0 | E185: 0
B186: 0 | C186: 0 | D186: 0 | E186: 0
B187: 0 | C187: 0 | D187: 0 | E187: 0
B188: 0 | C188: 0 | D188: 0 | E188: 0
B189: 0 | C189: 0 | D189: 0 | E189: 0
B190: 0 | C190: 0 | D190: 0 | E190: 0
B191: 0 | C191: 0 | D191: 0 | E191: 0
B192: 0 | C192: 0 | D192: 0 | E192: 0
B193: 0 | C193: 0 | D193: 0 | E193: 0
B194: 0 | C194: 0 | D194: 0 | E194: 0
B195: 0 | C195: 0 | D195: 0 | E195: 0
B196: 0 | C196: 0 | D196: 0 | E196: 0
B197: 0 | C197: 0 | D197: 0 | E197: 0
B198: 0 | C198: 0 | D198: 0 | E198: 0
B199: 0 | C199: 0 | D199: 0 | E199: 0
B200: 0 | C200: 0 | D200: 0 | E200: 0
B201: 0 | C201: 0 | D201: 0 | E201: 0
B202: 0 | C202: 0 | D202: 0 | E202: 0
B203: 0 | C203: 0 | D203: 0 | E203: 0
B204: 0 | C204: 0 | D204: 0 | E204: 0
B205: 0 | C205: 0 | D205: 0 | E205: 0
... 106 more rows

Sheet 7.4 Shared Assets
B1: =(LOOKUP(dms_Model,dms_Model_List,dms_Worksheet_List)) -> REGULATORY REPORTING STATEMENT
B2: =INDEX(dms_TradingNameFull_List,MATCH(dms_TradingName,dms_TradingName_List)) -> Murraylink Transmission Company Pty Ltd
B3: =IF(SUM(dms_SingleYear_Model)>0,CRY,CONCATENATE("Regulatory period ",FRCP_y1," to ",dms_MultiYear_FinalYear_Result)) -> Regulatory period 2023-24 to 2027-28
B4: 7.4 SHARED ASSETS
B6: 7.4.1 - TOTAL UNREGULATED REVENUE EARNED WITH SHARED ASSETS
B7: Name of shared asset unregulated service | C7: Description of shared assets used to provide the service | D7: Shared asset unregulated revenue ($0's, nominal) | L7: =CONCATENATE("Shared asset unregulated revenue ($0's, real ", dms_DollarReal,")") -> Shared asset unregulated revenue ($0's, real June 2023)
D8: =PRCP_y1 -> 2013-14 | E8: =PRCP_y2 -> 2014-15 | F8: =PRCP_y3 -> 2015-16 | G8: =PRCP_y4 -> 2016-17 | H8: =PRCP_y5 -> 2017-18 | I8: =CRCP_y1 -> 2018-19 | J8: =CRCP_y2 -> 2019-20 | K8: =CRCP_y3 -> 2020-21 | L8: =CRCP_y4 -> 2021-22 | M8: =CRCP_y5 -> 2022-23 | N8: =FRCP_y1 -> 2023-24 | O8: =FRCP_y2 -> 2024-25 | P8: =FRCP_y3 -> 2025-26 | Q8: =FRCP_y4 -> 2026-27 | R8: =FRCP_y5 -> 2027-28 | S8: =CONCATENATE("Total ",FRCP_y1, " to ", FRCP_y5) -> Total 2023-24 to 2027-28
B9: Murraylink has no shared assets | C9: Murraylink has no shared assets | G9: 0 | H9: 0 | I9: 0 | J9: 0 | K9: 0 | L9: 0 | M9: 0 | N9: 0 | O9: 0 | P9: 0 | Q9: 0 | R9: 0 | S9: =SUM(N9:R9) -> 0
B10: 0 | C10: 0 | D10: 0 | E10: 0 | F10: 0 | G10: 0 | H10: 0 | I10: 0 | J10: 0 | K10: 0 | L10: 0 | M10: 0 | N10: 0 | O10: 0 | P10: 0 | Q10: 0 | R10: 0 | S10: =SUM(N10:R10) -> 0
B11: 0 | C11: 0 | D11: 0 | E11: 0 | F11: 0 | G11: 0 | H11: 0 | I11: 0 | J11: 0 | K11: 0 | L11: 0 | M11: 0 | N11: 0 | O11: 0 | P11: 0 | Q11: 0 | R11: 0 | S11: 0
B12: 0 | C12: 0 | D12: 0 | E12: 0 | F12: 0 | G12: 0 | H12: 0 | I12: 0 | J12: 0 | K12: 0 | L12: 0 | M12: 0 | N12: 0 | O12: 0 | P12: 0 | Q12: 0 | R12: 0 | S12: 0
B13: 0 | C13: 0 | D13: 0 | E13: 0 | F13: 0 | G13: 0 | H13: 0 | I13: 0 | J13: 0 | K13: 0 | L13: 0 | M13: 0 | N13: 0 | O13: 0 | P13: 0 | Q13: 0 | R13: 0 | S13: 0
B14: 0 | C14: 0 | D14: 0 | E14: 0 | F14: 0 | G14: 0 | H14: 0 | I14: 0 | J14: 0 | K14: 0 | L14: 0 | M14: 0 | N14: 0 | O14: 0 | P14: 0 | Q14: 0 | R14: 0 | S14: 0
B15: 0 | C15: 0 | D15: 0 | E15: 0 | F15: 0 | G15: 0 | H15: 0 | I15: 0 | J15: 0 | K15: 0 | L15: 0 | M15: 0 | N15: 0 | O15: 0 | P15: 0 | Q15: 0 | R15: 0 | S15: 0
B16: 0 | C16: 0 | D16: 0 | E16: 0 | F16: 0 | G16: 0 | H16: 0 | I16: 0 | J16: 0 | K16: 0 | L16: 0 | M16: 0 | N16: 0 | O16: 0 | P16: 0 | Q16: 0 | R16: 0 | S16: 0
B17: 0 | C17: 0 | D17: 0 | E17: 0 | F17: 0 | G17: 0 | H17: 0 | I17: 0 | J17: 0 | K17: 0 | L17: 0 | M17: 0 | N17: 0 | O17: 0 | P17: 0 | Q17: 0 | R17: 0 | S17: 0
B18: 0 | C18: 0 | D18: 0 | E18: 0 | F18: 0 | G18: 0 | H18: 0 | I18: 0 | J18: 0 | K18: 0 | L18: 0 | M18: 0 | N18: 0 | O18: 0 | P18: 0 | Q18: 0 | R18: 0 | S18: 0
B19: 0 | C19: 0 | D19: 0 | E19: 0 | F19: 0 | G19: 0 | H19: 0 | I19: 0 | J19: 0 | K19: 0 | L19: 0 | M19: 0 | N19: 0 | O19: 0 | P19: 0 | Q19: 0 | R19: 0 | S19: 0
B20: 0 | C20: 0 | D20: 0 | E20: 0 | F20: 0 | G20: 0 | H20: 0 | I20: 0 | J20: 0 | K20: 0 | L20: 0 | M20: 0 | N20: 0 | O20: 0 | P20: 0 | Q20: 0 | R20: 0 | S20: =SUM(N20:R20) -> 0
B21: 0 | C21: 0 | D21: 0 | E21: 0 | F21: 0 | G21: 0 | H21: 0 | I21: 0 | J21: 0 | K21: 0 | L21: 0 | M21: 0 | N21: 0 | O21: 0 | P21: 0 | Q21: 0 | R21: 0 | S21: =SUM(N21:R21) -> 0
B22: 0 | C22: 0 | D22: 0 | E22: 0 | F22: 0 | G22: 0 | H22: 0 | I22: 0 | J22: 0 | K22: 0 | L22: 0 | M22: 0 | N22: 0 | O22: 0 | P22: 0 | Q22: 0 | R22: 0 | S22: =SUM(N22:R22) -> 0
B23: 0 | C23: 0 | D23: 0 | E23: 0 | F23: 0 | G23: 0 | H23: 0 | I23: 0 | J23: 0 | K23: 0 | L23: 0 | M23: 0 | N23: 0 | O23: 0 | P23: 0 | Q23: 0 | R23: 0 | S23: =SUM(N23:R23) -> 0
B25: 7.4.2 - SHARED ASSET UNREGULATED SERVICES - APPORTIONMENT METHODOLOGY
B26: Name of shared asset unregulated service for which revenues were apportioned | C26: Apportionment methodology
B27: 0 | C27: 0
B28: 0 | C28: 0
B29: 0 | C29: 0
B30: 0 | C30: 0
B31: 0 | C31: 0
B32: 0 | C32: 0
B33: 0 | C33: 0
B34: 0 | C34: 0
B35: 0 | C35: 0
B36: 0 | C36: 0
B37: 0 | C37: 0
B38: 0 | C38: 0
B39: 0 | C39: 0
B40: 0 | C40: 0
B41: 0 | C41: 0

Sheet 7.9 STPIS
B1: =(LOOKUP(dms_Model,dms_Model_List,dms_Worksheet_List)) -> REGULATORY REPORTING STATEMENT
B2: =INDEX(dms_TradingNameFull_List,MATCH(dms_TradingName,dms_TradingName_List)) -> Murraylink Transmission Company Pty Ltd
B3: =IF(SUM(dms_SingleYear_Model)>0,CRY,CONCATENATE("Regulatory period ",FRCP_y1," to ",dms_MultiYear_FinalYear_Result)) -> Regulatory period 2023-24 to 2027-28
B4: 7.9 SERVICE TARGET PERFORMANCE INCENTIVE SCHEME (STPIS)
B6: There are FOUR tables on this worksheet. Each table has been grouped (and sub-grouped) for ease of navigation. See the Instructions sheet on how to group or ungroup tables.
B8: Instructions
B9: =dms_TradingName&" is required to provide the performance actuals for the most recent five years, and the proposed cap, floor and target for the next regulatory control period for the parameters under the service component of the STPIS in table 7.9.1 below." -> Murraylink is required to provide the performance actuals for the most recent five years, and the proposed cap, floor and target for the next regulatory control period for the parameters under the service component of the STPIS in table 7.9.1 below.
B11: 7.9.1 - Historical performance and proposed floor, caps and targets for the service component of the STPIS
B12: Parameter | C12: Performance actuals | I12: Average of actual performance | J12: Floor | K12: Target | L12: Cap | M12: Weighting (% of MAR)
C13: =(LEFT(PRCP_y4,2)&RIGHT(PRCP_y4,2)) -> 2017 | D13: =LEFT(PRCP_y5,2)&RIGHT(PRCP_y5,2) -> 2018 | E13: =(LEFT(CRCP_y1,2)&RIGHT(CRCP_y1,2)) -> 2019 | F13: =(LEFT(CRCP_y2,2)&RIGHT(CRCP_y2,2)) -> 2020 | G13: =(LEFT(CRCP_y3,2)&RIGHT(CRCP_y3,2)) -> 2021 | H13: =(LEFT(CRCP_y4,2)&RIGHT(CRCP_y4,2)) -> 2022
B14: Unplanned outage circuit event rate:
B15: Circuit outage rate - fault | C15: 2 | D15: 1 | E15: 3 | F15: 0 | I15: =+AVERAGE(C15:G15) -> 1.5 | M15: 0.0075
B16: Circuit outage rate - forced | C16: 1 | D16: 3 | E16: 0 | F16: 0 | I16: =+AVERAGE(C16:G16) -> 1 | M16: 0.005
B17: Loss of supply event frequency (number of events):
B18: > (x) system minutes | I18: =+AVERAGE(C18:G18) -> 
B19: > (y) system minutes | I19: =+AVERAGE(C19:G19) -> 
B20: Average outage duration (minutes): | I20: =+AVERAGE(C20:G20) -> 
B21: Proper operation of equipment (number of events):
B22: Failure of protection system | I22: =+AVERAGE(C22:G22) ->  | M22: 0
B23: Material failure of SCADA | I23: =+AVERAGE(C23:G23) ->  | M23: 0
B24: Incorrect operational isolation of primary or secondary equipment | I24: =+AVERAGE(C24:G24) ->  | M24: 0
B28: 7.9.2 - Proposed priority projects for the network capability incentive parameter
B29: Project ranking | C29: Transmission Circuit / Injection Point | D29: Scope of works | E29: =CONCATENATE(("If applicable, the present value of quantified benefits associated with the project ($0's, "),CRCP_y5,")") -> If applicable, the present value of quantified benefits associated with the project ($0's, 2022-23) | F29: =CONCATENATE(("Project cost ($0's, "),CRCP_y5,")") -> Project cost ($0's, 2022-23)
F30: =FRCP_y1 -> 2023-24 | G30: =FRCP_y2 -> 2024-25 | H30: =FRCP_y3 -> 2025-26 | I30: =FRCP_y4 -> 2026-27 | J30: =FRCP_y5 -> 2027-28 | K30: Opex | L30: Capex
B31: 1
B32: 2
B33: 3
B34: 4
B35: 5
B36: 6
B37: 7
B38: 8
B39: 9
B40: 10
B41: 11
B42: 12
B43: 13
B44: 14
B45: 15
B46: 16
B51: 7.9.3 – Network limit information
B52: Limit identification | C52: Define limit | D52: Reason for the limit | E52: Is limit addressed by priority project | F52: Supporting information reference
B65: 7.9.4 - Market impact component
B66: Instructions
B67: =dms_TradingName&" is required to provide performance data in accordance with Appendix C of the STPIS for the preceding seven calendar years in table 7.9.4 below. "&dms_TradingName&" is also required to provide relevant information in the MIC workbook attached to Appendix A of the Notice." -> Murraylink is required to provide performance data in accordance with Appendix C of the STPIS for the preceding seven calendar years in table 7.9.4 below. Murraylink is also required to provide relevant information in the MIC workbook attached to Appendix A of the Notice.
D69: Market impact parameter
D70: Planned outage count(DI) | F70: Unplanned outage count (DI)
B71: Year | C71: Month | D71: without exclusions | E71: with exclusions | F71: without exclusions | G71: with exclusions | H71: Market impact parameters
B72: =LEFT(PRCP_y3,4) -> 2015 | C72: January | D72: 0 | E72: 0 | F72: 0 | G72: 0 | H72: =+E72/12 -> 0
B73: 2015 | C73: February | D73: 5 | E73: 5 | F73: 40 | G73: 38 | H73: 0.4166666667
B74: 2015 | C74: March | D74: 34 | E74: 34 | F74: 0 | G74: 0 | H74: 2.833333333
B75: 2015 | C75: April | D75: 13 | E75: 13 | F75: 11 | G75: 9 | H75: 1.083333333
B76: 2015 | C76: May | D76: 0 | E76: 0 | F76: 0 | G76: 0 | H76: 0
B77: 2015 | C77: June | D77: 9 | E77: 9 | F77: 0 | G77: 0 | H77: 0.75
B78: 2015 | C78: July | D78: 88 | E78: 88 | F78: 42 | G78: 0 | H78: 7.333333333
B79: 2015 | C79: August | D79: 0 | E79: 0 | F79: 3 | G79: 3 | H79: 0
B80: 2015 | C80: September | D80: 171 | E80: 171 | F80: 10 | G80: 8 | H80: 14.25
B81: 2015 | C81: October | D81: 0 | E81: 0 | F81: 4 | G81: 4 | H81: 0
B82: 2015 | C82: November | D82: 59 | E82: 59 | F82: 4 | G82: 3 | H82: 4.916666667
B83: 2015 | C83: December | D83: 75 | E83: 75 | F83: 25 | G83: 25 | H83: 6.25
B84: =CONCATENATE("Total ",LEFT(PRCP_y3,4)) -> Total 2015 | D84: =+SUM(D72:D83) -> 454 | E84: =+SUM(E72:E83) -> 454 | F84: =+SUM(F72:F83) -> 139 | G84: =+SUM(G72:G83) -> 90 | H84: =+SUM(H72:H83) -> 37.83333333
B85: =LEFT(PRCP_y4,4) -> 2016 | C85: January | D85: 0 | E85: 0 | F85: 6 | G85: 0 | H85: =+E85/12 -> 0
B86: 2016 | C86: February | D86: 73 | E86: 73 | F86: 0 | G86: 0 | H86: 6.083333333
B87: 2016 | C87: March | D87: 35 | E87: 35 | F87: 7 | G87: 7 | H87: 2.916666667
B88: 2016 | C88: April | D88: 5 | E88: 5 | F88: 4 | G88: 4 | H88: 0.4166666667
B89: 2016 | C89: May | D89: 0 | E89: 0 | F89: 0 | G89: 0 | H89: 0
B90: 2016 | C90: June | D90: 103 | E90: 103 | F90: 17 | G90: 17 | H90: 8.583333333
B91: 2016 | C91: July | D91: 0 | E91: 0 | F91: 14 | G91: 14 | H91: 0
B92: 2016 | C92: August | D92: 1659 | E92: 1659 | F92: 0 | G92: 0 | H92: 138.25
B93: 2016 | C93: September | D93: 0 | E93: 0 | F93: 636 | G93: 0 | H93: 0
B94: 2016 | C94: October | D94: 0 | E94: 0 | F94: 2277 | G94: 0 | H94: 0
B95: 2016 | C95: November | D95: 0 | E95: 0 | F95: 1014 | G95: 1014 | H95: 0
B96: 2016 | C96: December | D96: 0 | E96: 0 | F96: 83 | G96: 25 | H96: 0
B97: =CONCATENATE("Total ", LEFT(PRCP_y4,4)) -> Total 2016 | D97: =+SUM(D85:D96) -> 1875 | E97: =+SUM(E85:E96) -> 1875 | F97: =+SUM(F85:F96) -> 4058 | G97: =+SUM(G85:G96) -> 1081 | H97: =+SUM(H85:H96) -> 156.25
B98: =LEFT(PRCP_y5,4) -> 2017 | C98: January | D98: 0 | E98: 0 | F98: 0 | G98: 0 | H98: =+E98/12 -> 0
B99: 2017 | C99: February | D99: 0 | E99: 0 | F99: 0 | G99: 0 | H99: 0
B100: 2017 | C100: March | D100: 94 | E100: 94 | F100: 0 | G100: 0 | H100: 7.833333333
B101: 2017 | C101: April | D101: 0 | E101: 0 | F101: 0 | G101: 0 | H101: 0
B102: 2017 | C102: May | D102: 56 | E102: 56 | F102: 0 | G102: 0 | H102: 4.666666667
B103: 2017 | C103: June | D103: 1 | E103: 1 | F103: 33 | G103: 0 | H103: 0.08333333333
B104: 2017 | C104: July | D104: 0 | E104: 0 | F104: 104 | G104: 104 | H104: 0
B105: 2017 | C105: August | D105: 0 | E105: 0 | F105: 189 | G105: 189 | H105: 0
B106: 2017 | C106: September | D106: 77 | E106: 77 | F106: 128 | G106: 128 | H106: 6.416666667
B107: 2017 | C107: October | D107: 0 | E107: 0 | F107: 0 | G107: 0 | H107: 0
B108: 2017 | C108: November | D108: 0 | E108: 0 | F108: 15 | G108: 15 | H108: 0
B109: 2017 | C109: December | D109: 0 | E109: 0 | F109: 0 | G109: 0 | H109: 0
B110: =CONCATENATE("Total ", LEFT(PRCP_y5,4)) -> Total 2017 | D110: =+SUM(D98:D109) -> 228 | E110: =+SUM(E98:E109) -> 228 | F110: =+SUM(F98:F109) -> 469 | G110: =+SUM(G98:G109) -> 436 | H110: =+SUM(H98:H109) -> 19
B111: =LEFT(CRCP_y1,4) -> 2018 | C111: January | D111: 0 | E111: 0 | F111: 10 | G111: 10 | H111: =+E111/12 -> 0
B112: 2018 | C112: February | D112: 0 | E112: 0 | F112: 0 | G112: 0 | H112: 0
B113: 2018 | C113: March | D113: 0 | E113: 0 | F113: 0 | G113: 0 | H113: 0
B114: 2018 | C114: April | D114: 2145 | E114: 2145 | F114: 0 | G114: 0 | H114: 178.75
B115: 2018 | C115: May | D115: 75 | E115: 75 | F115: 0 | G115: 0 | H115: 6.25
B116: 2018 | C116: June | D116: 35 | E116: 35 | F116: 5 | G116: 5 | H116: 2.916666667
B117: 2018 | C117: July | D117: 35 | E117: 0 | F117: 2 | G117: 2 | H117: 0
B118: 2018 | C118: August | D118: 126 | E118: 126 | F118: 0 | G118: 0 | H118: 10.5
B119: 2018 | C119: September | D119: 206 | E119: 206 | F119: 52 | G119: 52 | H119: 17.16666667
B120: 2018 | C120: October | D120: 0 | E120: 0 | F120: 0 | G120: 0 | H120: 0
B121: 2018 | C121: November | D121: 10 | E121: 10 | F121: 63 | G121: 63 | H121: 0.8333333333
B122: 2018 | C122: December | D122: 82 | E122: 82 | F122: 0 | G122: 0 | H122: 6.833333333
B123: =CONCATENATE("Total ", LEFT(CRCP_y1,4)) -> Total 2018 | D123: =+SUM(D111:D122) -> 2714 | E123: =+SUM(E111:E122) -> 2679 | F123: =+SUM(F111:F122) -> 132 | G123: =+SUM(G111:G122) -> 132 | H123: =+SUM(H111:H122) -> 223.25
B124: =LEFT(CRCP_y2,4) -> 2019 | C124: January | D124: 0 | E124: 0 | F124: 0 | G124: 0 | H124: =+E124/12 -> 0
B125: 2019 | C125: February | D125: 0 | E125: 0 | F125: 0 | G125: 0 | H125: 0
B126: 2019 | C126: March | D126: 0 | E126: 0 | F126: 0 | G126: 0 | H126: 0
B127: 2019 | C127: April | D127: 0 | E127: 0 | F127: 3 | G127: 3 | H127: 0
B128: 2019 | C128: May | D128: 0 | E128: 0 | F128: 0 | G128: 0 | H128: 0
B129: 2019 | C129: June | D129: 0 | E129: 0 | F129: 0 | G129: 0 | H129: 0
B130: 2019 | C130: July | D130: 0 | E130: 0 | F130: 0 | G130: 0 | H130: 0
B131: 2019 | C131: August | D131: 18 | E131: 18 | F131: 0 | G131: 0 | H131: 1.5
B132: 2019 | C132: September | D132: 0 | E132: 0 | F132: 0 | G132: 0 | H132: 0
B133: 2019 | C133: October | D133: 0 | E133: 0 | F133: 0 | G133: 0 | H133: 0
B134: 2019 | C134: November | D134: 0 | E134: 0 | F134: 131 | G134: 131 | H134: 0
B135: 2019 | C135: December | D135: 0 | E135: 0 | F135: 126 | G135: 126 | H135: 0
B136: =CONCATENATE("Total ", LEFT(CRCP_y2,4)) -> Total 2019 | D136: =+SUM(D124:D135) -> 18 | E136: =+SUM(E124:E135) -> 18 | F136: =+SUM(F124:F135) -> 260 | G136: =+SUM(G124:G135) -> 260 | H136: =+SUM(H124:H135) -> 1.5
B137: =LEFT(CRCP_y3,4) -> 2020 | C137: January | D137: 0 | E137: 0 | F137: 0 | G137: 0 | H137: =+E137/12 -> 0
B138: 2020 | C138: February | D138: 0 | E138: 0 | F138: 4 | G138: 0 | H138: 0
B139: 2020 | C139: March | D139: 0 | E139: 0 | F139: 1 | G139: 0 | H139: 0
B140: 2020 | C140: April | D140: 0 | E140: 0 | F140: 0 | G140: 0 | H140: 0
B141: 2020 | C141: May | D141: 0 | E141: 0 | F141: 0 | G141: 0 | H141: 0
B142: 2020 | C142: June | D142: 78 | E142: 78 | F142: 0 | G142: 0 | H142: 6.5
B143: 2020 | C143: July | D143: 7 | E143: 7 | F143: 0 | G143: 0 | H143: 0.5833333333
B144: 2020 | C144: August | D144: 0 | E144: 0 | F144: 0 | G144: 0 | H144: 0
B145: 2020 | C145: September | D145: 1474 | E145: 1474 | F145: 0 | G145: 0 | H145: 122.8333333
B146: 2020 | C146: October | D146: 868 | E146: 868 | F146: 31 | G146: 31 | H146: 72.33333333
B147: 2020 | C147: November | D147: 0 | E147: 0 | F147: 4 | G147: 4 | H147: 0
B148: 2020 | C148: December | D148: 0 | E148: 0 | F148: 11 | G148: 11 | H148: 0
B149: =CONCATENATE("Total ", LEFT(CRCP_y3,4)) -> Total 2020 | D149: =+SUM(D137:D148) -> 2427 | E149: =+SUM(E137:E148) -> 2427 | F149: =+SUM(F137:F148) -> 51 | G149: =+SUM(G137:G148) -> 46 | H149: =+SUM(H137:H148) -> 202.25
B150: =LEFT(CRCP_y4,4) -> 2021 | C150: January | D150: 0 | E150: 0 | F150: 0 | G150: 0 | H150: =+E150/12 -> 0
B151: 2021 | C151: February | D151: 0 | E151: 0 | F151: 21 | G151: 21 | H151: 0
B152: 2021 | C152: March | D152: 0 | E152: 0 | F152: 0 | G152: 0 | H152: 0
B153: 2021 | C153: April | D153: 0 | E153: 0 | F153: 31 | G153: 31 | H153: 0
B154: 2021 | C154: May | D154: 198 | E154: 198 | F154: 0 | G154: 0 | H154: 16.5
B155: 2021 | C155: June | D155: 100 | E155: 100 | F155: 0 | G155: 0 | H155: 8.333333333
B156: 2021 | C156: July | H156: 0
B157: 2021 | C157: August | H157: 0
B158: 2021 | C158: September | H158: 0
B159: 2021 | C159: October | H159: 0
B160: 2021 | C160: November | H160: 0
B161: 2021 | C161: December | H161: 0
B162: =CONCATENATE("Total ", LEFT(CRCP_y4,4)) -> Total 2021 | D162: =+SUM(D150:D161) -> 298 | E162: =+SUM(E150:E161) -> 298 | F162: =+SUM(F150:F161) -> 52 | G162: =+SUM(G150:G161) -> 52 | H162: =+SUM(H150:H161) -> 24.83333333
B163: =LEFT(CRCP_y5,4) -> 2022 | C163: January | H163: =+E163/12 -> 0
B164: 2022 | C164: February | H164: 0
B165: 2022 | C165: March | H165: 0
B166: 2022 | C166: April | H166: 0
B167: 2022 | C167: May | H167: 0
B168: 2022 | C168: June | H168: 0
B169: 2022 | C169: July | H169: 0
B170: 2022 | C170: August | H170: 0
B171: 2022 | C171: September | H171: 0
B172: 2022 | C172: October | H172: 0
B173: 2022 | C173: November | H173: 0
B174: 2022 | C174: December | H174: 0
B175: =CONCATENATE("Total ", LEFT(CRCP_y5,4)) -> Total 2022 | D175: =+SUM(D163:D174) -> 0 | E175: =+SUM(E163:E174) -> 0 | F175: =+SUM(F163:F174) -> 0 | G175: =+SUM(G163:G174) -> 0 | H175: =+SUM(H163:H174) -> 0

Sheet 8.2 Capex
B1: NEW HISTORICAL ANNUAL REPORTING
B2: Murraylink Transmission Company Pty Ltd
B3: Regulatory period 2023-24 to 2027-28
B4: 8.2 - CAPEX
B6: 8.2.7 - IMMEDIATE EXPENSING OF CAPEX
B7: ESTIMATED - AS COMMISSIONED
C8: Actual ($0's, nominal) | F8: =CONCATENATE("Forecast ($0's, real ", dms_DollarReal, ")") -> Forecast ($0's, real June 2023)
B9: Asset class | C9: 2018-19 | D9: 2019-20 | E9: 2020-21 | F9: 2021-22 | G9: 2022-23
B10: Switchyard | C10: 0 | D10: 0 | E10: 0 | F10: 0 | G10: 0
B11: Transmission line | C11: 0 | D11: 0 | E11: 0 | F11: 0 | G11: 0
B12: Easements | C12: 0 | D12: 0 | E12: 0 | F12: 0 | G12: 0
B13: Ancillary 15 - control systems | C13: 0 | D13: 0 | E13: 0 | F13: 0 | G13: 0
B14: Ancillary 30 | C14: 0 | D14: 0 | E14: 0 | F14: 0 | G14: 0
B15: Ancillary 7 - pressure vessel testing and inspection | C15: 0 | D15: 0 | E15: 0 | F15: 0 | G15: 0
B16: Other operating assets | C16: 0 | D16: 0 | E16: 0 | F16: 0 | G16: 0
B17: Office machines | C17: 0 | D17: 0 | E17: 0 | F17: 0 | G17: 0
B18: 0 | C18: 0 | D18: 0 | E18: 0 | F18: 0 | G18: 0
B19: 0 | C19: 0 | D19: 0 | E19: 0 | F19: 0 | G19: 0
B20: 0 | C20: 0 | D20: 0 | E20: 0 | F20: 0 | G20: 0
B21: 0 | C21: 0 | D21: 0 | E21: 0 | F21: 0 | G21: 0
B22: 0 | C22: 0 | D22: 0 | E22: 0 | F22: 0 | G22: 0
B23: 0 | C23: 0 | D23: 0 | E23: 0 | F23: 0 | G23: 0
B24: 0 | C24: 0 | D24: 0 | E24: 0 | F24: 0 | G24: 0
B25: 0 | C25: 0 | D25: 0 | E25: 0 | F25: 0 | G25: 0
B26: 0 | C26: 0 | D26: 0 | E26: 0 | F26: 0 | G26: 0
B27: 0 | C27: 0 | D27: 0 | E27: 0 | F27: 0 | G27: 0
B28: 0 | C28: 0 | D28: 0 | E28: 0 | F28: 0 | G28: 0
B29: 0 | C29: 0 | D29: 0 | E29: 0 | F29: 0 | G29: 0
B30: 0 | C30: 0 | D30: 0 | E30: 0 | F30: 0 | G30: 0
B31: 0 | C31: 0 | D31: 0 | E31: 0 | F31: 0 | G31: 0
B32: 0 | C32: 0 | D32: 0 | E32: 0 | F32: 0 | G32: 0
B33: 0 | C33: 0 | D33: 0 | E33: 0 | F33: 0 | G33: 0
B34: 0 | C34: 0 | D34: 0 | E34: 0 | F34: 0 | G34: 0
B35: 0 | C35: 0 | D35: 0 | E35: 0 | F35: 0 | G35: 0
B36: 0 | C36: 0 | D36: 0 | E36: 0 | F36: 0 | G36: 0
B37: 0 | C37: 0 | D37: 0 | E37: 0 | F37: 0 | G37: 0
B38: 0 | C38: 0 | D38: 0 | E38: 0 | F38: 0 | G38: 0
B39: 0 | C39: 0 | D39: 0 | E39: 0 | F39: 0 | G39: 0
B40: 0 | C40: 0 | D40: 0 | E40: 0 | F40: 0 | G40: 0
B41: 0 | C41: 0 | D41: 0 | E41: 0 | F41: 0 | G41: 0
B42: 0 | C42: 0 | D42: 0 | E42: 0 | F42: 0 | G42: 0
B43: 0 | C43: 0 | D43: 0 | E43: 0 | F43: 0 | G43: 0
B44: 0 | C44: 0 | D44: 0 | E44: 0 | F44: 0 | G44: 0
B45: 0 | C45: 0 | D45: 0 | E45: 0 | F45: 0 | G45: 0
B46: 0 | C46: 0 | D46: 0 | E46: 0 | F46: 0 | G46: 0
B47: 0 | C47: 0 | D47: 0 | E47: 0 | F47: 0 | G47: 0
B48: 0 | C48: 0 | D48: 0 | E48: 0 | F48: 0 | G48: 0
B49: 0 | C49: 0 | D49: 0 | E49: 0 | F49: 0 | G49: 0
B50: 0 | C50: 0 | D50: 0 | E50: 0 | F50: 0 | G50: 0
B51: 0 | C51: 0 | D51: 0 | E51: 0 | F51: 0 | G51: 0
B52: 0 | C52: 0 | D52: 0 | E52: 0 | F52: 0 | G52: 0
B53: 0 | C53: 0 | D53: 0 | E53: 0 | F53: 0 | G53: 0
B54: 0 | C54: 0 | D54: 0 | E54: 0 | F54: 0 | G54: 0
B55: 0 | C55: 0 | D55: 0 | E55: 0 | F55: 0 | G55: 0
B56: 0 | C56: 0 | D56: 0 | E56: 0 | F56: 0 | G56: 0
B57: 0 | C57: 0 | D57: 0 | E57: 0 | F57: 0 | G57: 0
B58: 0 | C58: 0 | D58: 0 | E58: 0 | F58: 0 | G58: 0
B59: 0 | C59: 0 | D59: 0 | E59: 0 | F59: 0 | G59: 0
B60: Total | C60: =SUM(C10:C59) -> 0 | D60: =SUM(D10:D59) -> 0 | E60: =SUM(E10:E59) -> 0 | F60: =SUM(F10:F59) -> 0 | G60: =SUM(G10:G59) -> 0
